{"text_format":"1","workbook":"xlsx","n_sheets":60,"sheets":["1 de 34","2 de 34","3 de 34","4 de 34","5 de 34","6 de 34","7 de 34","8 de 34","9 de 34","10 de 34","11 A de 34","11 B de  34","11 C de 34","11 C1 de 34 ","11 C2 de 34 ","11 C3 de 34 ","11 C4 de 34","11 D de 34  ","11 E de 34","11 F de 34","11 G de 34","11 H de 34","11 H1 de 34","11 H2 de 34","11 H3 de 34","11 H4 de 34 ","12 de 34","13 de 34","14 de 34","15 de 34","16 de 34","16A de 34","16B de 34","16C de 34","16D de 34","17A de 34","17B de 34","17C de 34","18A de 34","18B de 34","18C de 34","19 de 34","20 de 34","20A de 34 ","21 de 34","21A de 34","21B de 34","22 de 34","23 de 34","24 de 34","25 de 34","26 de 34","27 de 34","28 de 34","29 de 34","30 de 34","31 de 34","32 de 34","33 de 34","34 de 34"],"not_rendered":{"charts":0,"images":1,"macros":0,"external_links":0,"defined_names":129,"comments":0,"pivot_tables":0},"unopened":[],"bounds":{"document_bytes":16777216,"sheet_cells":100000,"rows_first":2000,"rows_last":500,"rows_between":2000,"halvings":0,"cell_chars":16384,"cell_head_chars":4096},"cells_cut":0,"cells_raw":0,"read":"whole","date_system":"1900"}

{"sheet":"1 de 34","index":0,"n_rows":12,"n_cols":1,"rows_kept":12,"cut":false,"hidden":false,"merged":[[1,0,1,1],[2,0,2,1],[3,0,3,1],[4,0,4,1]]}
[]
["Formulario E-120-D"]
["(1 de 34)"]
["REGISTRO DE EMPRESAS PRESTADORAS DEL SERVICIO PÚBLICO DE ELECTRICIDAD"]
["DATOS ESTADÍSTICOS DEL SISTEMA DE DISTRIBUCIÓN"]
["1.  Nombre de la empresa: "]
["2.  Nombre del Representante Legal:"]
["3.  Información de Contacto:"]
["      Teléfono:"]
["      Celular:"]
["      Fax:"]
["      Correo electrónico:"]

{"sheet":"2 de 34","index":1,"n_rows":30,"n_cols":5,"rows_kept":30,"cut":false,"hidden":false,"merged":[[1,0,1,4],[2,0,2,4],[4,0,4,1],[3,0,3,4],[7,0,7,1],[8,0,8,1],[9,0,9,1],[10,0,10,1],[11,0,11,1],[12,0,12,1],[13,0,13,1],[14,0,14,1],[15,0,15,1],[16,0,16,1],[18,0,18,1],[19,0,19,1],[20,0,20,1],[21,0,21,1],[22,0,22,1],[23,0,23,1],[24,0,24,1],[29,0,29,4],[25,0,25,1],[26,0,26,1],[27,0,27,1],[28,0,28,1]]}
[]
["Formulario E-120-D"]
["(2 de 34)"]
["LÍNEAS DE DISTRIBUCIÓN DE ENERGÍA ELÉCTRICA\n(KILÓMETROS)"]
["\nNOMBRE DE LA EMPRESA:"]
[null,"AÑO:",null,"SEMESTRE:"]
[]
["LÍNEAS AÉREAS DE DISTRIBUCIÓN",null,"TRIFÁSICOS\nkms","BIFÁSICOS                                   kms","MONOFÁSICOS\nkms"]
["115 kV"]
["44 kV"]
["34.5 kV"]
["13.2 kV"]
["12 kV"]
["4.16 kV - 6.9 kV"]
["2.4 kV"]
["0 - 600 V"]
["SUBTOTAL AÉREAS"]
[]
["LÍNEAS SUBTERRÁNEAS DE DISTRIBUCIÓN",null,"TRIFÁSICOS\nkms","BIFÁSICOS                                  kms","MONOFÁSICOS\nkms"]
["115 kV"]
["44 kV"]
["34.5 kV"]
["13.2 kV"]
["12 kV"]
["4.16 kV - 6.9 kV"]
["2.4 kV"]
["0 - 600 V"]
["SUBTOTAL SUBTERRÁNEAS"]
["TOTAL"]
["Nota: Se debe incluir transiciones subterráneas en pasos vehiculares, peatonales y otros"]

{"sheet":"3 de 34","index":2,"n_rows":32,"n_cols":8,"rows_kept":32,"cut":false,"hidden":false,"merged":[[1,0,1,7],[2,0,2,7],[7,0,8,0],[7,1,8,1],[7,2,7,4],[7,5,8,5],[7,6,7,7],[3,0,3,7],[5,3,5,4]]}
[]
["Formulario E-120-D "]
[" (3 de 34)"]
["CANTIDAD DE LÍNEAS ELÉCTRICAS Y DE CENTROS DE TRANSFORMACIÓN"]
["                     \nNOMBRE DE LA EMPRESA: "]
["AÑO:",null,null,"SEMESTRE:"]
[]
["PROVINCIA / DISTRITO / CORREGIMIENTO","ALTA TENSIÓN\n115kV","MEDIA TENSIÓN  600 V  -  115 kV",null,null,"BAJA TENSIÓN\n600V","CENTROS  DE TRANSFORMACIÓN\nMT / BT"]
[null,null,"3 FASE","2 FASE","1 FASE",null,"CANTIDAD                  Tx","POTENCIA (KVA)"]
[]
[]
[]
[]
[]
[]
[]
[]
[]
[]
[]
[]
[]
[]
[]
[]
[]
[]
[]
[]
[]
[]
["TOTAL GENERAL"]

{"sheet":"4 de 34","index":3,"n_rows":21,"n_cols":9,"rows_kept":21,"cut":false,"hidden":false,"merged":[[3,0,3,8],[1,0,1,8],[2,0,2,8],[4,0,4,1],[4,2,4,6]]}
[]
["Formulario E-120-D"]
["(4 de 34)"]
["VENTAS DE ENERGÍA ELÉCTRICA POR CLASE DE SERVICIO\n(GWh)"]
["                    \nNOMBRE DE LA EMPRESA:"]
[null,"AÑO:",null,null,"SEMESTRE:"]
[]
["MES","RESIDENCIAL","COMERCIAL","INDUSTRIAL","GOBIERNO","CONSUMO EMPRESA","A/P","OTROS","TOTAL"]
["ENERO"]
["FEBRERO"]
["MARZO"]
["ABRIL"]
["MAYO"]
["JUNIO"]
["JULIO"]
["AGOSTO"]
["SEPTIEMBRE"]
["OCTUBRE"]
["NOVIEMBRE"]
["DICIEMBRE"]
["TOTAL"]

{"sheet":"5 de 34","index":4,"n_rows":22,"n_cols":19,"rows_kept":22,"cut":false,"hidden":false,"merged":[[3,0,3,18],[1,0,1,18],[2,0,2,18],[7,0,8,0],[10,19,11,20],[6,7,6,14],[7,1,7,11],[7,12,7,18],[5,10,5,11],[4,5,4,7],[4,8,4,12],[5,12,5,14]]}
[]
["Formulario E-120-D  "]
["(5 de 34)"]
["VENTAS DE ENERGÍA ELÉCTRICA POR TARIFA\n(GWh)"]
[null,null,null,null,null,"               \nNOMBRE DE LA EMPRESA:"]
[null,null,null,null,null,null,null,"AÑO:",null,null,"SEMESTRE:"]
[]
["MES","CLIENTES REGULADOS",null,null,null,null,null,null,null,null,null,null,"CLIENTES NO REGULADOS"]
[null,"BTS1","BTS2","BTS3","Prepago","BTD","BTH","MTD","MTH","ATD","ATH","TOTAL","BTD","BTH","MTD","MTH","ATD","ATH","TOTAL"]
["ENERO"]
["FEBRERO"]
["MARZO"]
["ABRIL"]
["MAYO"]
["JUNIO"]
["JULIO"]
["AGOSTO"]
["SEPTIEMBRE"]
["OCTUBRE"]
["NOVIEMBRE"]
["DICIEMBRE"]
["TOTAL"]

{"sheet":"6 de 34","index":5,"n_rows":23,"n_cols":9,"rows_kept":23,"cut":false,"hidden":false,"merged":[[2,0,2,8],[3,0,3,8],[6,1,6,2],[6,3,6,6],[8,3,8,8],[4,0,4,8],[5,0,5,8]]}
[]
[]
["Formulario E-120-D"]
["(6 de 34)"]
["CLIENTES POR CLASE DE SERVICIO"]
["(Clientes activos al final de cada mes)"]
[null,"                    \nNOMBRE DE LA EMPRESA:"]
[null,"AÑO:",null,null,"SEMESTRE:"]
[]
["MES","RESIDENCIAL","COMERCIAL","INDUSTRIAL","GOBIERNO","CONSUMO EMPRESA","A/P","OTROS","TOTAL"]
["ENERO"]
["FEBRERO"]
["MARZO"]
["ABRIL"]
["MAYO "]
["JUNIO"]
["JULIO"]
["AGOSTO"]
["SEPTIEMBRE"]
["OCTUBRE"]
["NOVIEMBRE"]
["DICIEMBRE"]
["PROMEDIO"]

{"sheet":"7 de 34","index":6,"n_rows":23,"n_cols":19,"rows_kept":23,"cut":false,"hidden":false,"merged":[[8,1,8,11],[8,12,8,18],[2,0,2,18],[3,0,3,18],[4,0,4,18],[8,0,9,0],[6,10,6,11],[5,5,5,7],[5,8,5,13]]}
[]
[]
["Formulario E-120-D"]
["(7 de 34)"]
["CLIENTES POR TARIFA\n(Clientes activos al final de cada mes)"]
[null,null,null,null,null,"NOMBRE DE LA EMPRESA:"]
[null,null,null,null,null,null,null,"AÑO:",null,null,"SEMESTRE:"]
[]
["MES","CLIENTES REGULADOS",null,null,null,null,null,null,null,null,null,null,"CLIENTES NO REGULADOS"]
[null,"BTS1","BTS2","BTS3","Prepago","BTD","BTH","MTD","MTH","ATD","ATH","TOTAL","BTD","BTH","MTD","MTH","ATD","ATH","TOTAL"]
["ENERO"]
["FEBRERO"]
["MARZO"]
["ABRIL"]
["MAYO"]
["JUNIO"]
["JULIO"]
["AGOSTO"]
["SEPTIEMBRE"]
["OCTUBRE"]
["NOVIEMBRE"]
["DICIEMBRE"]
["PROMEDIO"]

{"sheet":"8 de 34","index":7,"n_rows":21,"n_cols":9,"rows_kept":21,"cut":false,"hidden":false,"merged":[[3,0,3,8],[1,0,1,8],[2,0,2,8],[4,1,4,2]]}
[]
["Formulario E-120-D"]
["(8 de 34)"]
["CONSUMO PROMEDIO POR CLASE DE SERVICIO\n(MWh)"]
[null,"                   \nNOMBRE DE LA EMPRESA:"]
[null,null,"AÑO:",null,"SEMESTRE:"]
[]
["MES","RESIDENCIAL","COMERCIAL","INDUSTRIAL","GOBIERNO","CONSUMO EMPRESA","A/P","OTROS","TOTAL"]
["ENERO"]
["FEBRERO"]
["MARZO"]
["ABRIL"]
["MAYO"]
["JUNIO"]
["JULIO"]
["AGOSTO"]
["SEPTIEMBRE"]
["OCTUBRE"]
["NOVIEMBRE"]
["DICIEMBRE"]
["TOTAL"]

{"sheet":"9 de 34","index":8,"n_rows":22,"n_cols":19,"rows_kept":22,"cut":false,"hidden":false,"merged":[[7,1,7,11],[7,12,7,18],[1,0,1,18],[2,0,2,18],[3,0,3,18],[7,0,8,0],[4,5,4,7]]}
[]
["Formulario E-120-D"]
["(9 de 34)"]
["CONSUMO PROMEDIO  POR TARIFA\nMWh"]
[null,null,null,null,null,"NOMBRE DE LA EMPRESA:"]
[null,null,null,null,null,null,null,"AÑO:",null,null,null,"SEMESTRE:"]
[]
["MES","CLIENTES REGULADOS",null,null,null,null,null,null,null,null,null,null,"CLIENTES NO REGULADOS"]
[null,"BTS1","BTS2","BTS3","Prepago","BTD","BTH","MTD","MTH","ATD","ATH","TOTAL","BTD","BTH","MTD","MTH","ATD","ATH","TOTAL"]
["ENERO"]
["FEBRERO"]
["MARZO"]
["ABRIL"]
["MAYO"]
["JUNIO"]
["JULIO"]
["AGOSTO"]
["SEPTIEMBRE"]
["OCTUBRE"]
["NOVIEMBRE"]
["DICIEMBRE"]
["PROMEDIO"]

{"sheet":"10 de 34","index":9,"n_rows":21,"n_cols":9,"rows_kept":21,"cut":false,"hidden":false,"merged":[[1,0,1,8],[2,0,2,8],[4,1,4,2],[8,12,9,13],[8,14,9,15],[3,0,3,8]]}
[]
["Formulario E-120-D"]
["(10 de 34)"]
["INGRESOS FACTURADOS POR CLASE DE SERVICIO\n(En Balboas)"]
[null,"                  \nNOMBRE DE LA EMPRESA:"]
[null,null,"AÑO:",null,"SEMESTRE:"]
[]
["MES","RESIDENCIAL","COMERCIAL","INDUSTRIAL","GOBIERNO","CONSUMO EMPRESA","A/P","OTROS","TOTAL"]
["ENERO"]
["FEBRERO"]
["MARZO"]
["ABRIL"]
["MAYO"]
["JUNIO"]
["JULIO"]
["AGOSTO"]
["SEPTIEMBRE"]
["OCTUBRE"]
["NOVIEMBRE"]
["DICIEMBRE"]
["TOTAL"]

{"sheet":"11 A de 34","index":10,"n_rows":22,"n_cols":19,"rows_kept":22,"cut":false,"hidden":false,"merged":[[7,1,7,11],[7,12,7,18],[6,0,6,18],[1,0,1,18],[2,0,2,18],[3,0,3,18],[7,0,8,0],[4,5,4,7]]}
[]
["Formulario E-120-D "]
["(11 A de 34)"]
["INGRESOS FACTURADOS  POR TARIFA\n(En Balboas)"]
[null,null,null,null,null,"                \nNOMBRE DE LA EMPRESA:"]
[null,null,null,null,null,null,null,"AÑO:",null,null,null,"SEMESTRE:"]
["INGRESOS FACTURADOS  POR TARIFA    (Cargo Fijo,  Cargo por Energía,   Cargo por Demanda,  Cargo por Variación de Combustible)"]
["MES","CLIENTES REGULADOS",null,null,null,null,null,null,null,null,null,null,"CLIENTES NO REGULADOS"]
[null,"BTS1","BTS2","BTS3","Prepago","BTD","BTH","MTD","MTH","ATD","ATH","TOTAL","BTD","BTH","MTD","MTH","ATD","ATH","TOTAL"]
["ENERO"]
["FEBRERO"]
["MARZO"]
["ABRIL"]
["MAYO"]
["JUNIO"]
["JULIO"]
["AGOSTO"]
["SEPTIEMBRE"]
["OCTUBRE"]
["NOVIEMBRE"]
["DICIEMBRE"]
["TOTAL"]

{"sheet":"11 B de  34","index":11,"n_rows":22,"n_cols":19,"rows_kept":22,"cut":false,"hidden":false,"merged":[[7,1,7,11],[7,12,7,18],[1,0,1,18],[2,0,2,18],[3,0,3,18],[6,0,6,18],[7,0,8,0],[4,4,4,6]]}
[]
["Formulario E-120-D"]
["(11 B de 34)"]
["INGRESOS FACTURADOS POR TARIFA\n(En Balboas)"]
[null,null,null,null,"                    \nNOMBRE DE LA EMPRESA:"]
[null,null,null,null,null,null,"AÑO:",null,null,null,"SEMESTRE:"]
["MONTO ASUMIDO POR EL USUARIO FINAL    (Cargo Fijo,  Cargo por Energía,  Cargo por Demanda,  Cargo por Variación de Combustible,   FET,   FET-CVC,   FET  Extraordinario )"]
["MES","CLIENTES REGULADOS",null,null,null,null,null,null,null,null,null,null,"CLIENTES NO REGULADOS"]
[null,"BTS1","BTS2","BTS3","Prepago","BTD","BTH","MTD","MTH","ATD","ATH","TOTAL","BTD","BTH","MTD","MTH","ATD","ATH","TOTAL"]
["ENERO"]
["FEBRERO"]
["MARZO"]
["ABRIL"]
["MAYO"]
["JUNIO"]
["JULIO"]
["AGOSTO"]
["SEPTIEMBRE"]
["OCTUBRE"]
["NOVIEMBRE"]
["DICIEMBRE"]
["TOTAL"]

{"sheet":"11 C de 34","index":12,"n_rows":23,"n_cols":19,"rows_kept":23,"cut":false,"hidden":false,"merged":[[8,1,8,11],[8,12,8,18],[1,0,1,18],[2,0,2,18],[3,0,3,18],[4,0,4,18],[8,0,9,0],[5,6,5,8],[6,10,6,11],[6,12,6,14]]}
[]
["Formulario E-120-D"]
["(11 C de 34)"]
["INGRESOS FACTURADOS POR TARIFA\n(En  Balboas)"]
["MONTO ASUMIDO POR EL ESTADO"]
[null,null,null,null,null,null,"NOMBRE DE LA EMPRESA:"]
[null,null,null,null,null,null,null,null,"AÑO:",null,"SEMESTRE:"]
[]
["MES","CLIENTES REGULADOS",null,null,null,null,null,null,null,null,null,null,"CLIENTES NO REGULADOS"]
[null,"BTS1","BTS2","BTS3","Prepago","BTD","BTH","MTD","MTH","ATD","ATH","TOTAL","BTD","BTH","MTD","MTH","ATD","ATH","TOTAL"]
["ENERO"]
["FEBRERO"]
["MARZO"]
["ABRIL"]
["MAYO"]
["JUNIO"]
["JULIO"]
["AGOSTO"]
["SEPTIEMBRE"]
["OCTUBRE"]
["NOVIEMBRE"]
["DICIEMBRE"]
["TOTAL"]

{"sheet":"11 C1 de 34 ","index":13,"n_rows":23,"n_cols":19,"rows_kept":23,"cut":false,"hidden":false,"merged":[[1,0,1,18],[2,0,2,18],[3,0,3,18],[4,0,4,18],[8,0,9,0],[6,16,6,18],[8,1,8,11],[8,12,8,18],[7,0,7,9],[6,14,6,15],[5,6,5,8]]}
[]
["Formulario E-120-D"]
["(11 C1 de 34)"]
["INGRESOS FACTURADOS POR TARIFA\n(En  Balboas)"]
["MONTO ASUMIDO POR EL ESTADO   ( FET )"]
[null,null,null,null,null,null,"NOMBRE DE LA EMPRESA:"]
[null,null,null,null,null,null,null,"AÑO:",null,null,"SEMESTRE:"]
[]
["MES","CLIENTES REGULADOS",null,null,null,null,null,null,null,null,null,null,"CLIENTES NO REGULADOS"]
[null,"BTS1","BTS2","BTS3","Prepago","BTD","BTH","MTD","MTH","ATD","ATH","TOTAL","BTD","BTH","MTD","MTH","ATD","ATH","TOTAL"]
["ENERO"]
["FEBRERO"]
["MARZO"]
["ABRIL"]
["MAYO"]
["JUNIO"]
["JULIO"]
["AGOSTO"]
["SEPTIEMBRE"]
["OCTUBRE"]
["NOVIEMBRE"]
["DICIEMBRE"]
["TOTAL"]

{"sheet":"11 C2 de 34 ","index":14,"n_rows":23,"n_cols":19,"rows_kept":23,"cut":false,"hidden":false,"merged":[[1,0,1,18],[2,0,2,18],[3,0,3,18],[4,0,4,18],[8,1,8,11],[8,12,8,18],[8,0,9,0],[5,6,5,8],[6,14,6,15],[6,16,6,18]]}
[]
["Formulario E-120-D"]
["(11 C2 de 34)"]
["INGRESOS FACTURADOS POR TARIFA\n(En  Balboas)"]
["MONTO ASUMIDO POR EL ESTADO   (FET  Adicional)"]
[null,null,null,null,null,null,"NOMBRE DE LA EMPRESA:"]
[null,null,null,null,null,null,null,"AÑO:",null,null,"SEMESTRE:"]
[]
["MES","CLIENTES REGULADOS",null,null,null,null,null,null,null,null,null,null,"CLIENTES NO REGULADOS"]
[null,"BTS1","BTS2","BTS3","Prepago","BTD","BTH","MTD","MTH","ATD","ATH","TOTAL","BTD","BTH","MTD","MTH","ATD","ATH","TOTAL"]
["ENERO"]
["FEBRERO"]
["MARZO"]
["ABRIL"]
["MAYO"]
["JUNIO"]
["JULIO"]
["AGOSTO"]
["SEPTIEMBRE"]
["OCTUBRE"]
["NOVIEMBRE"]
["DICIEMBRE"]
["TOTAL"]

{"sheet":"11 C3 de 34 ","index":15,"n_rows":23,"n_cols":19,"rows_kept":23,"cut":false,"hidden":false,"merged":[[1,0,1,18],[2,0,2,18],[3,0,3,18],[4,0,4,18],[8,0,9,0],[8,1,8,11],[8,12,8,18],[7,0,7,9],[5,6,5,8],[6,14,6,15],[6,16,6,18]]}
[]
["Formulario E-120-D"]
["(11 C3 de 34)"]
["INGRESOS FACTURADOS POR TARIFA\n(En  Balboas)"]
["MONTO ASUMIDO POR EL ESTADO (FET Extraordinario))"]
[null,null,null,null,null,null,"NOMBRE DE LA EMPRESA:"]
[null,null,null,null,null,null,null,"AÑO:",null,null,"SEMESTRE:"]
[]
["MES","CLIENTES REGULADOS",null,null,null,null,null,null,null,null,null,null,"CLIENTES NO REGULADOS"]
[null,"BTS1","BTS2","BTS3","Prepago","BTD","BTH","MTD","MTH","ATD","ATH","TOTAL","BTD","BTH","MTD","MTH","ATD","ATH","TOTAL"]
["ENERO"]
["FEBRERO"]
["MARZO"]
["ABRIL"]
["MAYO"]
["JUNIO"]
["JULIO"]
["AGOSTO"]
["SEPTIEMBRE"]
["OCTUBRE"]
["NOVIEMBRE"]
["DICIEMBRE"]
["TOTAL"]

{"sheet":"11 C4 de 34","index":16,"n_rows":23,"n_cols":19,"rows_kept":23,"cut":false,"hidden":false,"merged":[[8,1,8,11],[8,12,8,18],[1,0,1,18],[2,0,2,18],[3,0,3,18],[4,0,4,18],[8,0,9,0],[5,6,5,8],[6,14,6,15],[6,16,6,18]]}
[]
["Formulario E-120-D"]
["(11 C4 de 34)"]
["INGRESOS FACTURADOS POR TARIFA\n(En  Balboas)"]
["MONTO ASUMIDO POR EL ESTADO (FTO)"]
[null,null,null,null,null,null,"NOMBRE DE LA EMPRESA:"]
[null,null,null,null,null,null,null,"AÑO:",null,null,"SEMESTRE:"]
[]
["MES","CLIENTES REGULADOS",null,null,null,null,null,null,null,null,null,null,"CLIENTES NO REGULADOS"]
[null,"BTS1","BTS2","BTS3","Prepago","BTD","BTH","MTD","MTH","ATD","ATH","TOTAL","BTD","BTH","MTD","MTH","ATD","ATH","TOTAL"]
["ENERO"]
["FEBRERO"]
["MARZO"]
["ABRIL"]
["MAYO"]
["JUNIO"]
["JULIO"]
["AGOSTO"]
["SEPTIEMBRE"]
["OCTUBRE"]
["NOVIEMBRE"]
["DICIEMBRE"]
["TOTAL"]

{"sheet":"11 D de 34  ","index":17,"n_rows":286,"n_cols":14,"rows_kept":286,"cut":false,"hidden":false,"merged":[[5,15,5,17],[5,13,5,14],[1,0,1,13],[2,0,2,13],[3,0,3,13],[4,3,4,5]]}
[]
["Formulario E-120-D"]
["(11 D de 34)"]
["VENTAS DE ENERGÍA ELÉCTRICA  POR  RANGOS  DE  CONSUMO   (GWh)\n(Tarifa: Baja Tensión Simple)"]
[null,null,null,"NOMBRE DE LA EMPRESA:"]
[null,null,null,null,"AÑO:",null,null,"SEMESTRE:"]
[]
[null,"Ene","Feb","Mar","Abr","May","Jun","Jul","Ago","Sep","Oct","Nov","Dic","TOTAL"]
["BTS1"]
["Menor o Igual                       a 25",null,null,null,null,null,null,null,null,null,null,null,null,0]
["26 y 50",null,null,null,null,null,null,null,null,null,null,null,null,0]
["51 y 75",null,null,null,null,null,null,null,null,null,null,null,null,0]
["76 y 100",null,null,null,null,null,null,null,null,null,null,null,null,0]
["101 y 125",null,null,null,null,null,null,null,null,null,null,null,null,0]
["126 y 150",null,null,null,null,null,null,null,null,null,null,null,null,0]
["151 y 175",null,null,null,null,null,null,null,null,null,null,null,null,0]
["176 y 200",null,null,null,null,null,null,null,null,null,null,null,null,0]
["201 y 225",null,null,null,null,null,null,null,null,null,null,null,null,0]
["226 y 250",null,null,null,null,null,null,null,null,null,null,null,null,0]
["251 y 275",null,null,null,null,null,null,null,null,null,null,null,null,0]
["276 y 300",null,null,null,null,null,null,null,null,null,null,null,null,0]
["BTS2"]
["301 y 325",null,null,null,null,null,null,null,null,null,null,null,null,0]
["326 y 350",null,null,null,null,null,null,null,null,null,null,null,null,0]
["351 y 375",null,null,null,null,null,null,null,null,null,null,null,null,0]
["376 y 400",null,null,null,null,null,null,null,null,null,null,null,null,0]
["401 y 425",null,null,null,null,null,null,null,null,null,null,null,null,0]
["426 y 450",null,null,null,null,null,null,null,null,null,null,null,null,0]
["451 y 475",null,null,null,null,null,null,null,null,null,null,null,null,0]
["476 y 500",null,null,null,null,null,null,null,null,null,null,null,null,0]
["501 y 525",null,null,null,null,null,null,null,null,null,null,null,null,0]
["526 y 550",null,null,null,null,null,null,null,null,null,null,null,null,0]
["551 y 575",null,null,null,null,null,null,null,null,null,null,null,null,0]
["576 y 600",null,null,null,null,null,null,null,null,null,null,null,null,0]
["601 y 625",null,null,null,null,null,null,null,null,null,null,null,null,0]
["626 y 650",null,null,null,null,null,null,null,null,null,null,null,null,0]
["651 y 675",null,null,null,null,null,null,null,null,null,null,null,null,0]
["676 y 700",null,null,null,null,null,null,null,null,null,null,null,null,0]
["701 y 725",null,null,null,null,null,null,null,null,null,null,null,null,0]
["726 y 750",null,null,null,null,null,null,null,null,null,null,null,null,0]
["BTS3"]
["751 y 1000",null,null,null,null,null,null,null,null,null,null,null,null,0]
["1001 y 1500",null,null,null,null,null,null,null,null,null,null,null,null,0]
["1501 y 2000",null,null,null,null,null,null,null,null,null,null,null,null,0]
["2001 y 2500",null,null,null,null,null,null,null,null,null,null,null,null,0]
["2501 y 3000",null,null,null,null,null,null,null,null,null,null,null,null,0]
["Mayor a 3000 ",null,null,null,null,null,null,null,null,null,null,null,null,0]
["TOTAL BTS",0,0,0,0,0,0,0,0,0,0,0,0,0]
["BTD"]
["1-100"]
["101-500"]
["501-1000"]
["1001-1500"]
["1501-2000"]
["2001-2500"]
["2501-3000"]
["3001-5000"]
["5001-10000"]
["10001-30000"]
["30001-50000"]
["50000 y más"]
["TOTAL BTD",0,0,0,0,0,0,0,0,0,0,0,0,0]
[]
["REGULARES","enero","febrero","marzo","abril","mayo","junio","julio","agosto","sept","oct","nov","dic","TOTAL"]
["BTS1"]
["Menor o Igual                         a 25",null,null,null,null,null,null,null,null,null,null,null,null,{"$f":"+SUM(B66:M66)","v":0}]
["26 y 50",null,null,null,null,null,null,null,null,null,null,null,null,{"$f":"+SUM(B67:M67)","v":0}]
["51 y 75",null,null,null,null,null,null,null,null,null,null,null,null,0]
["76 y 100",null,null,null,null,null,null,null,null,null,null,null,null,0]
["101 y 125",null,null,null,null,null,null,null,null,null,null,null,null,0]
["126 y 150",null,null,null,null,null,null,null,null,null,null,null,null,0]
["151 y 175",null,null,null,null,null,null,null,null,null,null,null,null,0]
["176 y 200",null,null,null,null,null,null,null,null,null,null,null,null,0]
["201 y 225",null,null,null,null,null,null,null,null,null,null,null,null,0]
["226 y 250",null,null,null,null,null,null,null,null,null,null,null,null,0]
["251 y 275",null,null,null,null,null,null,null,null,null,null,null,null,0]
["276 y 300",null,null,null,null,null,null,null,null,null,null,null,null,0]
["BTS2"]
["301 y 325",null,null,null,null,null,null,null,null,null,null,null,null,0]
["326 y 350",null,null,null,null,null,null,null,null,null,null,null,null,0]
["351 y 375",null,null,null,null,null,null,null,null,null,null,null,null,0]
["376 y 400",null,null,null,null,null,null,null,null,null,null,null,null,0]
["401 y 425",null,null,null,null,null,null,null,null,null,null,null,null,0]
["426 y 450",null,null,null,null,null,null,null,null,null,null,null,null,0]
["451 y 475",null,null,null,null,null,null,null,null,null,null,null,null,0]
["476 y 500",null,null,null,null,null,null,null,null,null,null,null,null,0]
["501 y 525",null,null,null,null,null,null,null,null,null,null,null,null,0]
["526 y 550",null,null,null,null,null,null,null,null,null,null,null,null,0]
["551 y 575",null,null,null,null,null,null,null,null,null,null,null,null,0]
["576 y 600",null,null,null,null,null,null,null,null,null,null,null,null,0]
["601 y 625",null,null,null,null,null,null,null,null,null,null,null,null,0]
["626 y 650",null,null,null,null,null,null,null,null,null,null,null,null,0]
["651 y 675",null,null,null,null,null,null,null,null,null,null,null,null,0]
["676 y 700",null,null,null,null,null,null,null,null,null,null,null,null,0]
["701 y 725",null,null,null,null,null,null,null,null,null,null,null,null,0]
["726 y 750",null,null,null,null,null,null,null,null,null,null,null,null,0]
["BTS3"]
["751 y 1000",null,null,null,null,null,null,null,null,null,null,null,null,0]
["1001 y 1500",null,null,null,null,null,null,null,null,null,null,null,null,0]
["1501 y 2000",null,null,null,null,null,null,null,null,null,null,null,null,0]
["2001 y 2500",null,null,null,null,null,null,null,null,null,null,null,null,0]
["2501 y 3000",null,null,null,null,null,null,null,null,null,null,null,null,0]
["Mayor a 3000",null,null,null,null,null,null,null,null,null,null,null,null,0]
["TOTAL BTS",{"$f":"+SUM(B66:B103)","v":0},0,0,0,0,0,0,0,0,0,0,0,{"$f":"+SUM(N66:N103)","v":0}]
["BTD"]
["1-100"]
["101-500"]
["501-1000"]
["1001-1500"]
["1501-2000"]
["2001-2500"]
["2501-3000"]
["3001-5000"]
["5001-10000"]
["10001-30000"]
["30001-50000"]
["50000 y más"]
["TOTAL BTD",{"$f":"SUM(B106:B117)","v":0},{"$f":"SUM(C106:C117)","v":0},{"$f":"SUM(D106:D117)","v":0},{"$f":"SUM(E106:E117)","v":0},{"$f":"SUM(F106:F117)","v":0},{"$f":"SUM(G106:G117)","v":0},{"$f":"SUM(H106:H117)","v":0},{"$f":"SUM(I106:I117)","v":0},{"$f":"SUM(J106:J117)","v":0},{"$f":"SUM(K106:K117)","v":0},{"$f":"SUM(L106:L117)","v":0},{"$f":"SUM(M106:M117)","v":0},{"$f":"SUM(N106:N117)","v":0}]
[]
["AGRO","enero","febrero","marzo","abril","mayo","junio","julio","agosto","sept","oct","nov","dic","TOTAL"]
["BTS1"]
["Menor o Igual                         a 25",null,null,null,null,null,null,null,null,null,null,null,null,{"$f":"+SUM(B122:M122)","v":0}]
["26 y 50",null,null,null,null,null,null,null,null,null,null,null,null,{"$f":"+SUM(B123:M123)","v":0}]
["51 y 75",null,null,null,null,null,null,null,null,null,null,null,null,0]
["76 y 100",null,null,null,null,null,null,null,null,null,null,null,null,0]
["101 y 125",null,null,null,null,null,null,null,null,null,null,null,null,0]
["126 y 150",null,null,null,null,null,null,null,null,null,null,null,null,0]
["151 y 175",null,null,null,null,null,null,null,null,null,null,null,null,0]
["176 y 200",null,null,null,null,null,null,null,null,null,null,null,null,0]
["201 y 225",null,null,null,null,null,null,null,null,null,null,null,null,0]
["226 y 250",null,null,null,null,null,null,null,null,null,null,null,null,0]
["251 y 275",null,null,null,null,null,null,null,null,null,null,null,null,0]
["276 y 300",null,null,null,null,null,null,null,null,null,null,null,null,0]
["BTS2"]
["301 y 325",null,null,null,null,null,null,null,null,null,null,null,null,0]
["326 y 350",null,null,null,null,null,null,null,null,null,null,null,null,0]
["351 y 375",null,null,null,null,null,null,null,null,null,null,null,null,0]
["376 y 400",null,null,null,null,null,null,null,null,null,null,null,null,0]
["401 y 425",null,null,null,null,null,null,null,null,null,null,null,null,0]
["426 y 450",null,null,null,null,null,null,null,null,null,null,null,null,0]
["451 y 475",null,null,null,null,null,null,null,null,null,null,null,null,0]
["476 y 500",null,null,null,null,null,null,null,null,null,null,null,null,0]
["501 y 525",null,null,null,null,null,null,null,null,null,null,null,null,0]
["526 y 550",null,null,null,null,null,null,null,null,null,null,null,null,0]
["551 y 575",null,null,null,null,null,null,null,null,null,null,null,null,0]
["576 y 600",null,null,null,null,null,null,null,null,null,null,null,null,0]
["601 y 625",null,null,null,null,null,null,null,null,null,null,null,null,0]
["626 y 650",null,null,null,null,null,null,null,null,null,null,null,null,0]
["651 y 675",null,null,null,null,null,null,null,null,null,null,null,null,0]
["676 y 700",null,null,null,null,null,null,null,null,null,null,null,null,0]
["701 y 725",null,null,null,null,null,null,null,null,null,null,null,null,0]
["726 y 750",null,null,null,null,null,null,null,null,null,null,null,null,0]
["BTS3"]
["751 y 1000",null,null,null,null,null,null,null,null,null,null,null,null,0]
["1001 y 1500",null,null,null,null,null,null,null,null,null,null,null,null,0]
["1501 y 2000",null,null,null,null,null,null,null,null,null,null,null,null,0]
["2001 y 2500",null,null,null,null,null,null,null,null,null,null,null,null,0]
["2501 y 3000",null,null,null,null,null,null,null,null,null,null,null,null,0]
["Mayor a 3000",null,null,null,null,null,null,null,null,null,null,null,null,0]
["TOTAL BTS",{"$f":"+SUM(B122:B159)","v":0},0,0,0,0,0,0,0,0,0,0,0,{"$f":"+SUM(N122:N159)","v":0}]
["BTD"]
["1-100"]
["101-500"]
["501-1000"]
["1001-1500"]
["1501-2000"]
["2001-2500"]
["2501-3000"]
["3001-5000"]
["5001-10000"]
["10001-30000"]
["30001-50000"]
["50000 y más"]
["TOTAL BTD",{"$f":"SUM(B162:B173)","v":0},{"$f":"SUM(C162:C173)","v":0},{"$f":"SUM(D162:D173)","v":0},{"$f":"SUM(E162:E173)","v":0},{"$f":"SUM(F162:F173)","v":0},{"$f":"SUM(G162:G173)","v":0},{"$f":"SUM(H162:H173)","v":0},{"$f":"SUM(I162:I173)","v":0},{"$f":"SUM(J162:J173)","v":0},{"$f":"SUM(K162:K173)","v":0},{"$f":"SUM(L162:L173)","v":0},{"$f":"SUM(M162:M173)","v":0},{"$f":"SUM(N162:N173)","v":0}]
[]
["JUBILADOS","enero","febrero","marzo","abril","mayo","junio","julio","agosto","sept","oct","nov","dic","TOTAL"]
["BTS1"]
["Menor o Igual                       a 25",null,null,null,null,null,null,null,null,null,null,null,null,{"$f":"+SUM(B178:M178)","v":0}]
["26 y 50",null,null,null,null,null,null,null,null,null,null,null,null,{"$f":"+SUM(B179:M179)","v":0}]
["51 y 75",null,null,null,null,null,null,null,null,null,null,null,null,0]
["76 y 100",null,null,null,null,null,null,null,null,null,null,null,null,0]
["101 y 125",null,null,null,null,null,null,null,null,null,null,null,null,0]
["126 y 150",null,null,null,null,null,null,null,null,null,null,null,null,0]
["151 y 175",null,null,null,null,null,null,null,null,null,null,null,null,0]
["176 y 200",null,null,null,null,null,null,null,null,null,null,null,null,0]
["201 y 225",null,null,null,null,null,null,null,null,null,null,null,null,0]
["226 y 250",null,null,null,null,null,null,null,null,null,null,null,null,0]
["251 y 275",null,null,null,null,null,null,null,null,null,null,null,null,0]
["276 y 300",null,null,null,null,null,null,null,null,null,null,null,null,0]
["BTS2"]
["301 y 325",null,null,null,null,null,null,null,null,null,null,null,null,0]
["326 y 350",null,null,null,null,null,null,null,null,null,null,null,null,0]
["351 y 375",null,null,null,null,null,null,null,null,null,null,null,null,0]
["376 y 400",null,null,null,null,null,null,null,null,null,null,null,null,0]
["401 y 425",null,null,null,null,null,null,null,null,null,null,null,null,0]
["426 y 450",null,null,null,null,null,null,null,null,null,null,null,null,0]
["451 y 475",null,null,null,null,null,null,null,null,null,null,null,null,0]
["476 y 500",null,null,null,null,null,null,null,null,null,null,null,null,0]
["501 y 525",null,null,null,null,null,null,null,null,null,null,null,null,0]
["526 y 550",null,null,null,null,null,null,null,null,null,null,null,null,0]
["551 y 575",null,null,null,null,null,null,null,null,null,null,null,null,0]
["576 y 600",null,null,null,null,null,null,null,null,null,null,null,null,0]
["601 y 625",null,null,null,null,null,null,null,null,null,null,null,null,0]
["626 y 650",null,null,null,null,null,null,null,null,null,null,null,null,0]
["651 y 675",null,null,null,null,null,null,null,null,null,null,null,null,0]
["676 y 700",null,null,null,null,null,null,null,null,null,null,null,null,0]
["701 y 725",null,null,null,null,null,null,null,null,null,null,null,null,0]
["726 y 750",null,null,null,null,null,null,null,null,null,null,null,null,0]
["BTS3"]
["751 y 1000",null,null,null,null,null,null,null,null,null,null,null,null,0]
["1001 y 1500",null,null,null,null,null,null,null,null,null,null,null,null,0]
["1501 y 2000",null,null,null,null,null,null,null,null,null,null,null,null,0]
["2001 y 2500",null,null,null,null,null,null,null,null,null,null,null,null,0]
["2501 y 3000",null,null,null,null,null,null,null,null,null,null,null,null,0]
["Mayor a 3000",null,null,null,null,null,null,null,null,null,null,null,null,0]
["TOTAL BTS",{"$f":"+SUM(B178:B215)","v":0},0,0,0,0,0,0,0,0,0,0,0,{"$f":"+SUM(N178:N215)","v":0}]
["BTD"]
["1-100"]
["101-500"]
["501-1000"]
["1001-1500"]
["1501-2000"]
["2001-2500"]
["2501-3000"]
["3001-5000"]
["5001-10000"]
["10001-30000"]
["30001-50000"]
["50000 y más"]
["TOTAL BTD",{"$f":"SUM(B218:B229)","v":0},{"$f":"SUM(C218:C229)","v":0},{"$f":"SUM(D218:D229)","v":0},{"$f":"SUM(E218:E229)","v":0},{"$f":"SUM(F218:F229)","v":0},{"$f":"SUM(G218:G229)","v":0},{"$f":"SUM(H218:H229)","v":0},{"$f":"SUM(I218:I229)","v":0},{"$f":"SUM(J218:J229)","v":0},{"$f":"SUM(K218:K229)","v":0},{"$f":"SUM(L218:L229)","v":0},{"$f":"SUM(M218:M229)","v":0},{"$f":"SUM(N218:N229)","v":0}]
[]
["P. POLÍTICOS","enero","febrero","marzo","abril","mayo","junio","julio","agosto","sept","ocy","nov","dic","TOTAL"]
["BTS1"]
["Menor o Igual                              a 25",null,null,null,null,null,null,null,null,null,null,null,null,{"$f":"+SUM(B234:M234)","v":0}]
["26 y 50",null,null,null,null,null,null,null,null,null,null,null,null,{"$f":"+SUM(B235:M235)","v":0}]
["51 y 75",null,null,null,null,null,null,null,null,null,null,null,null,0]
["76 y 100",null,null,null,null,null,null,null,null,null,null,null,null,0]
["101 y 125",null,null,null,null,null,null,null,null,null,null,null,null,0]
["126 y 150",null,null,null,null,null,null,null,null,null,null,null,null,0]
["151 y 175",null,null,null,null,null,null,null,null,null,null,null,null,0]
["176 y 200",null,null,null,null,null,null,null,null,null,null,null,null,0]
["201 y 225",null,null,null,null,null,null,null,null,null,null,null,null,0]
["226 y 250",null,null,null,null,null,null,null,null,null,null,null,null,0]
["251 y 275",null,null,null,null,null,null,null,null,null,null,null,null,0]
["276 y 300",null,null,null,null,null,null,null,null,null,null,null,null,0]
["BTS2"]
["301 y 325",null,null,null,null,null,null,null,null,null,null,null,null,0]
["326 y 350",null,null,null,null,null,null,null,null,null,null,null,null,0]
["351 y 375",null,null,null,null,null,null,null,null,null,null,null,null,0]
["376 y 400",null,null,null,null,null,null,null,null,null,null,null,null,0]
["401 y 425",null,null,null,null,null,null,null,null,null,null,null,null,0]
["426 y 450",null,null,null,null,null,null,null,null,null,null,null,null,0]
["451 y 475",null,null,null,null,null,null,null,null,null,null,null,null,0]
["476 y 500",null,null,null,null,null,null,null,null,null,null,null,null,0]
["501 y 525",null,null,null,null,null,null,null,null,null,null,null,null,0]
["526 y 550",null,null,null,null,null,null,null,null,null,null,null,null,0]
["551 y 575",null,null,null,null,null,null,null,null,null,null,null,null,0]
["576 y 600",null,null,null,null,null,null,null,null,null,null,null,null,0]
["601 y 625",null,null,null,null,null,null,null,null,null,null,null,null,0]
["626 y 650",null,null,null,null,null,null,null,null,null,null,null,null,0]
["651 y 675",null,null,null,null,null,null,null,null,null,null,null,null,0]
["676 y 700",null,null,null,null,null,null,null,null,null,null,null,null,0]
["701 y 725",null,null,null,null,null,null,null,null,null,null,null,null,0]
["726 y 750",null,null,null,null,null,null,null,null,null,null,null,null,0]
["BTS3"]
["751 y 1000",null,null,null,null,null,null,null,null,null,null,null,null,0]
["1001 y 1500",null,null,null,null,null,null,null,null,null,null,null,null,0]
["1501 y 2000",null,null,null,null,null,null,null,null,null,null,null,null,0]
["2001 y 2500",null,null,null,null,null,null,null,null,null,null,null,null,0]
["2501 y 3000",null,null,null,null,null,null,null,null,null,null,null,null,0]
["Mayor a 3000",null,null,null,null,null,null,null,null,null,null,null,null,0]
["TOTAL BTS",{"$f":"+SUM(B234:B271)","v":0},0,0,0,0,0,0,0,0,0,0,0,{"$f":"+SUM(N234:N271)","v":0}]
["BTD"]
["1-100"]
["101-500"]
["501-1000"]
["1001-1500"]
["1501-2000"]
["2001-2500"]
["2501-3000"]
["3001-5000"]
["5001-10000"]
["10001-30000"]
["30001-50000"]
["50000 y más"]
["TOTAL BTD",{"$f":"SUM(B274:B285)","v":0},{"$f":"SUM(C274:C285)","v":0},{"$f":"SUM(D274:D285)","v":0},{"$f":"SUM(E274:E285)","v":0},{"$f":"SUM(F274:F285)","v":0},{"$f":"SUM(G274:G285)","v":0},{"$f":"SUM(H274:H285)","v":0},{"$f":"SUM(I274:I285)","v":0},{"$f":"SUM(J274:J285)","v":0},{"$f":"SUM(K274:K285)","v":0},{"$f":"SUM(L274:L285)","v":0},{"$f":"SUM(M274:M285)","v":0},{"$f":"SUM(N274:N285)","v":0}]

{"sheet":"11 E de 34","index":18,"n_rows":286,"n_cols":14,"rows_kept":286,"cut":false,"hidden":false,"merged":[[5,14,5,24],[2,0,2,13],[3,0,3,13],[1,0,1,13],[4,2,4,4]]}
[]
["Formulario E-120-D"]
["(11 E de 34)"]
["CANTIDAD DE CLIENTES POR MES\n(Tarifa: Baja Tensión Simple)"]
[null,null,"NOMBRE DE LA EMPRESA:"]
[null,null,null,null,"AÑO:",null,null,"SEMESTRE:"]
[]
[null,"Ene","Feb","Mar","Abr","May","Jun","Jul","Ago","Sep","Oct","Nov","Dic","TOTAL"]
["BTS1"]
["Menor o Igual                     a 25",null,null,null,null,null,null,null,null,null,null,null,null,0]
["26 y 50",null,null,null,null,null,null,null,null,null,null,null,null,0]
["51 y 75",null,null,null,null,null,null,null,null,null,null,null,null,0]
["76 y 100",null,null,null,null,null,null,null,null,null,null,null,null,0]
["101 y 125",null,null,null,null,null,null,null,null,null,null,null,null,0]
["126 y 150",null,null,null,null,null,null,null,null,null,null,null,null,0]
["151 y 175",null,null,null,null,null,null,null,null,null,null,null,null,0]
["176 y 200",null,null,null,null,null,null,null,null,null,null,null,null,0]
["201 y 225",null,null,null,null,null,null,null,null,null,null,null,null,0]
["226 y 250",null,null,null,null,null,null,null,null,null,null,null,null,0]
["251 y 275",null,null,null,null,null,null,null,null,null,null,null,null,0]
["276 y 300",null,null,null,null,null,null,null,null,null,null,null,null,0]
["BTS2"]
["301 y 325",null,null,null,null,null,null,null,null,null,null,null,null,0]
["326 y 350",null,null,null,null,null,null,null,null,null,null,null,null,0]
["351 y 375",null,null,null,null,null,null,null,null,null,null,null,null,0]
["376 y 400",null,null,null,null,null,null,null,null,null,null,null,null,0]
["401 y 425",null,null,null,null,null,null,null,null,null,null,null,null,0]
["426 y 450",null,null,null,null,null,null,null,null,null,null,null,null,0]
["451 y 475",null,null,null,null,null,null,null,null,null,null,null,null,0]
["476 y 500",null,null,null,null,null,null,null,null,null,null,null,null,0]
["501 y 525",null,null,null,null,null,null,null,null,null,null,null,null,0]
["526 y 550",null,null,null,null,null,null,null,null,null,null,null,null,0]
["551 y 575",null,null,null,null,null,null,null,null,null,null,null,null,0]
["576 y 600",null,null,null,null,null,null,null,null,null,null,null,null,0]
["601 y 625",null,null,null,null,null,null,null,null,null,null,null,null,0]
["626 y 650",null,null,null,null,null,null,null,null,null,null,null,null,0]
["651 y 675",null,null,null,null,null,null,null,null,null,null,null,null,0]
["676 y 700",null,null,null,null,null,null,null,null,null,null,null,null,0]
["701 y 725",null,null,null,null,null,null,null,null,null,null,null,null,0]
["726 y 750",null,null,null,null,null,null,null,null,null,null,null,null,0]
["BTS3"]
["751 y 1000",null,null,null,null,null,null,null,null,null,null,null,null,0]
["1001 y 1500",null,null,null,null,null,null,null,null,null,null,null,null,0]
["1501 y 2000",null,null,null,null,null,null,null,null,null,null,null,null,0]
["2001 y 2500",null,null,null,null,null,null,null,null,null,null,null,null,0]
["2501 y 3000",null,null,null,null,null,null,null,null,null,null,null,null,0]
["Mayor a 3000 ",null,null,null,null,null,null,null,null,null,null,null,null,0]
["TOTAL BTS",0,0,0,0,0,0,0,0,0,0,0,0,0]
["BTD"]
["1-100"]
["101-500"]
["501-1000"]
["1001-1500"]
["1501-2000"]
["2001-2500"]
["2501-3000"]
["3001-5000"]
["5001-10000"]
["10001-30000"]
["30001-50000"]
["50000 y más"]
["TOTAL BTD",0,0,0,0,0,0,0,0,0,0,0,0,0]
[]
["REGULARES","enero","febrero","marzo","abril","mayo","junio","julio","agosto","sept","oct","nov","dic","TOTAL"]
["BTS1"]
["Menor o Igual                      a 25",null,null,null,null,null,null,null,null,null,null,null,null,{"$f":"+SUM(B66:M66)","v":0}]
["26 y 50",null,null,null,null,null,null,null,null,null,null,null,null,{"$f":"+SUM(B67:M67)","v":0}]
["51 y 75",null,null,null,null,null,null,null,null,null,null,null,null,0]
["76 y 100",null,null,null,null,null,null,null,null,null,null,null,null,0]
["101 y 125",null,null,null,null,null,null,null,null,null,null,null,null,0]
["126 y 150",null,null,null,null,null,null,null,null,null,null,null,null,0]
["151 y 175",null,null,null,null,null,null,null,null,null,null,null,null,0]
["176 y 200",null,null,null,null,null,null,null,null,null,null,null,null,0]
["201 y 225",null,null,null,null,null,null,null,null,null,null,null,null,0]
["226 y 250",null,null,null,null,null,null,null,null,null,null,null,null,0]
["251 y 275",null,null,null,null,null,null,null,null,null,null,null,null,0]
["276 y 300",null,null,null,null,null,null,null,null,null,null,null,null,0]
["BTS2"]
["301 y 325",null,null,null,null,null,null,null,null,null,null,null,null,0]
["326 y 350",null,null,null,null,null,null,null,null,null,null,null,null,0]
["351 y 375",null,null,null,null,null,null,null,null,null,null,null,null,0]
["376 y 400",null,null,null,null,null,null,null,null,null,null,null,null,0]
["401 y 425",null,null,null,null,null,null,null,null,null,null,null,null,0]
["426 y 450",null,null,null,null,null,null,null,null,null,null,null,null,0]
["451 y 475",null,null,null,null,null,null,null,null,null,null,null,null,0]
["476 y 500",null,null,null,null,null,null,null,null,null,null,null,null,0]
["501 y 525",null,null,null,null,null,null,null,null,null,null,null,null,0]
["526 y 550",null,null,null,null,null,null,null,null,null,null,null,null,0]
["551 y 575",null,null,null,null,null,null,null,null,null,null,null,null,0]
["576 y 600",null,null,null,null,null,null,null,null,null,null,null,null,0]
["601 y 625",null,null,null,null,null,null,null,null,null,null,null,null,0]
["626 y 650",null,null,null,null,null,null,null,null,null,null,null,null,0]
["651 y 675",null,null,null,null,null,null,null,null,null,null,null,null,0]
["676 y 700",null,null,null,null,null,null,null,null,null,null,null,null,0]
["701 y 725",null,null,null,null,null,null,null,null,null,null,null,null,0]
["726 y 750",null,null,null,null,null,null,null,null,null,null,null,null,0]
["BTS3"]
["751 y 1000",null,null,null,null,null,null,null,null,null,null,null,null,0]
["1001 y 1500",null,null,null,null,null,null,null,null,null,null,null,null,0]
["1501 y 2000",null,null,null,null,null,null,null,null,null,null,null,null,0]
["2001 y 2500",null,null,null,null,null,null,null,null,null,null,null,null,0]
["2501 y 3000",null,null,null,null,null,null,null,null,null,null,null,null,0]
["Mayor a 3000",null,null,null,null,null,null,null,null,null,null,null,null,0]
["TOTAL BTS",{"$f":"+SUM(B66:B103)","v":0},0,0,0,0,0,0,0,0,0,0,0,{"$f":"+SUM(N66:N103)","v":0}]
["BTD"]
["1-100"]
["101-500"]
["501-1000"]
["1001-1500"]
["1501-2000"]
["2001-2500"]
["2501-3000"]
["3001-5000"]
["5001-10000"]
["10001-30000"]
["30001-50000"]
["50000 y más"]
["TOTAL BTD",{"$f":"SUM(B106:B117)","v":0},{"$f":"SUM(C106:C117)","v":0},0,0,0,0,0,0,0,0,0,0,0]
[]
["AGRO","enero","febrero","marzo","abril","mayo","junio","julio","agosto","sept","oct","nov","dic","TOTAL"]
["BTS1"]
["Menor o Igual                            a 25",null,null,null,null,null,null,null,null,null,null,null,null,{"$f":"+SUM(B122:M122)","v":0}]
["26 y 50",null,null,null,null,null,null,null,null,null,null,null,null,{"$f":"+SUM(B123:M123)","v":0}]
["51 y 75",null,null,null,null,null,null,null,null,null,null,null,null,0]
["76 y 100",null,null,null,null,null,null,null,null,null,null,null,null,0]
["101 y 125",null,null,null,null,null,null,null,null,null,null,null,null,0]
["126 y 150",null,null,null,null,null,null,null,null,null,null,null,null,0]
["151 y 175",null,null,null,null,null,null,null,null,null,null,null,null,0]
["176 y 200",null,null,null,null,null,null,null,null,null,null,null,null,0]
["201 y 225",null,null,null,null,null,null,null,null,null,null,null,null,0]
["226 y 250",null,null,null,null,null,null,null,null,null,null,null,null,0]
["251 y 275",null,null,null,null,null,null,null,null,null,null,null,null,0]
["276 y 300",null,null,null,null,null,null,null,null,null,null,null,null,0]
["BTS2"]
["301 y 325",null,null,null,null,null,null,null,null,null,null,null,null,0]
["326 y 350",null,null,null,null,null,null,null,null,null,null,null,null,0]
["351 y 375",null,null,null,null,null,null,null,null,null,null,null,null,0]
["376 y 400",null,null,null,null,null,null,null,null,null,null,null,null,0]
["401 y 425",null,null,null,null,null,null,null,null,null,null,null,null,0]
["426 y 450",null,null,null,null,null,null,null,null,null,null,null,null,0]
["451 y 475",null,null,null,null,null,null,null,null,null,null,null,null,0]
["476 y 500",null,null,null,null,null,null,null,null,null,null,null,null,0]
["501 y 525",null,null,null,null,null,null,null,null,null,null,null,null,0]
["526 y 550",null,null,null,null,null,null,null,null,null,null,null,null,0]
["551 y 575",null,null,null,null,null,null,null,null,null,null,null,null,0]
["576 y 600",null,null,null,null,null,null,null,null,null,null,null,null,0]
["601 y 625",null,null,null,null,null,null,null,null,null,null,null,null,0]
["626 y 650",null,null,null,null,null,null,null,null,null,null,null,null,0]
["651 y 675",null,null,null,null,null,null,null,null,null,null,null,null,0]
["676 y 700",null,null,null,null,null,null,null,null,null,null,null,null,0]
["701 y 725",null,null,null,null,null,null,null,null,null,null,null,null,0]
["726 y 750",null,null,null,null,null,null,null,null,null,null,null,null,0]
["BTS3"]
["751 y 1000",null,null,null,null,null,null,null,null,null,null,null,null,0]
["1001 y 1500",null,null,null,null,null,null,null,null,null,null,null,null,0]
["1501 y 2000",null,null,null,null,null,null,null,null,null,null,null,null,0]
["2001 y 2500",null,null,null,null,null,null,null,null,null,null,null,null,0]
["2501 y 3000",null,null,null,null,null,null,null,null,null,null,null,null,0]
["Mayor a 3000",null,null,null,null,null,null,null,null,null,null,null,null,0]
["TOTAL BTS",{"$f":"+SUM(B122:B159)","v":0},0,0,0,0,0,0,0,0,0,0,0,{"$f":"+SUM(N122:N159)","v":0}]
["BTD"]
["1-100"]
["101-500"]
["501-1000"]
["1001-1500"]
["1501-2000"]
["2001-2500"]
["2501-3000"]
["3001-5000"]
["5001-10000"]
["10001-30000"]
["30001-50000"]
["50000 y más"]
["TOTAL BTD",{"$f":"SUM(B162:B173)","v":0},{"$f":"SUM(C162:C173)","v":0},0,0,0,0,0,0,0,0,0,0,0]
[]
["JUBILADOS","enero","febrero","marzo","abril","mayo","junio","julio","agosto","sept","oct","nov","dic","TOTAL"]
["BTS1"]
["Menor o Igual                        a 25",null,null,null,null,null,null,null,null,null,null,null,null,{"$f":"+SUM(B178:M178)","v":0}]
["26 y 50",null,null,null,null,null,null,null,null,null,null,null,null,{"$f":"+SUM(B179:M179)","v":0}]
["51 y 75",null,null,null,null,null,null,null,null,null,null,null,null,0]
["76 y 100",null,null,null,null,null,null,null,null,null,null,null,null,0]
["101 y 125",null,null,null,null,null,null,null,null,null,null,null,null,0]
["126 y 150",null,null,null,null,null,null,null,null,null,null,null,null,0]
["151 y 175",null,null,null,null,null,null,null,null,null,null,null,null,0]
["176 y 200",null,null,null,null,null,null,null,null,null,null,null,null,0]
["201 y 225",null,null,null,null,null,null,null,null,null,null,null,null,0]
["226 y 250",null,null,null,null,null,null,null,null,null,null,null,null,0]
["251 y 275",null,null,null,null,null,null,null,null,null,null,null,null,0]
["276 y 300",null,null,null,null,null,null,null,null,null,null,null,null,0]
["BTS2"]
["301 y 325",null,null,null,null,null,null,null,null,null,null,null,null,0]
["326 y 350",null,null,null,null,null,null,null,null,null,null,null,null,0]
["351 y 375",null,null,null,null,null,null,null,null,null,null,null,null,0]
["376 y 400",null,null,null,null,null,null,null,null,null,null,null,null,0]
["401 y 425",null,null,null,null,null,null,null,null,null,null,null,null,0]
["426 y 450",null,null,null,null,null,null,null,null,null,null,null,null,0]
["451 y 475",null,null,null,null,null,null,null,null,null,null,null,null,0]
["476 y 500",null,null,null,null,null,null,null,null,null,null,null,null,0]
["501 y 525",null,null,null,null,null,null,null,null,null,null,null,null,0]
["526 y 550",null,null,null,null,null,null,null,null,null,null,null,null,0]
["551 y 575",null,null,null,null,null,null,null,null,null,null,null,null,0]
["576 y 600",null,null,null,null,null,null,null,null,null,null,null,null,0]
["601 y 625",null,null,null,null,null,null,null,null,null,null,null,null,0]
["626 y 650",null,null,null,null,null,null,null,null,null,null,null,null,0]
["651 y 675",null,null,null,null,null,null,null,null,null,null,null,null,0]
["676 y 700",null,null,null,null,null,null,null,null,null,null,null,null,0]
["701 y 725",null,null,null,null,null,null,null,null,null,null,null,null,0]
["726 y 750",null,null,null,null,null,null,null,null,null,null,null,null,0]
["BTS3"]
["751 y 1000",null,null,null,null,null,null,null,null,null,null,null,null,0]
["1001 y 1500",null,null,null,null,null,null,null,null,null,null,null,null,0]
["1501 y 2000",null,null,null,null,null,null,null,null,null,null,null,null,0]
["2001 y 2500",null,null,null,null,null,null,null,null,null,null,null,null,0]
["2501 y 3000",null,null,null,null,null,null,null,null,null,null,null,null,0]
["Mayor a 3000",null,null,null,null,null,null,null,null,null,null,null,null,0]
["TOTAL BTS",{"$f":"+SUM(B178:B215)","v":0},0,0,0,0,0,0,0,0,0,0,0,{"$f":"+SUM(N178:N215)","v":0}]
["BTD"]
["1-100"]
["101-500"]
["501-1000"]
["1001-1500"]
["1501-2000"]
["2001-2500"]
["2501-3000"]
["3001-5000"]
["5001-10000"]
["10001-30000"]
["30001-50000"]
["50000 y más"]
["TOTAL BTD",{"$f":"SUM(B218:B229)","v":0},{"$f":"SUM(C218:C229)","v":0},0,0,0,0,0,0,0,0,0,0,0]
[]
["P. POLÍTICOS","enero","febrero","marzo","abril","mayo","junio","julio","agosto","sept","oct","nov","dic","TOTAL"]
["BTS1"]
["Menor o Igual                         a 25",null,null,null,null,null,null,null,null,null,null,null,null,{"$f":"+SUM(B234:M234)","v":0}]
["26 y 50",null,null,null,null,null,null,null,null,null,null,null,null,{"$f":"+SUM(B235:M235)","v":0}]
["51 y 75",null,null,null,null,null,null,null,null,null,null,null,null,0]
["76 y 100",null,null,null,null,null,null,null,null,null,null,null,null,0]
["101 y 125",null,null,null,null,null,null,null,null,null,null,null,null,0]
["126 y 150",null,null,null,null,null,null,null,null,null,null,null,null,0]
["151 y 175",null,null,null,null,null,null,null,null,null,null,null,null,0]
["176 y 200",null,null,null,null,null,null,null,null,null,null,null,null,0]
["201 y 225",null,null,null,null,null,null,null,null,null,null,null,null,0]
["226 y 250",null,null,null,null,null,null,null,null,null,null,null,null,0]
["251 y 275",null,null,null,null,null,null,null,null,null,null,null,null,0]
["276 y 300",null,null,null,null,null,null,null,null,null,null,null,null,0]
["BTS2"]
["301 y 325",null,null,null,null,null,null,null,null,null,null,null,null,0]
["326 y 350",null,null,null,null,null,null,null,null,null,null,null,null,0]
["351 y 375",null,null,null,null,null,null,null,null,null,null,null,null,0]
["376 y 400",null,null,null,null,null,null,null,null,null,null,null,null,0]
["401 y 425",null,null,null,null,null,null,null,null,null,null,null,null,0]
["426 y 450",null,null,null,null,null,null,null,null,null,null,null,null,0]
["451 y 475",null,null,null,null,null,null,null,null,null,null,null,null,0]
["476 y 500",null,null,null,null,null,null,null,null,null,null,null,null,0]
["501 y 525",null,null,null,null,null,null,null,null,null,null,null,null,0]
["526 y 550",null,null,null,null,null,null,null,null,null,null,null,null,0]
["551 y 575",null,null,null,null,null,null,null,null,null,null,null,null,0]
["576 y 600",null,null,null,null,null,null,null,null,null,null,null,null,0]
["601 y 625",null,null,null,null,null,null,null,null,null,null,null,null,0]
["626 y 650",null,null,null,null,null,null,null,null,null,null,null,null,0]
["651 y 675",null,null,null,null,null,null,null,null,null,null,null,null,0]
["676 y 700",null,null,null,null,null,null,null,null,null,null,null,null,0]
["701 y 725",null,null,null,null,null,null,null,null,null,null,null,null,0]
["726 y 750",null,null,null,null,null,null,null,null,null,null,null,null,0]
["BTS3"]
["751 y 1000",null,null,null,null,null,null,null,null,null,null,null,null,0]
["1001 y 1500",null,null,null,null,null,null,null,null,null,null,null,null,0]
["1501 y 2000",null,null,null,null,null,null,null,null,null,null,null,null,0]
["2001 y 2500",null,null,null,null,null,null,null,null,null,null,null,null,0]
["2501 y 3000",null,null,null,null,null,null,null,null,null,null,null,null,0]
["Mayor a 3000",null,null,null,null,null,null,null,null,null,null,null,null,0]
["TOTAL BTS",{"$f":"+SUM(B234:B271)","v":0},0,0,0,0,0,0,0,0,0,0,0,{"$f":"+SUM(N234:N271)","v":0}]
["BTD"]
["1-100"]
["101-500"]
["501-1000"]
["1001-1500"]
["1501-2000"]
["2001-2500"]
["2501-3000"]
["3001-5000"]
["5001-10000"]
["10001-30000"]
["30001-50000"]
["50000 y más"]
["TOTAL BTD",{"$f":"SUM(B274:B285)","v":0},{"$f":"SUM(C274:C285)","v":0},0,0,0,0,0,0,0,0,0,0,0]

{"sheet":"11 F de 34","index":19,"n_rows":286,"n_cols":14,"rows_kept":286,"cut":false,"hidden":false,"merged":[[5,15,5,17],[6,0,6,10],[5,13,5,14],[1,0,1,13],[2,0,2,13],[3,0,3,13],[4,2,4,4]]}
[]
["Formulario E-120-D"]
["(11 F de 34)"]
["INGRESO FACTURADO (Cargo fijo, cargo por energía, cargo por demanda, cargo por variación de combustible)\n(Tarifa: Baja Tensión Simple)"]
[null,null,"NOMBRE DE LA EMPRESA:"]
[null,null,null,null,"AÑO:",null,null,"SEMESTRE:"]
[]
[null,"Ene","Feb","Mar","Abr","May","Jun","Jul","Ago","Sep","Oct","Nov","Dic","TOTAL"]
["BTS1"]
["Menor o Igual a 25",null,null,null,null,null,null,null,null,null,null,null,null,0]
["26 y 50",null,null,null,null,null,null,null,null,null,null,null,null,0]
["51 y 75",null,null,null,null,null,null,null,null,null,null,null,null,0]
["76 y 100",null,null,null,null,null,null,null,null,null,null,null,null,0]
["101 y 125",null,null,null,null,null,null,null,null,null,null,null,null,0]
["126 y 150",null,null,null,null,null,null,null,null,null,null,null,null,0]
["151 y 175",null,null,null,null,null,null,null,null,null,null,null,null,0]
["176 y 200",null,null,null,null,null,null,null,null,null,null,null,null,0]
["201 y 225",null,null,null,null,null,null,null,null,null,null,null,null,0]
["226 y 250",null,null,null,null,null,null,null,null,null,null,null,null,0]
["251 y 275",null,null,null,null,null,null,null,null,null,null,null,null,0]
["276 y 300",null,null,null,null,null,null,null,null,null,null,null,null,0]
["BTS2"]
["301 y 325",null,null,null,null,null,null,null,null,null,null,null,null,0]
["326 y 350",null,null,null,null,null,null,null,null,null,null,null,null,0]
["351 y 375",null,null,null,null,null,null,null,null,null,null,null,null,0]
["376 y 400",null,null,null,null,null,null,null,null,null,null,null,null,0]
["401 y 425",null,null,null,null,null,null,null,null,null,null,null,null,0]
["426 y 450",null,null,null,null,null,null,null,null,null,null,null,null,0]
["451 y 475",null,null,null,null,null,null,null,null,null,null,null,null,0]
["476 y 500",null,null,null,null,null,null,null,null,null,null,null,null,0]
["501 y 525",null,null,null,null,null,null,null,null,null,null,null,null,0]
["526 y 550",null,null,null,null,null,null,null,null,null,null,null,null,0]
["551 y 575",null,null,null,null,null,null,null,null,null,null,null,null,0]
["576 y 600",null,null,null,null,null,null,null,null,null,null,null,null,0]
["601 y 625",null,null,null,null,null,null,null,null,null,null,null,null,0]
["626 y 650",null,null,null,null,null,null,null,null,null,null,null,null,0]
["651 y 675",null,null,null,null,null,null,null,null,null,null,null,null,0]
["676 y 700",null,null,null,null,null,null,null,null,null,null,null,null,0]
["701 y 725",null,null,null,null,null,null,null,null,null,null,null,null,0]
["726 y 750",null,null,null,null,null,null,null,null,null,null,null,null,0]
["BTS3"]
["751 y 1000",null,null,null,null,null,null,null,null,null,null,null,null,0]
["1001 y 1500",null,null,null,null,null,null,null,null,null,null,null,null,0]
["1501 y 2000",null,null,null,null,null,null,null,null,null,null,null,null,0]
["2001 y 2500",null,null,null,null,null,null,null,null,null,null,null,null,0]
["2501 y 3000",null,null,null,null,null,null,null,null,null,null,null,null,0]
["Mayor a 3000 ",null,null,null,null,null,null,null,null,null,null,null,null,0]
["TOTAL BTS",0,0,0,0,0,0,0,0,0,0,0,0,0]
["BTD"]
["1-100"]
["101-500"]
["501-1000"]
["1001-1500"]
["1501-2000"]
["2001-2500"]
["2501-3000"]
["3001-5000"]
["5001-10000"]
["10001-30000"]
["30001-50000"]
["50000 y más"]
["TOTAL BTD",0,0,0,0,0,0,0,0,0,0,0,0,0]
[]
["REGULARES","enero","febrero","marzo","abril","mayo","junio","julio","agosto","sept","ocy","nov","dic","TOTAL"]
["BTS1"]
["Menor o Igual a 25",null,null,null,null,null,null,null,null,null,null,null,null,{"$f":"+SUM(B66:M66)","v":0}]
["26 y 50",null,null,null,null,null,null,null,null,null,null,null,null,{"$f":"+SUM(B67:M67)","v":0}]
["51 y 75",null,null,null,null,null,null,null,null,null,null,null,null,0]
["76 y 100",null,null,null,null,null,null,null,null,null,null,null,null,0]
["101 y 125",null,null,null,null,null,null,null,null,null,null,null,null,0]
["126 y 150",null,null,null,null,null,null,null,null,null,null,null,null,0]
["151 y 175",null,null,null,null,null,null,null,null,null,null,null,null,0]
["176 y 200",null,null,null,null,null,null,null,null,null,null,null,null,0]
["201 y 225",null,null,null,null,null,null,null,null,null,null,null,null,0]
["226 y 250",null,null,null,null,null,null,null,null,null,null,null,null,0]
["251 y 275",null,null,null,null,null,null,null,null,null,null,null,null,0]
["276 y 300",null,null,null,null,null,null,null,null,null,null,null,null,0]
["BTS2"]
["301 y 325",null,null,null,null,null,null,null,null,null,null,null,null,0]
["326 y 350",null,null,null,null,null,null,null,null,null,null,null,null,0]
["351 y 375",null,null,null,null,null,null,null,null,null,null,null,null,0]
["376 y 400",null,null,null,null,null,null,null,null,null,null,null,null,0]
["401 y 425",null,null,null,null,null,null,null,null,null,null,null,null,0]
["426 y 450",null,null,null,null,null,null,null,null,null,null,null,null,0]
["451 y 475",null,null,null,null,null,null,null,null,null,null,null,null,0]
["476 y 500",null,null,null,null,null,null,null,null,null,null,null,null,0]
["501 y 525",null,null,null,null,null,null,null,null,null,null,null,null,0]
["526 y 550",null,null,null,null,null,null,null,null,null,null,null,null,0]
["551 y 575",null,null,null,null,null,null,null,null,null,null,null,null,0]
["576 y 600",null,null,null,null,null,null,null,null,null,null,null,null,0]
["601 y 625",null,null,null,null,null,null,null,null,null,null,null,null,0]
["626 y 650",null,null,null,null,null,null,null,null,null,null,null,null,0]
["651 y 675",null,null,null,null,null,null,null,null,null,null,null,null,0]
["676 y 700",null,null,null,null,null,null,null,null,null,null,null,null,0]
["701 y 725",null,null,null,null,null,null,null,null,null,null,null,null,0]
["726 y 750",null,null,null,null,null,null,null,null,null,null,null,null,0]
["BTS3"]
["751 y 1000",null,null,null,null,null,null,null,null,null,null,null,null,0]
["1001 y 1500",null,null,null,null,null,null,null,null,null,null,null,null,0]
["1501 y 2000",null,null,null,null,null,null,null,null,null,null,null,null,0]
["2001 y 2500",null,null,null,null,null,null,null,null,null,null,null,null,0]
["2501 y 3000",null,null,null,null,null,null,null,null,null,null,null,null,0]
["Mayor a 3000",null,null,null,null,null,null,null,null,null,null,null,null,0]
["TOTAL BTS",{"$f":"+SUM(B66:B103)","v":0},0,0,0,0,0,0,0,0,0,0,0,{"$f":"+SUM(N66:N103)","v":0}]
["BTD"]
["1-100"]
["101-500"]
["501-1000"]
["1001-1500"]
["1501-2000"]
["2001-2500"]
["2501-3000"]
["3001-5000"]
["5001-10000"]
["10001-30000"]
["30001-50000"]
["50000 y más"]
["TOTAL BTD",{"$f":"SUM(B106:B117)","v":0},{"$f":"SUM(C106:C117)","v":0},0,0,0,0,0,0,0,0,0,0,0]
[]
["AGRO","enero","febrero","marzo","abril","mayo","junio","julio","agosto","sept","ocy","nov","dic","TOTAL"]
["BTS1"]
["Menor o Igual a 25",null,null,null,null,null,null,null,null,null,null,null,null,{"$f":"+SUM(B122:M122)","v":0}]
["26 y 50",null,null,null,null,null,null,null,null,null,null,null,null,{"$f":"+SUM(B123:M123)","v":0}]
["51 y 75",null,null,null,null,null,null,null,null,null,null,null,null,0]
["76 y 100",null,null,null,null,null,null,null,null,null,null,null,null,0]
["101 y 125",null,null,null,null,null,null,null,null,null,null,null,null,0]
["126 y 150",null,null,null,null,null,null,null,null,null,null,null,null,0]
["151 y 175",null,null,null,null,null,null,null,null,null,null,null,null,0]
["176 y 200",null,null,null,null,null,null,null,null,null,null,null,null,0]
["201 y 225",null,null,null,null,null,null,null,null,null,null,null,null,0]
["226 y 250",null,null,null,null,null,null,null,null,null,null,null,null,0]
["251 y 275",null,null,null,null,null,null,null,null,null,null,null,null,0]
["276 y 300",null,null,null,null,null,null,null,null,null,null,null,null,0]
["BTS2"]
["301 y 325",null,null,null,null,null,null,null,null,null,null,null,null,0]
["326 y 350",null,null,null,null,null,null,null,null,null,null,null,null,0]
["351 y 375",null,null,null,null,null,null,null,null,null,null,null,null,0]
["376 y 400",null,null,null,null,null,null,null,null,null,null,null,null,0]
["401 y 425",null,null,null,null,null,null,null,null,null,null,null,null,0]
["426 y 450",null,null,null,null,null,null,null,null,null,null,null,null,0]
["451 y 475",null,null,null,null,null,null,null,null,null,null,null,null,0]
["476 y 500",null,null,null,null,null,null,null,null,null,null,null,null,0]
["501 y 525",null,null,null,null,null,null,null,null,null,null,null,null,0]
["526 y 550",null,null,null,null,null,null,null,null,null,null,null,null,0]
["551 y 575",null,null,null,null,null,null,null,null,null,null,null,null,0]
["576 y 600",null,null,null,null,null,null,null,null,null,null,null,null,0]
["601 y 625",null,null,null,null,null,null,null,null,null,null,null,null,0]
["626 y 650",null,null,null,null,null,null,null,null,null,null,null,null,0]
["651 y 675",null,null,null,null,null,null,null,null,null,null,null,null,0]
["676 y 700",null,null,null,null,null,null,null,null,null,null,null,null,0]
["701 y 725",null,null,null,null,null,null,null,null,null,null,null,null,0]
["726 y 750",null,null,null,null,null,null,null,null,null,null,null,null,0]
["BTS3"]
["751 y 1000",null,null,null,null,null,null,null,null,null,null,null,null,0]
["1001 y 1500",null,null,null,null,null,null,null,null,null,null,null,null,0]
["1501 y 2000",null,null,null,null,null,null,null,null,null,null,null,null,0]
["2001 y 2500",null,null,null,null,null,null,null,null,null,null,null,null,0]
["2501 y 3000",null,null,null,null,null,null,null,null,null,null,null,null,0]
["Mayor a 3000",null,null,null,null,null,null,null,null,null,null,null,null,0]
["TOTAL BTS",{"$f":"+SUM(B122:B159)","v":0},0,0,0,0,0,0,0,0,0,0,0,{"$f":"+SUM(N122:N159)","v":0}]
["BTD"]
["1-100"]
["101-500"]
["501-1000"]
["1001-1500"]
["1501-2000"]
["2001-2500"]
["2501-3000"]
["3001-5000"]
["5001-10000"]
["10001-30000"]
["30001-50000"]
["50000 y más"]
["TOTAL BTD",{"$f":"SUM(B162:B173)","v":0},{"$f":"SUM(C162:C173)","v":0},0,0,0,0,0,0,0,0,0,0,0]
[]
["JUBILADOS","enero","febrero","marzo","abril","mayo","junio","julio","agosto","sept","ocy","nov","dic","TOTAL"]
["BTS1"]
["Menor o Igual a 25",null,null,null,null,null,null,null,null,null,null,null,null,{"$f":"+SUM(B178:M178)","v":0}]
["26 y 50",null,null,null,null,null,null,null,null,null,null,null,null,{"$f":"+SUM(B179:M179)","v":0}]
["51 y 75",null,null,null,null,null,null,null,null,null,null,null,null,0]
["76 y 100",null,null,null,null,null,null,null,null,null,null,null,null,0]
["101 y 125",null,null,null,null,null,null,null,null,null,null,null,null,0]
["126 y 150",null,null,null,null,null,null,null,null,null,null,null,null,0]
["151 y 175",null,null,null,null,null,null,null,null,null,null,null,null,0]
["176 y 200",null,null,null,null,null,null,null,null,null,null,null,null,0]
["201 y 225",null,null,null,null,null,null,null,null,null,null,null,null,0]
["226 y 250",null,null,null,null,null,null,null,null,null,null,null,null,0]
["251 y 275",null,null,null,null,null,null,null,null,null,null,null,null,0]
["276 y 300",null,null,null,null,null,null,null,null,null,null,null,null,0]
["BTS2"]
["301 y 325",null,null,null,null,null,null,null,null,null,null,null,null,0]
["326 y 350",null,null,null,null,null,null,null,null,null,null,null,null,0]
["351 y 375",null,null,null,null,null,null,null,null,null,null,null,null,0]
["376 y 400",null,null,null,null,null,null,null,null,null,null,null,null,0]
["401 y 425",null,null,null,null,null,null,null,null,null,null,null,null,0]
["426 y 450",null,null,null,null,null,null,null,null,null,null,null,null,0]
["451 y 475",null,null,null,null,null,null,null,null,null,null,null,null,0]
["476 y 500",null,null,null,null,null,null,null,null,null,null,null,null,0]
["501 y 525",null,null,null,null,null,null,null,null,null,null,null,null,0]
["526 y 550",null,null,null,null,null,null,null,null,null,null,null,null,0]
["551 y 575",null,null,null,null,null,null,null,null,null,null,null,null,0]
["576 y 600",null,null,null,null,null,null,null,null,null,null,null,null,0]
["601 y 625",null,null,null,null,null,null,null,null,null,null,null,null,0]
["626 y 650",null,null,null,null,null,null,null,null,null,null,null,null,0]
["651 y 675",null,null,null,null,null,null,null,null,null,null,null,null,0]
["676 y 700",null,null,null,null,null,null,null,null,null,null,null,null,0]
["701 y 725",null,null,null,null,null,null,null,null,null,null,null,null,0]
["726 y 750",null,null,null,null,null,null,null,null,null,null,null,null,0]
["BTS3"]
["751 y 1000",null,null,null,null,null,null,null,null,null,null,null,null,0]
["1001 y 1500",null,null,null,null,null,null,null,null,null,null,null,null,0]
["1501 y 2000",null,null,null,null,null,null,null,null,null,null,null,null,0]
["2001 y 2500",null,null,null,null,null,null,null,null,null,null,null,null,0]
["2501 y 3000",null,null,null,null,null,null,null,null,null,null,null,null,0]
["Mayor a 3000",null,null,null,null,null,null,null,null,null,null,null,null,0]
["TOTAL BTS",{"$f":"+SUM(B178:B215)","v":0},0,0,0,0,0,0,0,0,0,0,0,{"$f":"+SUM(N178:N215)","v":0}]
["BTD"]
["1-100"]
["101-500"]
["501-1000"]
["1001-1500"]
["1501-2000"]
["2001-2500"]
["2501-3000"]
["3001-5000"]
["5001-10000"]
["10001-30000"]
["30001-50000"]
["50000 y más"]
["TOTAL BTD",{"$f":"SUM(B218:B229)","v":0},{"$f":"SUM(C218:C229)","v":0},0,0,0,0,0,0,0,0,0,0,0]
[]
["P. POLÍTICOS","enero","febrero","marzo","abril","mayo","junio","julio","agosto","sept","ocy","nov","dic","TOTAL"]
["BTS1"]
["Menor o Igual a 25",null,null,null,null,null,null,null,null,null,null,null,null,{"$f":"+SUM(B234:M234)","v":0}]
["26 y 50",null,null,null,null,null,null,null,null,null,null,null,null,{"$f":"+SUM(B235:M235)","v":0}]
["51 y 75",null,null,null,null,null,null,null,null,null,null,null,null,0]
["76 y 100",null,null,null,null,null,null,null,null,null,null,null,null,0]
["101 y 125",null,null,null,null,null,null,null,null,null,null,null,null,0]
["126 y 150",null,null,null,null,null,null,null,null,null,null,null,null,0]
["151 y 175",null,null,null,null,null,null,null,null,null,null,null,null,0]
["176 y 200",null,null,null,null,null,null,null,null,null,null,null,null,0]
["201 y 225",null,null,null,null,null,null,null,null,null,null,null,null,0]
["226 y 250",null,null,null,null,null,null,null,null,null,null,null,null,0]
["251 y 275",null,null,null,null,null,null,null,null,null,null,null,null,0]
["276 y 300",null,null,null,null,null,null,null,null,null,null,null,null,0]
["BTS2"]
["301 y 325",null,null,null,null,null,null,null,null,null,null,null,null,0]
["326 y 350",null,null,null,null,null,null,null,null,null,null,null,null,0]
["351 y 375",null,null,null,null,null,null,null,null,null,null,null,null,0]
["376 y 400",null,null,null,null,null,null,null,null,null,null,null,null,0]
["401 y 425",null,null,null,null,null,null,null,null,null,null,null,null,0]
["426 y 450",null,null,null,null,null,null,null,null,null,null,null,null,0]
["451 y 475",null,null,null,null,null,null,null,null,null,null,null,null,0]
["476 y 500",null,null,null,null,null,null,null,null,null,null,null,null,0]
["501 y 525",null,null,null,null,null,null,null,null,null,null,null,null,0]
["526 y 550",null,null,null,null,null,null,null,null,null,null,null,null,0]
["551 y 575",null,null,null,null,null,null,null,null,null,null,null,null,0]
["576 y 600",null,null,null,null,null,null,null,null,null,null,null,null,0]
["601 y 625",null,null,null,null,null,null,null,null,null,null,null,null,0]
["626 y 650",null,null,null,null,null,null,null,null,null,null,null,null,0]
["651 y 675",null,null,null,null,null,null,null,null,null,null,null,null,0]
["676 y 700",null,null,null,null,null,null,null,null,null,null,null,null,0]
["701 y 725",null,null,null,null,null,null,null,null,null,null,null,null,0]
["726 y 750",null,null,null,null,null,null,null,null,null,null,null,null,0]
["BTS3"]
["751 y 1000",null,null,null,null,null,null,null,null,null,null,null,null,0]
["1001 y 1500",null,null,null,null,null,null,null,null,null,null,null,null,0]
["1501 y 2000",null,null,null,null,null,null,null,null,null,null,null,null,0]
["2001 y 2500",null,null,null,null,null,null,null,null,null,null,null,null,0]
["2501 y 3000",null,null,null,null,null,null,null,null,null,null,null,null,0]
["Mayor a 3000",null,null,null,null,null,null,null,null,null,null,null,null,0]
["TOTAL BTS",{"$f":"+SUM(B234:B271)","v":0},0,0,0,0,0,0,0,0,0,0,0,{"$f":"+SUM(N234:N271)","v":0}]
["BTD"]
["1-100"]
["101-500"]
["501-1000"]
["1001-1500"]
["1501-2000"]
["2001-2500"]
["2501-3000"]
["3001-5000"]
["5001-10000"]
["10001-30000"]
["30001-50000"]
["50000 y más"]
["TOTAL BTD",{"$f":"SUM(B274:B285)","v":0},{"$f":"SUM(C274:C285)","v":0},0,0,0,0,0,0,0,0,0,0,0]

{"sheet":"11 G de 34","index":20,"n_rows":286,"n_cols":14,"rows_kept":286,"cut":false,"hidden":false,"merged":[[5,13,5,14],[5,15,5,17],[6,0,6,10],[3,0,3,13],[1,0,1,12],[2,0,2,12],[4,3,4,5]]}
[]
["Formulario E-120-D"]
["(11 G de 34)"]
["MONTO ASUMIDO POR EL USUARIO FINAL   (Cargo Fijo,  Cargo por Energía,  Cargo por Demanda,  Cargo por Variación de Combustible,                                                                                FET,  FET-CVC,  FET Extraordinario)"]
[null,null,null,"NOMBRE DE LA EMPRESA:"]
[null,null,null,null,null,"AÑO:",null,null,"SEMESTRE:"]
[]
[null,"Ene","Feb","Mar","Abr","May","Jun","Jul","Ago","Sep","Oct","Nov","Dic","TOTAL"]
["BTS1"]
["Menor o Igual                          a 25",null,null,null,null,null,null,null,null,null,null,null,null,0]
["26 y 50",null,null,null,null,null,null,null,null,null,null,null,null,0]
["51 y 75",null,null,null,null,null,null,null,null,null,null,null,null,0]
["76 y 100",null,null,null,null,null,null,null,null,null,null,null,null,0]
["101 y 125",null,null,null,null,null,null,null,null,null,null,null,null,0]
["126 y 150",null,null,null,null,null,null,null,null,null,null,null,null,0]
["151 y 175",null,null,null,null,null,null,null,null,null,null,null,null,0]
["176 y 200",null,null,null,null,null,null,null,null,null,null,null,null,0]
["201 y 225",null,null,null,null,null,null,null,null,null,null,null,null,0]
["226 y 250",null,null,null,null,null,null,null,null,null,null,null,null,0]
["251 y 275",null,null,null,null,null,null,null,null,null,null,null,null,0]
["276 y 300",null,null,null,null,null,null,null,null,null,null,null,null,0]
["BTS2"]
["301 y 325",null,null,null,null,null,null,null,null,null,null,null,null,0]
["326 y 350",null,null,null,null,null,null,null,null,null,null,null,null,0]
["351 y 375",null,null,null,null,null,null,null,null,null,null,null,null,0]
["376 y 400",null,null,null,null,null,null,null,null,null,null,null,null,0]
["401 y 425",null,null,null,null,null,null,null,null,null,null,null,null,0]
["426 y 450",null,null,null,null,null,null,null,null,null,null,null,null,0]
["451 y 475",null,null,null,null,null,null,null,null,null,null,null,null,0]
["476 y 500",null,null,null,null,null,null,null,null,null,null,null,null,0]
["501 y 525",null,null,null,null,null,null,null,null,null,null,null,null,0]
["526 y 550",null,null,null,null,null,null,null,null,null,null,null,null,0]
["551 y 575",null,null,null,null,null,null,null,null,null,null,null,null,0]
["576 y 600",null,null,null,null,null,null,null,null,null,null,null,null,0]
["601 y 625",null,null,null,null,null,null,null,null,null,null,null,null,0]
["626 y 650",null,null,null,null,null,null,null,null,null,null,null,null,0]
["651 y 675",null,null,null,null,null,null,null,null,null,null,null,null,0]
["676 y 700",null,null,null,null,null,null,null,null,null,null,null,null,0]
["701 y 725",null,null,null,null,null,null,null,null,null,null,null,null,0]
["726 y 750",null,null,null,null,null,null,null,null,null,null,null,null,0]
["BTS3"]
["751 y 1000",null,null,null,null,null,null,null,null,null,null,null,null,0]
["1001 y 1500",null,null,null,null,null,null,null,null,null,null,null,null,0]
["1501 y 2000",null,null,null,null,null,null,null,null,null,null,null,null,0]
["2001 y 2500",null,null,null,null,null,null,null,null,null,null,null,null,0]
["2501 y 3000",null,null,null,null,null,null,null,null,null,null,null,null,0]
["Mayor a 3000 ",null,null,null,null,null,null,null,null,null,null,null,null,0]
["TOTAL BTS",0,0,0,0,0,0,0,0,0,0,0,0,0]
["BTD"]
["1-100"]
["101-500"]
["501-1000"]
["1001-1500"]
["1501-2000"]
["2001-2500"]
["2501-3000"]
["3001-5000"]
["5001-10000"]
["10001-30000"]
["30001-50000"]
["50000 y más"]
["TOTAL BTD",0,0,0,0,0,0,0,0,0,0,0,0,0]
[]
["REGULARES","enero","febrero","marzo","abril","mayo","junio","julio","agosto","sept","oct","nov","dic","TOTAL"]
["BTS1"]
["Menor o Igual                      a 25",null,null,null,null,null,null,null,null,null,null,null,null,{"$f":"+SUM(B66:M66)","v":0}]
["26 y 50",null,null,null,null,null,null,null,null,null,null,null,null,{"$f":"+SUM(B67:M67)","v":0}]
["51 y 75",null,null,null,null,null,null,null,null,null,null,null,null,0]
["76 y 100",null,null,null,null,null,null,null,null,null,null,null,null,0]
["101 y 125",null,null,null,null,null,null,null,null,null,null,null,null,0]
["126 y 150",null,null,null,null,null,null,null,null,null,null,null,null,0]
["151 y 175",null,null,null,null,null,null,null,null,null,null,null,null,0]
["176 y 200",null,null,null,null,null,null,null,null,null,null,null,null,0]
["201 y 225",null,null,null,null,null,null,null,null,null,null,null,null,0]
["226 y 250",null,null,null,null,null,null,null,null,null,null,null,null,0]
["251 y 275",null,null,null,null,null,null,null,null,null,null,null,null,0]
["276 y 300",null,null,null,null,null,null,null,null,null,null,null,null,0]
["BTS2"]
["301 y 325",null,null,null,null,null,null,null,null,null,null,null,null,0]
["326 y 350",null,null,null,null,null,null,null,null,null,null,null,null,0]
["351 y 375",null,null,null,null,null,null,null,null,null,null,null,null,0]
["376 y 400",null,null,null,null,null,null,null,null,null,null,null,null,0]
["401 y 425",null,null,null,null,null,null,null,null,null,null,null,null,0]
["426 y 450",null,null,null,null,null,null,null,null,null,null,null,null,0]
["451 y 475",null,null,null,null,null,null,null,null,null,null,null,null,0]
["476 y 500",null,null,null,null,null,null,null,null,null,null,null,null,0]
["501 y 525",null,null,null,null,null,null,null,null,null,null,null,null,0]
["526 y 550",null,null,null,null,null,null,null,null,null,null,null,null,0]
["551 y 575",null,null,null,null,null,null,null,null,null,null,null,null,0]
["576 y 600",null,null,null,null,null,null,null,null,null,null,null,null,0]
["601 y 625",null,null,null,null,null,null,null,null,null,null,null,null,0]
["626 y 650",null,null,null,null,null,null,null,null,null,null,null,null,0]
["651 y 675",null,null,null,null,null,null,null,null,null,null,null,null,0]
["676 y 700",null,null,null,null,null,null,null,null,null,null,null,null,0]
["701 y 725",null,null,null,null,null,null,null,null,null,null,null,null,0]
["726 y 750",null,null,null,null,null,null,null,null,null,null,null,null,0]
["BTS3"]
["751 y 1000",null,null,null,null,null,null,null,null,null,null,null,null,0]
["1001 y 1500",null,null,null,null,null,null,null,null,null,null,null,null,0]
["1501 y 2000",null,null,null,null,null,null,null,null,null,null,null,null,0]
["2001 y 2500",null,null,null,null,null,null,null,null,null,null,null,null,0]
["2501 y 3000",null,null,null,null,null,null,null,null,null,null,null,null,0]
["Mayor a 3000",null,null,null,null,null,null,null,null,null,null,null,null,0]
["TOTAL BTS",{"$f":"+SUM(B66:B103)","v":0},0,0,0,0,0,0,0,0,0,0,0,{"$f":"+SUM(N66:N103)","v":0}]
["BTD"]
["1-100"]
["101-500"]
["501-1000"]
["1001-1500"]
["1501-2000"]
["2001-2500"]
["2501-3000"]
["3001-5000"]
["5001-10000"]
["10001-30000"]
["30001-50000"]
["50000 y más"]
["TOTAL BTD",{"$f":"SUM(B106:B117)","v":0},{"$f":"SUM(C106:C117)","v":0},0,0,0,0,0,0,0,0,0,0,0]
[]
["AGRO","enero","febrero","marzo","abril","mayo","junio","julio","agosto","sept","oct","nov","dic","TOTAL"]
["BTS1"]
["Menor o Igual                            a 25",null,null,null,null,null,null,null,null,null,null,null,null,{"$f":"+SUM(B122:M122)","v":0}]
["26 y 50",null,null,null,null,null,null,null,null,null,null,null,null,{"$f":"+SUM(B123:M123)","v":0}]
["51 y 75",null,null,null,null,null,null,null,null,null,null,null,null,0]
["76 y 100",null,null,null,null,null,null,null,null,null,null,null,null,0]
["101 y 125",null,null,null,null,null,null,null,null,null,null,null,null,0]
["126 y 150",null,null,null,null,null,null,null,null,null,null,null,null,0]
["151 y 175",null,null,null,null,null,null,null,null,null,null,null,null,0]
["176 y 200",null,null,null,null,null,null,null,null,null,null,null,null,0]
["201 y 225",null,null,null,null,null,null,null,null,null,null,null,null,0]
["226 y 250",null,null,null,null,null,null,null,null,null,null,null,null,0]
["251 y 275",null,null,null,null,null,null,null,null,null,null,null,null,0]
["276 y 300",null,null,null,null,null,null,null,null,null,null,null,null,0]
["BTS2"]
["301 y 325",null,null,null,null,null,null,null,null,null,null,null,null,0]
["326 y 350",null,null,null,null,null,null,null,null,null,null,null,null,0]
["351 y 375",null,null,null,null,null,null,null,null,null,null,null,null,0]
["376 y 400",null,null,null,null,null,null,null,null,null,null,null,null,0]
["401 y 425",null,null,null,null,null,null,null,null,null,null,null,null,0]
["426 y 450",null,null,null,null,null,null,null,null,null,null,null,null,0]
["451 y 475",null,null,null,null,null,null,null,null,null,null,null,null,0]
["476 y 500",null,null,null,null,null,null,null,null,null,null,null,null,0]
["501 y 525",null,null,null,null,null,null,null,null,null,null,null,null,0]
["526 y 550",null,null,null,null,null,null,null,null,null,null,null,null,0]
["551 y 575",null,null,null,null,null,null,null,null,null,null,null,null,0]
["576 y 600",null,null,null,null,null,null,null,null,null,null,null,null,0]
["601 y 625",null,null,null,null,null,null,null,null,null,null,null,null,0]
["626 y 650",null,null,null,null,null,null,null,null,null,null,null,null,0]
["651 y 675",null,null,null,null,null,null,null,null,null,null,null,null,0]
["676 y 700",null,null,null,null,null,null,null,null,null,null,null,null,0]
["701 y 725",null,null,null,null,null,null,null,null,null,null,null,null,0]
["726 y 750",null,null,null,null,null,null,null,null,null,null,null,null,0]
["BTS3"]
["751 y 1000",null,null,null,null,null,null,null,null,null,null,null,null,0]
["1001 y 1500",null,null,null,null,null,null,null,null,null,null,null,null,0]
["1501 y 2000",null,null,null,null,null,null,null,null,null,null,null,null,0]
["2001 y 2500",null,null,null,null,null,null,null,null,null,null,null,null,0]
["2501 y 3000",null,null,null,null,null,null,null,null,null,null,null,null,0]
["Mayor a 3000",null,null,null,null,null,null,null,null,null,null,null,null,0]
["TOTAL BTS",{"$f":"+SUM(B122:B159)","v":0},0,0,0,0,0,0,0,0,0,0,0,{"$f":"+SUM(N122:N159)","v":0}]
["BTD"]
["1-100"]
["101-500"]
["501-1000"]
["1001-1500"]
["1501-2000"]
["2001-2500"]
["2501-3000"]
["3001-5000"]
["5001-10000"]
["10001-30000"]
["30001-50000"]
["50000 y más"]
["TOTAL BTD",{"$f":"SUM(B162:B173)","v":0},{"$f":"SUM(C162:C173)","v":0},0,0,0,0,0,0,0,0,0,0,0]
[]
["JUBILADOS","enero","febrero","marzo","abril","mayo","junio","julio","agosto","sept","oct","nov","dic","TOTAL"]
["BTS1"]
["Menor o Igual                               a 25",null,null,null,null,null,null,null,null,null,null,null,null,{"$f":"+SUM(B178:M178)","v":0}]
["26 y 50",null,null,null,null,null,null,null,null,null,null,null,null,{"$f":"+SUM(B179:M179)","v":0}]
["51 y 75",null,null,null,null,null,null,null,null,null,null,null,null,0]
["76 y 100",null,null,null,null,null,null,null,null,null,null,null,null,0]
["101 y 125",null,null,null,null,null,null,null,null,null,null,null,null,0]
["126 y 150",null,null,null,null,null,null,null,null,null,null,null,null,0]
["151 y 175",null,null,null,null,null,null,null,null,null,null,null,null,0]
["176 y 200",null,null,null,null,null,null,null,null,null,null,null,null,0]
["201 y 225",null,null,null,null,null,null,null,null,null,null,null,null,0]
["226 y 250",null,null,null,null,null,null,null,null,null,null,null,null,0]
["251 y 275",null,null,null,null,null,null,null,null,null,null,null,null,0]
["276 y 300",null,null,null,null,null,null,null,null,null,null,null,null,0]
["BTS2"]
["301 y 325",null,null,null,null,null,null,null,null,null,null,null,null,0]
["326 y 350",null,null,null,null,null,null,null,null,null,null,null,null,0]
["351 y 375",null,null,null,null,null,null,null,null,null,null,null,null,0]
["376 y 400",null,null,null,null,null,null,null,null,null,null,null,null,0]
["401 y 425",null,null,null,null,null,null,null,null,null,null,null,null,0]
["426 y 450",null,null,null,null,null,null,null,null,null,null,null,null,0]
["451 y 475",null,null,null,null,null,null,null,null,null,null,null,null,0]
["476 y 500",null,null,null,null,null,null,null,null,null,null,null,null,0]
["501 y 525",null,null,null,null,null,null,null,null,null,null,null,null,0]
["526 y 550",null,null,null,null,null,null,null,null,null,null,null,null,0]
["551 y 575",null,null,null,null,null,null,null,null,null,null,null,null,0]
["576 y 600",null,null,null,null,null,null,null,null,null,null,null,null,0]
["601 y 625",null,null,null,null,null,null,null,null,null,null,null,null,0]
["626 y 650",null,null,null,null,null,null,null,null,null,null,null,null,0]
["651 y 675",null,null,null,null,null,null,null,null,null,null,null,null,0]
["676 y 700",null,null,null,null,null,null,null,null,null,null,null,null,0]
["701 y 725",null,null,null,null,null,null,null,null,null,null,null,null,0]
["726 y 750",null,null,null,null,null,null,null,null,null,null,null,null,0]
["BTS3"]
["751 y 1000",null,null,null,null,null,null,null,null,null,null,null,null,0]
["1001 y 1500",null,null,null,null,null,null,null,null,null,null,null,null,0]
["1501 y 2000",null,null,null,null,null,null,null,null,null,null,null,null,0]
["2001 y 2500",null,null,null,null,null,null,null,null,null,null,null,null,0]
["2501 y 3000",null,null,null,null,null,null,null,null,null,null,null,null,0]
["Mayor a 3000",null,null,null,null,null,null,null,null,null,null,null,null,0]
["TOTAL BTS",{"$f":"+SUM(B178:B215)","v":0},0,0,0,0,0,0,0,0,0,0,0,{"$f":"+SUM(N178:N215)","v":0}]
["BTD"]
["1-100"]
["101-500"]
["501-1000"]
["1001-1500"]
["1501-2000"]
["2001-2500"]
["2501-3000"]
["3001-5000"]
["5001-10000"]
["10001-30000"]
["30001-50000"]
["50000 y más"]
["TOTAL BTD",{"$f":"SUM(B218:B229)","v":0},{"$f":"SUM(C218:C229)","v":0},0,0,0,0,0,0,0,0,0,0,0]
[]
["P. POLÍTICOS","enero","febrero","marzo","abril","mayo","junio","julio","agosto","sept","oct","nov","dic","TOTAL"]
["BTS1"]
["Menor o Igual                        a 25",null,null,null,null,null,null,null,null,null,null,null,null,{"$f":"+SUM(B234:M234)","v":0}]
["26 y 50",null,null,null,null,null,null,null,null,null,null,null,null,{"$f":"+SUM(B235:M235)","v":0}]
["51 y 75",null,null,null,null,null,null,null,null,null,null,null,null,0]
["76 y 100",null,null,null,null,null,null,null,null,null,null,null,null,0]
["101 y 125",null,null,null,null,null,null,null,null,null,null,null,null,0]
["126 y 150",null,null,null,null,null,null,null,null,null,null,null,null,0]
["151 y 175",null,null,null,null,null,null,null,null,null,null,null,null,0]
["176 y 200",null,null,null,null,null,null,null,null,null,null,null,null,0]
["201 y 225",null,null,null,null,null,null,null,null,null,null,null,null,0]
["226 y 250",null,null,null,null,null,null,null,null,null,null,null,null,0]
["251 y 275",null,null,null,null,null,null,null,null,null,null,null,null,0]
["276 y 300",null,null,null,null,null,null,null,null,null,null,null,null,0]
["BTS2"]
["301 y 325",null,null,null,null,null,null,null,null,null,null,null,null,0]
["326 y 350",null,null,null,null,null,null,null,null,null,null,null,null,0]
["351 y 375",null,null,null,null,null,null,null,null,null,null,null,null,0]
["376 y 400",null,null,null,null,null,null,null,null,null,null,null,null,0]
["401 y 425",null,null,null,null,null,null,null,null,null,null,null,null,0]
["426 y 450",null,null,null,null,null,null,null,null,null,null,null,null,0]
["451 y 475",null,null,null,null,null,null,null,null,null,null,null,null,0]
["476 y 500",null,null,null,null,null,null,null,null,null,null,null,null,0]
["501 y 525",null,null,null,null,null,null,null,null,null,null,null,null,0]
["526 y 550",null,null,null,null,null,null,null,null,null,null,null,null,0]
["551 y 575",null,null,null,null,null,null,null,null,null,null,null,null,0]
["576 y 600",null,null,null,null,null,null,null,null,null,null,null,null,0]
["601 y 625",null,null,null,null,null,null,null,null,null,null,null,null,0]
["626 y 650",null,null,null,null,null,null,null,null,null,null,null,null,0]
["651 y 675",null,null,null,null,null,null,null,null,null,null,null,null,0]
["676 y 700",null,null,null,null,null,null,null,null,null,null,null,null,0]
["701 y 725",null,null,null,null,null,null,null,null,null,null,null,null,0]
["726 y 750",null,null,null,null,null,null,null,null,null,null,null,null,0]
["BTS3"]
["751 y 1000",null,null,null,null,null,null,null,null,null,null,null,null,0]
["1001 y 1500",null,null,null,null,null,null,null,null,null,null,null,null,0]
["1501 y 2000",null,null,null,null,null,null,null,null,null,null,null,null,0]
["2001 y 2500",null,null,null,null,null,null,null,null,null,null,null,null,0]
["2501 y 3000",null,null,null,null,null,null,null,null,null,null,null,null,0]
["Mayor a 3000",null,null,null,null,null,null,null,null,null,null,null,null,0]
["TOTAL BTS",{"$f":"+SUM(B234:B271)","v":0},0,0,0,0,0,0,0,0,0,0,0,{"$f":"+SUM(N234:N271)","v":0}]
["BTD"]
["1-100"]
["101-500"]
["501-1000"]
["1001-1500"]
["1501-2000"]
["2001-2500"]
["2501-3000"]
["3001-5000"]
["5001-10000"]
["10001-30000"]
["30001-50000"]
["50000 y más"]
["TOTAL BTD",{"$f":"SUM(B274:B285)","v":0},{"$f":"SUM(C274:C285)","v":0},0,0,0,0,0,0,0,0,0,0,0]

{"sheet":"11 H de 34","index":21,"n_rows":287,"n_cols":14,"rows_kept":287,"cut":false,"hidden":false,"merged":[[6,15,6,17],[3,19,3,28],[7,0,7,10],[6,13,6,14],[1,0,1,13],[2,0,2,13],[3,0,3,13],[4,0,4,13]]}
[]
["Formulario E-120-D"]
["(11 H de 34)"]
["INGRESOS FACTURADOS POR TARIFA\n(En Balboas)"]
["MONTO ASUMIDO POR EL ESTADO"]
[null,null,null,"NOMBRE DE LA EMPRESA:"]
[null,null,null,null,"AÑO:",null,null,"SEMESTRE:"]
[]
[null,"Ene","Feb","Mar","Abr","May","Jun","Jul","Ago","Sep","Oct","Nov","Dic","TOTAL"]
["BTS1"]
["Menor o Igual                        a 25",null,null,null,null,null,null,null,null,null,null,null,null,0]
["26 y 50",null,null,null,null,null,null,null,null,null,null,null,null,0]
["51 y 75",null,null,null,null,null,null,null,null,null,null,null,null,0]
["76 y 100",null,null,null,null,null,null,null,null,null,null,null,null,0]
["101 y 125",null,null,null,null,null,null,null,null,null,null,null,null,0]
["126 y 150",null,null,null,null,null,null,null,null,null,null,null,null,0]
["151 y 175",null,null,null,null,null,null,null,null,null,null,null,null,0]
["176 y 200",null,null,null,null,null,null,null,null,null,null,null,null,0]
["201 y 225",null,null,null,null,null,null,null,null,null,null,null,null,0]
["226 y 250",null,null,null,null,null,null,null,null,null,null,null,null,0]
["251 y 275",null,null,null,null,null,null,null,null,null,null,null,null,0]
["276 y 300",null,null,null,null,null,null,null,null,null,null,null,null,0]
["BTS2"]
["301 y 325",null,null,null,null,null,null,null,null,null,null,null,null,0]
["326 y 350",null,null,null,null,null,null,null,null,null,null,null,null,0]
["351 y 375",null,null,null,null,null,null,null,null,null,null,null,null,0]
["376 y 400",null,null,null,null,null,null,null,null,null,null,null,null,0]
["401 y 425",null,null,null,null,null,null,null,null,null,null,null,null,0]
["426 y 450",null,null,null,null,null,null,null,null,null,null,null,null,0]
["451 y 475",null,null,null,null,null,null,null,null,null,null,null,null,0]
["476 y 500",null,null,null,null,null,null,null,null,null,null,null,null,0]
["501 y 525",null,null,null,null,null,null,null,null,null,null,null,null,0]
["526 y 550",null,null,null,null,null,null,null,null,null,null,null,null,0]
["551 y 575",null,null,null,null,null,null,null,null,null,null,null,null,0]
["576 y 600",null,null,null,null,null,null,null,null,null,null,null,null,0]
["601 y 625",null,null,null,null,null,null,null,null,null,null,null,null,0]
["626 y 650",null,null,null,null,null,null,null,null,null,null,null,null,0]
["651 y 675",null,null,null,null,null,null,null,null,null,null,null,null,0]
["676 y 700",null,null,null,null,null,null,null,null,null,null,null,null,0]
["701 y 725",null,null,null,null,null,null,null,null,null,null,null,null,0]
["726 y 750",null,null,null,null,null,null,null,null,null,null,null,null,0]
["BTS3"]
["751 y 1000",null,null,null,null,null,null,null,null,null,null,null,null,0]
["1001 y 1500",null,null,null,null,null,null,null,null,null,null,null,null,0]
["1501 y 2000",null,null,null,null,null,null,null,null,null,null,null,null,0]
["2001 y 2500",null,null,null,null,null,null,null,null,null,null,null,null,0]
["2501 y 3000",null,null,null,null,null,null,null,null,null,null,null,null,0]
["Mayor a 3000 ",null,null,null,null,null,null,null,null,null,null,null,null,0]
["TOTAL BTS",0,0,0,0,0,0,0,0,0,0,0,0,0]
["BTD"]
["1-100"]
["101-500"]
["501-1000"]
["1001-1500"]
["1501-2000"]
["2001-2500"]
["2501-3000"]
["3001-5000"]
["5001-10000"]
["10001-30000"]
["30001-50000"]
["50000 y más"]
["TOTAL BTD",0,0,0,0,0,0,0,0,0,0,0,0,0]
[]
["REGULARES","enero","febrero","marzo","abril","mayo","junio","julio","agosto","sept","oct","nov","dic","TOTAL"]
["BTS1"]
["Menor o Igual                            a 25",null,null,null,null,null,null,null,null,null,null,null,null,{"$f":"+SUM(B67:M67)","v":0}]
["26 y 50",null,null,null,null,null,null,null,null,null,null,null,null,{"$f":"+SUM(B68:M68)","v":0}]
["51 y 75",null,null,null,null,null,null,null,null,null,null,null,null,0]
["76 y 100",null,null,null,null,null,null,null,null,null,null,null,null,0]
["101 y 125",null,null,null,null,null,null,null,null,null,null,null,null,0]
["126 y 150",null,null,null,null,null,null,null,null,null,null,null,null,0]
["151 y 175",null,null,null,null,null,null,null,null,null,null,null,null,0]
["176 y 200",null,null,null,null,null,null,null,null,null,null,null,null,0]
["201 y 225",null,null,null,null,null,null,null,null,null,null,null,null,0]
["226 y 250",null,null,null,null,null,null,null,null,null,null,null,null,0]
["251 y 275",null,null,null,null,null,null,null,null,null,null,null,null,0]
["276 y 300",null,null,null,null,null,null,null,null,null,null,null,null,0]
["BTS2"]
["301 y 325",null,null,null,null,null,null,null,null,null,null,null,null,0]
["326 y 350",null,null,null,null,null,null,null,null,null,null,null,null,0]
["351 y 375",null,null,null,null,null,null,null,null,null,null,null,null,0]
["376 y 400",null,null,null,null,null,null,null,null,null,null,null,null,0]
["401 y 425",null,null,null,null,null,null,null,null,null,null,null,null,0]
["426 y 450",null,null,null,null,null,null,null,null,null,null,null,null,0]
["451 y 475",null,null,null,null,null,null,null,null,null,null,null,null,0]
["476 y 500",null,null,null,null,null,null,null,null,null,null,null,null,0]
["501 y 525",null,null,null,null,null,null,null,null,null,null,null,null,0]
["526 y 550",null,null,null,null,null,null,null,null,null,null,null,null,0]
["551 y 575",null,null,null,null,null,null,null,null,null,null,null,null,0]
["576 y 600",null,null,null,null,null,null,null,null,null,null,null,null,0]
["601 y 625",null,null,null,null,null,null,null,null,null,null,null,null,0]
["626 y 650",null,null,null,null,null,null,null,null,null,null,null,null,0]
["651 y 675",null,null,null,null,null,null,null,null,null,null,null,null,0]
["676 y 700",null,null,null,null,null,null,null,null,null,null,null,null,0]
["701 y 725",null,null,null,null,null,null,null,null,null,null,null,null,0]
["726 y 750",null,null,null,null,null,null,null,null,null,null,null,null,0]
["BTS3"]
["751 y 1000",null,null,null,null,null,null,null,null,null,null,null,null,0]
["1001 y 1500",null,null,null,null,null,null,null,null,null,null,null,null,0]
["1501 y 2000",null,null,null,null,null,null,null,null,null,null,null,null,0]
["2001 y 2500",null,null,null,null,null,null,null,null,null,null,null,null,0]
["2501 y 3000",null,null,null,null,null,null,null,null,null,null,null,null,0]
["Mayor a 3000",null,null,null,null,null,null,null,null,null,null,null,null,0]
["TOTAL BTS",{"$f":"+SUM(B67:B104)","v":0},0,0,0,0,0,0,0,0,0,0,0,{"$f":"+SUM(N67:N104)","v":0}]
["BTD"]
["1-100"]
["101-500"]
["501-1000"]
["1001-1500"]
["1501-2000"]
["2001-2500"]
["2501-3000"]
["3001-5000"]
["5001-10000"]
["10001-30000"]
["30001-50000"]
["50000 y más"]
["TOTAL BTD",{"$f":"SUM(B107:B118)","v":0},{"$f":"SUM(C107:C118)","v":0},0,0,0,0,0,0,0,0,0,0,0]
[]
["AGRO","enero","febrero","marzo","abril","mayo","junio","julio","agosto","sept","oct","nov","dic","TOTAL"]
["BTS1"]
["Menor o Igual                               a 25",null,null,null,null,null,null,null,null,null,null,null,null,{"$f":"+SUM(B123:M123)","v":0}]
["26 y 50",null,null,null,null,null,null,null,null,null,null,null,null,{"$f":"+SUM(B124:M124)","v":0}]
["51 y 75",null,null,null,null,null,null,null,null,null,null,null,null,0]
["76 y 100",null,null,null,null,null,null,null,null,null,null,null,null,0]
["101 y 125",null,null,null,null,null,null,null,null,null,null,null,null,0]
["126 y 150",null,null,null,null,null,null,null,null,null,null,null,null,0]
["151 y 175",null,null,null,null,null,null,null,null,null,null,null,null,0]
["176 y 200",null,null,null,null,null,null,null,null,null,null,null,null,0]
["201 y 225",null,null,null,null,null,null,null,null,null,null,null,null,0]
["226 y 250",null,null,null,null,null,null,null,null,null,null,null,null,0]
["251 y 275",null,null,null,null,null,null,null,null,null,null,null,null,0]
["276 y 300",null,null,null,null,null,null,null,null,null,null,null,null,0]
["BTS2"]
["301 y 325",null,null,null,null,null,null,null,null,null,null,null,null,0]
["326 y 350",null,null,null,null,null,null,null,null,null,null,null,null,0]
["351 y 375",null,null,null,null,null,null,null,null,null,null,null,null,0]
["376 y 400",null,null,null,null,null,null,null,null,null,null,null,null,0]
["401 y 425",null,null,null,null,null,null,null,null,null,null,null,null,0]
["426 y 450",null,null,null,null,null,null,null,null,null,null,null,null,0]
["451 y 475",null,null,null,null,null,null,null,null,null,null,null,null,0]
["476 y 500",null,null,null,null,null,null,null,null,null,null,null,null,0]
["501 y 525",null,null,null,null,null,null,null,null,null,null,null,null,0]
["526 y 550",null,null,null,null,null,null,null,null,null,null,null,null,0]
["551 y 575",null,null,null,null,null,null,null,null,null,null,null,null,0]
["576 y 600",null,null,null,null,null,null,null,null,null,null,null,null,0]
["601 y 625",null,null,null,null,null,null,null,null,null,null,null,null,0]
["626 y 650",null,null,null,null,null,null,null,null,null,null,null,null,0]
["651 y 675",null,null,null,null,null,null,null,null,null,null,null,null,0]
["676 y 700",null,null,null,null,null,null,null,null,null,null,null,null,0]
["701 y 725",null,null,null,null,null,null,null,null,null,null,null,null,0]
["726 y 750",null,null,null,null,null,null,null,null,null,null,null,null,0]
["BTS3"]
["751 y 1000",null,null,null,null,null,null,null,null,null,null,null,null,0]
["1001 y 1500",null,null,null,null,null,null,null,null,null,null,null,null,0]
["1501 y 2000",null,null,null,null,null,null,null,null,null,null,null,null,0]
["2001 y 2500",null,null,null,null,null,null,null,null,null,null,null,null,0]
["2501 y 3000",null,null,null,null,null,null,null,null,null,null,null,null,0]
["Mayor a 3000",null,null,null,null,null,null,null,null,null,null,null,null,0]
["TOTAL BTS",{"$f":"+SUM(B123:B160)","v":0},0,0,0,0,0,0,0,0,0,0,0,{"$f":"+SUM(N123:N160)","v":0}]
["BTD"]
["1-100"]
["101-500"]
["501-1000"]
["1001-1500"]
["1501-2000"]
["2001-2500"]
["2501-3000"]
["3001-5000"]
["5001-10000"]
["10001-30000"]
["30001-50000"]
["50000 y más"]
["TOTAL BTD",{"$f":"SUM(B163:B174)","v":0},{"$f":"SUM(C163:C174)","v":0},0,0,0,0,0,0,0,0,0,0,0]
[]
["JUBILADOS","enero","febrero","marzo","abril","mayo","junio","julio","agosto","sept","oct","nov","dic","TOTAL"]
["BTS1"]
["Menor o Igual                      a 25",null,null,null,null,null,null,null,null,null,null,null,null,{"$f":"+SUM(B179:M179)","v":0}]
["26 y 50",null,null,null,null,null,null,null,null,null,null,null,null,{"$f":"+SUM(B180:M180)","v":0}]
["51 y 75",null,null,null,null,null,null,null,null,null,null,null,null,0]
["76 y 100",null,null,null,null,null,null,null,null,null,null,null,null,0]
["101 y 125",null,null,null,null,null,null,null,null,null,null,null,null,0]
["126 y 150",null,null,null,null,null,null,null,null,null,null,null,null,0]
["151 y 175",null,null,null,null,null,null,null,null,null,null,null,null,0]
["176 y 200",null,null,null,null,null,null,null,null,null,null,null,null,0]
["201 y 225",null,null,null,null,null,null,null,null,null,null,null,null,0]
["226 y 250",null,null,null,null,null,null,null,null,null,null,null,null,0]
["251 y 275",null,null,null,null,null,null,null,null,null,null,null,null,0]
["276 y 300",null,null,null,null,null,null,null,null,null,null,null,null,0]
["BTS2"]
["301 y 325",null,null,null,null,null,null,null,null,null,null,null,null,0]
["326 y 350",null,null,null,null,null,null,null,null,null,null,null,null,0]
["351 y 375",null,null,null,null,null,null,null,null,null,null,null,null,0]
["376 y 400",null,null,null,null,null,null,null,null,null,null,null,null,0]
["401 y 425",null,null,null,null,null,null,null,null,null,null,null,null,0]
["426 y 450",null,null,null,null,null,null,null,null,null,null,null,null,0]
["451 y 475",null,null,null,null,null,null,null,null,null,null,null,null,0]
["476 y 500",null,null,null,null,null,null,null,null,null,null,null,null,0]
["501 y 525",null,null,null,null,null,null,null,null,null,null,null,null,0]
["526 y 550",null,null,null,null,null,null,null,null,null,null,null,null,0]
["551 y 575",null,null,null,null,null,null,null,null,null,null,null,null,0]
["576 y 600",null,null,null,null,null,null,null,null,null,null,null,null,0]
["601 y 625",null,null,null,null,null,null,null,null,null,null,null,null,0]
["626 y 650",null,null,null,null,null,null,null,null,null,null,null,null,0]
["651 y 675",null,null,null,null,null,null,null,null,null,null,null,null,0]
["676 y 700",null,null,null,null,null,null,null,null,null,null,null,null,0]
["701 y 725",null,null,null,null,null,null,null,null,null,null,null,null,0]
["726 y 750",null,null,null,null,null,null,null,null,null,null,null,null,0]
["BTS3"]
["751 y 1000",null,null,null,null,null,null,null,null,null,null,null,null,0]
["1001 y 1500",null,null,null,null,null,null,null,null,null,null,null,null,0]
["1501 y 2000",null,null,null,null,null,null,null,null,null,null,null,null,0]
["2001 y 2500",null,null,null,null,null,null,null,null,null,null,null,null,0]
["2501 y 3000",null,null,null,null,null,null,null,null,null,null,null,null,0]
["Mayor a 3000",null,null,null,null,null,null,null,null,null,null,null,null,0]
["TOTAL BTS",{"$f":"+SUM(B179:B216)","v":0},0,0,0,0,0,0,0,0,0,0,0,{"$f":"+SUM(N179:N216)","v":0}]
["BTD"]
["1-100"]
["101-500"]
["501-1000"]
["1001-1500"]
["1501-2000"]
["2001-2500"]
["2501-3000"]
["3001-5000"]
["5001-10000"]
["10001-30000"]
["30001-50000"]
["50000 y más"]
["TOTAL BTD",{"$f":"SUM(B219:B230)","v":0},{"$f":"SUM(C219:C230)","v":0},0,0,0,0,0,0,0,0,0,0,0]
[]
["P. POLÍTICOS","enero","febrero","marzo","abril","mayo","junio","julio","agosto","sept","oct","nov","dic","TOTAL"]
["BTS1"]
["Menor o Igual                              a 25",null,null,null,null,null,null,null,null,null,null,null,null,{"$f":"+SUM(B235:M235)","v":0}]
["26 y 50",null,null,null,null,null,null,null,null,null,null,null,null,{"$f":"+SUM(B236:M236)","v":0}]
["51 y 75",null,null,null,null,null,null,null,null,null,null,null,null,0]
["76 y 100",null,null,null,null,null,null,null,null,null,null,null,null,0]
["101 y 125",null,null,null,null,null,null,null,null,null,null,null,null,0]
["126 y 150",null,null,null,null,null,null,null,null,null,null,null,null,0]
["151 y 175",null,null,null,null,null,null,null,null,null,null,null,null,0]
["176 y 200",null,null,null,null,null,null,null,null,null,null,null,null,0]
["201 y 225",null,null,null,null,null,null,null,null,null,null,null,null,0]
["226 y 250",null,null,null,null,null,null,null,null,null,null,null,null,0]
["251 y 275",null,null,null,null,null,null,null,null,null,null,null,null,0]
["276 y 300",null,null,null,null,null,null,null,null,null,null,null,null,0]
["BTS2"]
["301 y 325",null,null,null,null,null,null,null,null,null,null,null,null,0]
["326 y 350",null,null,null,null,null,null,null,null,null,null,null,null,0]
["351 y 375",null,null,null,null,null,null,null,null,null,null,null,null,0]
["376 y 400",null,null,null,null,null,null,null,null,null,null,null,null,0]
["401 y 425",null,null,null,null,null,null,null,null,null,null,null,null,0]
["426 y 450",null,null,null,null,null,null,null,null,null,null,null,null,0]
["451 y 475",null,null,null,null,null,null,null,null,null,null,null,null,0]
["476 y 500",null,null,null,null,null,null,null,null,null,null,null,null,0]
["501 y 525",null,null,null,null,null,null,null,null,null,null,null,null,0]
["526 y 550",null,null,null,null,null,null,null,null,null,null,null,null,0]
["551 y 575",null,null,null,null,null,null,null,null,null,null,null,null,0]
["576 y 600",null,null,null,null,null,null,null,null,null,null,null,null,0]
["601 y 625",null,null,null,null,null,null,null,null,null,null,null,null,0]
["626 y 650",null,null,null,null,null,null,null,null,null,null,null,null,0]
["651 y 675",null,null,null,null,null,null,null,null,null,null,null,null,0]
["676 y 700",null,null,null,null,null,null,null,null,null,null,null,null,0]
["701 y 725",null,null,null,null,null,null,null,null,null,null,null,null,0]
["726 y 750",null,null,null,null,null,null,null,null,null,null,null,null,0]
["BTS3"]
["751 y 1000",null,null,null,null,null,null,null,null,null,null,null,null,0]
["1001 y 1500",null,null,null,null,null,null,null,null,null,null,null,null,0]
["1501 y 2000",null,null,null,null,null,null,null,null,null,null,null,null,0]
["2001 y 2500",null,null,null,null,null,null,null,null,null,null,null,null,0]
["2501 y 3000",null,null,null,null,null,null,null,null,null,null,null,null,0]
["Mayor a 3000",null,null,null,null,null,null,null,null,null,null,null,null,0]
["TOTAL BTS",{"$f":"+SUM(B235:B272)","v":0},0,0,0,0,0,0,0,0,0,0,0,{"$f":"+SUM(N235:N272)","v":0}]
["BTD"]
["1-100"]
["101-500"]
["501-1000"]
["1001-1500"]
["1501-2000"]
["2001-2500"]
["2501-3000"]
["3001-5000"]
["5001-10000"]
["10001-30000"]
["30001-50000"]
["50000 y más"]
["TOTAL BTD",{"$f":"SUM(B275:B286)","v":0},{"$f":"SUM(C275:C286)","v":0},0,0,0,0,0,0,0,0,0,0,0]

{"sheet":"11 H1 de 34","index":22,"n_rows":287,"n_cols":14,"rows_kept":287,"cut":false,"hidden":false,"merged":[[6,13,6,14],[6,15,6,17],[1,0,1,13],[2,0,2,13],[3,0,3,13],[4,0,4,13],[5,2,5,4]]}
[]
["Formulario E-120-D"]
["( 11  H1  de  34 )"]
["INGRESOS FACTURADOS POR TARIFA\n(En Balboas)"]
["MONTO  ASUMIDO  POR  EL  ESTADO     ( FET )"]
[null,null,"NOMBRE DE LA EMPRESA:"]
[null,null,null,null,"AÑO:",null,null,"SEMESTRE:"]
[]
[null,"Ene","Feb","Mar","Abr","May","Jun","Jul","Ago","Sep","Oct","Nov","Dic","TOTAL"]
["BTS1"]
["Menor o Igual                                    a 25",null,null,null,null,null,null,null,null,null,null,null,null,0]
["26 y 50",null,null,null,null,null,null,null,null,null,null,null,null,0]
["51 y 75",null,null,null,null,null,null,null,null,null,null,null,null,0]
["76 y 100",null,null,null,null,null,null,null,null,null,null,null,null,0]
["101 y 125",null,null,null,null,null,null,null,null,null,null,null,null,0]
["126 y 150",null,null,null,null,null,null,null,null,null,null,null,null,0]
["151 y 175",null,null,null,null,null,null,null,null,null,null,null,null,0]
["176 y 200",null,null,null,null,null,null,null,null,null,null,null,null,0]
["201 y 225",null,null,null,null,null,null,null,null,null,null,null,null,0]
["226 y 250",null,null,null,null,null,null,null,null,null,null,null,null,0]
["251 y 275",null,null,null,null,null,null,null,null,null,null,null,null,0]
["276 y 300",null,null,null,null,null,null,null,null,null,null,null,null,0]
["BTS2"]
["301 y 325",null,null,null,null,null,null,null,null,null,null,null,null,0]
["326 y 350",null,null,null,null,null,null,null,null,null,null,null,null,0]
["351 y 375",null,null,null,null,null,null,null,null,null,null,null,null,0]
["376 y 400",null,null,null,null,null,null,null,null,null,null,null,null,0]
["401 y 425",null,null,null,null,null,null,null,null,null,null,null,null,0]
["426 y 450",null,null,null,null,null,null,null,null,null,null,null,null,0]
["451 y 475",null,null,null,null,null,null,null,null,null,null,null,null,0]
["476 y 500",null,null,null,null,null,null,null,null,null,null,null,null,0]
["501 y 525",null,null,null,null,null,null,null,null,null,null,null,null,0]
["526 y 550",null,null,null,null,null,null,null,null,null,null,null,null,0]
["551 y 575",null,null,null,null,null,null,null,null,null,null,null,null,0]
["576 y 600",null,null,null,null,null,null,null,null,null,null,null,null,0]
["601 y 625",null,null,null,null,null,null,null,null,null,null,null,null,0]
["626 y 650",null,null,null,null,null,null,null,null,null,null,null,null,0]
["651 y 675",null,null,null,null,null,null,null,null,null,null,null,null,0]
["676 y 700",null,null,null,null,null,null,null,null,null,null,null,null,0]
["701 y 725",null,null,null,null,null,null,null,null,null,null,null,null,0]
["726 y 750",null,null,null,null,null,null,null,null,null,null,null,null,0]
["BTS3"]
["751 y 1000",null,null,null,null,null,null,null,null,null,null,null,null,0]
["1001 y 1500",null,null,null,null,null,null,null,null,null,null,null,null,0]
["1501 y 2000",null,null,null,null,null,null,null,null,null,null,null,null,0]
["2001 y 2500",null,null,null,null,null,null,null,null,null,null,null,null,0]
["2501 y 3000",null,null,null,null,null,null,null,null,null,null,null,null,0]
["Mayor a 3000 ",null,null,null,null,null,null,null,null,null,null,null,null,0]
["TOTAL BTS",0,0,0,0,0,0,0,0,0,0,0,0,0]
["BTD"]
["1-100"]
["101-500"]
["501-1000"]
["1001-1500"]
["1501-2000"]
["2001-2500"]
["2501-3000"]
["3001-5000"]
["5001-10000"]
["10001-30000"]
["30001-50000"]
["50000 y más"]
["TOTAL BTD",0,0,0,0,0,0,0,0,0,0,0,0,0]
[]
["REGULARES","enero","febrero","marzo","abril","mayo","junio","julio","agosto","sept","oct","nov","dic","TOTAL"]
["BTS1"]
["Menor o Igual                                a 25",null,null,null,null,null,null,null,null,null,null,null,null,{"$f":"+SUM(B67:M67)","v":0}]
["26 y 50",null,null,null,null,null,null,null,null,null,null,null,null,{"$f":"+SUM(B68:M68)","v":0}]
["51 y 75",null,null,null,null,null,null,null,null,null,null,null,null,0]
["76 y 100",null,null,null,null,null,null,null,null,null,null,null,null,0]
["101 y 125",null,null,null,null,null,null,null,null,null,null,null,null,0]
["126 y 150",null,null,null,null,null,null,null,null,null,null,null,null,0]
["151 y 175",null,null,null,null,null,null,null,null,null,null,null,null,0]
["176 y 200",null,null,null,null,null,null,null,null,null,null,null,null,0]
["201 y 225",null,null,null,null,null,null,null,null,null,null,null,null,0]
["226 y 250",null,null,null,null,null,null,null,null,null,null,null,null,0]
["251 y 275",null,null,null,null,null,null,null,null,null,null,null,null,0]
["276 y 300",null,null,null,null,null,null,null,null,null,null,null,null,0]
["BTS2"]
["301 y 325",null,null,null,null,null,null,null,null,null,null,null,null,0]
["326 y 350",null,null,null,null,null,null,null,null,null,null,null,null,0]
["351 y 375",null,null,null,null,null,null,null,null,null,null,null,null,0]
["376 y 400",null,null,null,null,null,null,null,null,null,null,null,null,0]
["401 y 425",null,null,null,null,null,null,null,null,null,null,null,null,0]
["426 y 450",null,null,null,null,null,null,null,null,null,null,null,null,0]
["451 y 475",null,null,null,null,null,null,null,null,null,null,null,null,0]
["476 y 500",null,null,null,null,null,null,null,null,null,null,null,null,0]
["501 y 525",null,null,null,null,null,null,null,null,null,null,null,null,0]
["526 y 550",null,null,null,null,null,null,null,null,null,null,null,null,0]
["551 y 575",null,null,null,null,null,null,null,null,null,null,null,null,0]
["576 y 600",null,null,null,null,null,null,null,null,null,null,null,null,0]
["601 y 625",null,null,null,null,null,null,null,null,null,null,null,null,0]
["626 y 650",null,null,null,null,null,null,null,null,null,null,null,null,0]
["651 y 675",null,null,null,null,null,null,null,null,null,null,null,null,0]
["676 y 700",null,null,null,null,null,null,null,null,null,null,null,null,0]
["701 y 725",null,null,null,null,null,null,null,null,null,null,null,null,0]
["726 y 750",null,null,null,null,null,null,null,null,null,null,null,null,0]
["BTS3"]
["751 y 1000",null,null,null,null,null,null,null,null,null,null,null,null,0]
["1001 y 1500",null,null,null,null,null,null,null,null,null,null,null,null,0]
["1501 y 2000",null,null,null,null,null,null,null,null,null,null,null,null,0]
["2001 y 2500",null,null,null,null,null,null,null,null,null,null,null,null,0]
["2501 y 3000",null,null,null,null,null,null,null,null,null,null,null,null,0]
["Mayor a 3000",null,null,null,null,null,null,null,null,null,null,null,null,0]
["TOTAL BTS",{"$f":"+SUM(B67:B104)","v":0},0,0,0,0,0,0,0,0,0,0,0,{"$f":"+SUM(N67:N104)","v":0}]
["BTD"]
["1-100"]
["101-500"]
["501-1000"]
["1001-1500"]
["1501-2000"]
["2001-2500"]
["2501-3000"]
["3001-5000"]
["5001-10000"]
["10001-30000"]
["30001-50000"]
["50000 y más"]
["TOTAL BTD",{"$f":"SUM(B107:B118)","v":0},{"$f":"SUM(C107:C118)","v":0},0,0,0,0,0,0,0,0,0,0,0]
[]
["AGRO","enero","febrero","marzo","abril","mayo","junio","julio","agosto","sept","oct","nov","dic","TOTAL"]
["BTS1"]
["Menor o Igual                                 a 25",null,null,null,null,null,null,null,null,null,null,null,null,{"$f":"+SUM(B123:M123)","v":0}]
["26 y 50",null,null,null,null,null,null,null,null,null,null,null,null,{"$f":"+SUM(B124:M124)","v":0}]
["51 y 75",null,null,null,null,null,null,null,null,null,null,null,null,0]
["76 y 100",null,null,null,null,null,null,null,null,null,null,null,null,0]
["101 y 125",null,null,null,null,null,null,null,null,null,null,null,null,0]
["126 y 150",null,null,null,null,null,null,null,null,null,null,null,null,0]
["151 y 175",null,null,null,null,null,null,null,null,null,null,null,null,0]
["176 y 200",null,null,null,null,null,null,null,null,null,null,null,null,0]
["201 y 225",null,null,null,null,null,null,null,null,null,null,null,null,0]
["226 y 250",null,null,null,null,null,null,null,null,null,null,null,null,0]
["251 y 275",null,null,null,null,null,null,null,null,null,null,null,null,0]
["276 y 300",null,null,null,null,null,null,null,null,null,null,null,null,0]
["BTS2"]
["301 y 325",null,null,null,null,null,null,null,null,null,null,null,null,0]
["326 y 350",null,null,null,null,null,null,null,null,null,null,null,null,0]
["351 y 375",null,null,null,null,null,null,null,null,null,null,null,null,0]
["376 y 400",null,null,null,null,null,null,null,null,null,null,null,null,0]
["401 y 425",null,null,null,null,null,null,null,null,null,null,null,null,0]
["426 y 450",null,null,null,null,null,null,null,null,null,null,null,null,0]
["451 y 475",null,null,null,null,null,null,null,null,null,null,null,null,0]
["476 y 500",null,null,null,null,null,null,null,null,null,null,null,null,0]
["501 y 525",null,null,null,null,null,null,null,null,null,null,null,null,0]
["526 y 550",null,null,null,null,null,null,null,null,null,null,null,null,0]
["551 y 575",null,null,null,null,null,null,null,null,null,null,null,null,0]
["576 y 600",null,null,null,null,null,null,null,null,null,null,null,null,0]
["601 y 625",null,null,null,null,null,null,null,null,null,null,null,null,0]
["626 y 650",null,null,null,null,null,null,null,null,null,null,null,null,0]
["651 y 675",null,null,null,null,null,null,null,null,null,null,null,null,0]
["676 y 700",null,null,null,null,null,null,null,null,null,null,null,null,0]
["701 y 725",null,null,null,null,null,null,null,null,null,null,null,null,0]
["726 y 750",null,null,null,null,null,null,null,null,null,null,null,null,0]
["BTS3"]
["751 y 1000",null,null,null,null,null,null,null,null,null,null,null,null,0]
["1001 y 1500",null,null,null,null,null,null,null,null,null,null,null,null,0]
["1501 y 2000",null,null,null,null,null,null,null,null,null,null,null,null,0]
["2001 y 2500",null,null,null,null,null,null,null,null,null,null,null,null,0]
["2501 y 3000",null,null,null,null,null,null,null,null,null,null,null,null,0]
["Mayor a 3000",null,null,null,null,null,null,null,null,null,null,null,null,0]
["TOTAL BTS",{"$f":"+SUM(B123:B160)","v":0},0,0,0,0,0,0,0,0,0,0,0,{"$f":"+SUM(N123:N160)","v":0}]
["BTD"]
["1-100"]
["101-500"]
["501-1000"]
["1001-1500"]
["1501-2000"]
["2001-2500"]
["2501-3000"]
["3001-5000"]
["5001-10000"]
["10001-30000"]
["30001-50000"]
["50000 y más"]
["TOTAL BTD",{"$f":"SUM(B163:B174)","v":0},{"$f":"SUM(C163:C174)","v":0},0,0,0,0,0,0,0,0,0,0,0]
[]
["JUBILADOS","enero","febrero","marzo","abril","mayo","junio","julio","agosto","sept","oct","nov","dic","TOTAL"]
["BTS1"]
["Menor o Igual                                     a 25",null,null,null,null,null,null,null,null,null,null,null,null,{"$f":"+SUM(B179:M179)","v":0}]
["26 y 50",null,null,null,null,null,null,null,null,null,null,null,null,{"$f":"+SUM(B180:M180)","v":0}]
["51 y 75",null,null,null,null,null,null,null,null,null,null,null,null,0]
["76 y 100",null,null,null,null,null,null,null,null,null,null,null,null,0]
["101 y 125",null,null,null,null,null,null,null,null,null,null,null,null,0]
["126 y 150",null,null,null,null,null,null,null,null,null,null,null,null,0]
["151 y 175",null,null,null,null,null,null,null,null,null,null,null,null,0]
["176 y 200",null,null,null,null,null,null,null,null,null,null,null,null,0]
["201 y 225",null,null,null,null,null,null,null,null,null,null,null,null,0]
["226 y 250",null,null,null,null,null,null,null,null,null,null,null,null,0]
["251 y 275",null,null,null,null,null,null,null,null,null,null,null,null,0]
["276 y 300",null,null,null,null,null,null,null,null,null,null,null,null,0]
["BTS2"]
["301 y 325",null,null,null,null,null,null,null,null,null,null,null,null,0]
["326 y 350",null,null,null,null,null,null,null,null,null,null,null,null,0]
["351 y 375",null,null,null,null,null,null,null,null,null,null,null,null,0]
["376 y 400",null,null,null,null,null,null,null,null,null,null,null,null,0]
["401 y 425",null,null,null,null,null,null,null,null,null,null,null,null,0]
["426 y 450",null,null,null,null,null,null,null,null,null,null,null,null,0]
["451 y 475",null,null,null,null,null,null,null,null,null,null,null,null,0]
["476 y 500",null,null,null,null,null,null,null,null,null,null,null,null,0]
["501 y 525",null,null,null,null,null,null,null,null,null,null,null,null,0]
["526 y 550",null,null,null,null,null,null,null,null,null,null,null,null,0]
["551 y 575",null,null,null,null,null,null,null,null,null,null,null,null,0]
["576 y 600",null,null,null,null,null,null,null,null,null,null,null,null,0]
["601 y 625",null,null,null,null,null,null,null,null,null,null,null,null,0]
["626 y 650",null,null,null,null,null,null,null,null,null,null,null,null,0]
["651 y 675",null,null,null,null,null,null,null,null,null,null,null,null,0]
["676 y 700",null,null,null,null,null,null,null,null,null,null,null,null,0]
["701 y 725",null,null,null,null,null,null,null,null,null,null,null,null,0]
["726 y 750",null,null,null,null,null,null,null,null,null,null,null,null,0]
["BTS3"]
["751 y 1000",null,null,null,null,null,null,null,null,null,null,null,null,0]
["1001 y 1500",null,null,null,null,null,null,null,null,null,null,null,null,0]
["1501 y 2000",null,null,null,null,null,null,null,null,null,null,null,null,0]
["2001 y 2500",null,null,null,null,null,null,null,null,null,null,null,null,0]
["2501 y 3000",null,null,null,null,null,null,null,null,null,null,null,null,0]
["Mayor a 3000",null,null,null,null,null,null,null,null,null,null,null,null,0]
["TOTAL BTS",{"$f":"+SUM(B179:B216)","v":0},0,0,0,0,0,0,0,0,0,0,0,{"$f":"+SUM(N179:N216)","v":0}]
["BTD"]
["1-100"]
["101-500"]
["501-1000"]
["1001-1500"]
["1501-2000"]
["2001-2500"]
["2501-3000"]
["3001-5000"]
["5001-10000"]
["10001-30000"]
["30001-50000"]
["50000 y más"]
["TOTAL BTD",{"$f":"SUM(B219:B230)","v":0},{"$f":"SUM(C219:C230)","v":0},0,0,0,0,0,0,0,0,0,0,0]
[]
["P. POLÍTICOS","enero","febrero","marzo","abril","mayo","junio","julio","agosto","sept","oct","nov","dic","TOTAL"]
["BTS1"]
["Menor o Igual                              a 25",null,null,null,null,null,null,null,null,null,null,null,null,{"$f":"+SUM(B235:M235)","v":0}]
["26 y 50",null,null,null,null,null,null,null,null,null,null,null,null,{"$f":"+SUM(B236:M236)","v":0}]
["51 y 75",null,null,null,null,null,null,null,null,null,null,null,null,0]
["76 y 100",null,null,null,null,null,null,null,null,null,null,null,null,0]
["101 y 125",null,null,null,null,null,null,null,null,null,null,null,null,0]
["126 y 150",null,null,null,null,null,null,null,null,null,null,null,null,0]
["151 y 175",null,null,null,null,null,null,null,null,null,null,null,null,0]
["176 y 200",null,null,null,null,null,null,null,null,null,null,null,null,0]
["201 y 225",null,null,null,null,null,null,null,null,null,null,null,null,0]
["226 y 250",null,null,null,null,null,null,null,null,null,null,null,null,0]
["251 y 275",null,null,null,null,null,null,null,null,null,null,null,null,0]
["276 y 300",null,null,null,null,null,null,null,null,null,null,null,null,0]
["BTS2"]
["301 y 325",null,null,null,null,null,null,null,null,null,null,null,null,0]
["326 y 350",null,null,null,null,null,null,null,null,null,null,null,null,0]
["351 y 375",null,null,null,null,null,null,null,null,null,null,null,null,0]
["376 y 400",null,null,null,null,null,null,null,null,null,null,null,null,0]
["401 y 425",null,null,null,null,null,null,null,null,null,null,null,null,0]
["426 y 450",null,null,null,null,null,null,null,null,null,null,null,null,0]
["451 y 475",null,null,null,null,null,null,null,null,null,null,null,null,0]
["476 y 500",null,null,null,null,null,null,null,null,null,null,null,null,0]
["501 y 525",null,null,null,null,null,null,null,null,null,null,null,null,0]
["526 y 550",null,null,null,null,null,null,null,null,null,null,null,null,0]
["551 y 575",null,null,null,null,null,null,null,null,null,null,null,null,0]
["576 y 600",null,null,null,null,null,null,null,null,null,null,null,null,0]
["601 y 625",null,null,null,null,null,null,null,null,null,null,null,null,0]
["626 y 650",null,null,null,null,null,null,null,null,null,null,null,null,0]
["651 y 675",null,null,null,null,null,null,null,null,null,null,null,null,0]
["676 y 700",null,null,null,null,null,null,null,null,null,null,null,null,0]
["701 y 725",null,null,null,null,null,null,null,null,null,null,null,null,0]
["726 y 750",null,null,null,null,null,null,null,null,null,null,null,null,0]
["BTS3"]
["751 y 1000",null,null,null,null,null,null,null,null,null,null,null,null,0]
["1001 y 1500",null,null,null,null,null,null,null,null,null,null,null,null,0]
["1501 y 2000",null,null,null,null,null,null,null,null,null,null,null,null,0]
["2001 y 2500",null,null,null,null,null,null,null,null,null,null,null,null,0]
["2501 y 3000",null,null,null,null,null,null,null,null,null,null,null,null,0]
["Mayor a 3000",null,null,null,null,null,null,null,null,null,null,null,null,0]
["TOTAL BTS",{"$f":"+SUM(B235:B272)","v":0},0,0,0,0,0,0,0,0,0,0,0,{"$f":"+SUM(N235:N272)","v":0}]
["BTD"]
["1-100"]
["101-500"]
["501-1000"]
["1001-1500"]
["1501-2000"]
["2001-2500"]
["2501-3000"]
["3001-5000"]
["5001-10000"]
["10001-30000"]
["30001-50000"]
["50000 y más"]
["TOTAL BTD",{"$f":"SUM(B275:B286)","v":0},{"$f":"SUM(C275:C286)","v":0},0,0,0,0,0,0,0,0,0,0,0]

{"sheet":"11 H2 de 34","index":23,"n_rows":287,"n_cols":14,"rows_kept":287,"cut":false,"hidden":false,"merged":[[6,13,6,14],[6,15,6,17],[1,0,1,13],[2,0,2,13],[3,0,3,13],[4,0,4,13],[5,2,5,4]]}
[]
["Formulario E-120-D"]
["( 11  H2  de  34 )"]
["INGRESOS FACTURADSO POR TARIFA\n(En Balboas)"]
["MONTO ASUMIDO POR EL ESTADO ( FET  Adicional )"]
[null,null,"NOMBRE DE LA EMPRESA:"]
[null,null,null,null,"AÑO:",null,null,"SEMESTRE:"]
[]
[null,"Ene","Feb","Mar","Abr","May","Jun","Jul","Ago","Sep","Oct","Nov","Dic","TOTAL"]
["BTS1"]
["Menor o Igual                            a 25",null,null,null,null,null,null,null,null,null,null,null,null,0]
["26 y 50",null,null,null,null,null,null,null,null,null,null,null,null,0]
["51 y 75",null,null,null,null,null,null,null,null,null,null,null,null,0]
["76 y 100",null,null,null,null,null,null,null,null,null,null,null,null,0]
["101 y 125",null,null,null,null,null,null,null,null,null,null,null,null,0]
["126 y 150",null,null,null,null,null,null,null,null,null,null,null,null,0]
["151 y 175",null,null,null,null,null,null,null,null,null,null,null,null,0]
["176 y 200",null,null,null,null,null,null,null,null,null,null,null,null,0]
["201 y 225",null,null,null,null,null,null,null,null,null,null,null,null,0]
["226 y 250",null,null,null,null,null,null,null,null,null,null,null,null,0]
["251 y 275",null,null,null,null,null,null,null,null,null,null,null,null,0]
["276 y 300",null,null,null,null,null,null,null,null,null,null,null,null,0]
["BTS2"]
["301 y 325",null,null,null,null,null,null,null,null,null,null,null,null,0]
["326 y 350",null,null,null,null,null,null,null,null,null,null,null,null,0]
["351 y 375",null,null,null,null,null,null,null,null,null,null,null,null,0]
["376 y 400",null,null,null,null,null,null,null,null,null,null,null,null,0]
["401 y 425",null,null,null,null,null,null,null,null,null,null,null,null,0]
["426 y 450",null,null,null,null,null,null,null,null,null,null,null,null,0]
["451 y 475",null,null,null,null,null,null,null,null,null,null,null,null,0]
["476 y 500",null,null,null,null,null,null,null,null,null,null,null,null,0]
["501 y 525",null,null,null,null,null,null,null,null,null,null,null,null,0]
["526 y 550",null,null,null,null,null,null,null,null,null,null,null,null,0]
["551 y 575",null,null,null,null,null,null,null,null,null,null,null,null,0]
["576 y 600",null,null,null,null,null,null,null,null,null,null,null,null,0]
["601 y 625",null,null,null,null,null,null,null,null,null,null,null,null,0]
["626 y 650",null,null,null,null,null,null,null,null,null,null,null,null,0]
["651 y 675",null,null,null,null,null,null,null,null,null,null,null,null,0]
["676 y 700",null,null,null,null,null,null,null,null,null,null,null,null,0]
["701 y 725",null,null,null,null,null,null,null,null,null,null,null,null,0]
["726 y 750",null,null,null,null,null,null,null,null,null,null,null,null,0]
["BTS3"]
["751 y 1000",null,null,null,null,null,null,null,null,null,null,null,null,0]
["1001 y 1500",null,null,null,null,null,null,null,null,null,null,null,null,0]
["1501 y 2000",null,null,null,null,null,null,null,null,null,null,null,null,0]
["2001 y 2500",null,null,null,null,null,null,null,null,null,null,null,null,0]
["2501 y 3000",null,null,null,null,null,null,null,null,null,null,null,null,0]
["Mayor a 3000 ",null,null,null,null,null,null,null,null,null,null,null,null,0]
["TOTAL BTS",0,0,0,0,0,0,0,0,0,0,0,0,0]
["BTD"]
["1-100"]
["101-500"]
["501-1000"]
["1001-1500"]
["1501-2000"]
["2001-2500"]
["2501-3000"]
["3001-5000"]
["5001-10000"]
["10001-30000"]
["30001-50000"]
["50000 y más"]
["TOTAL BTD",0,0,0,0,0,0,0,0,0,0,0,0,0]
[]
["REGULARES","enero","febrero","marzo","abril","mayo","junio","julio","agosto","sept","oct","nov","dic","TOTAL"]
["BTS1"]
["Menor o Igual                             a 25",null,null,null,null,null,null,null,null,null,null,null,null,{"$f":"+SUM(B67:M67)","v":0}]
["26 y 50",null,null,null,null,null,null,null,null,null,null,null,null,{"$f":"+SUM(B68:M68)","v":0}]
["51 y 75",null,null,null,null,null,null,null,null,null,null,null,null,0]
["76 y 100",null,null,null,null,null,null,null,null,null,null,null,null,0]
["101 y 125",null,null,null,null,null,null,null,null,null,null,null,null,0]
["126 y 150",null,null,null,null,null,null,null,null,null,null,null,null,0]
["151 y 175",null,null,null,null,null,null,null,null,null,null,null,null,0]
["176 y 200",null,null,null,null,null,null,null,null,null,null,null,null,0]
["201 y 225",null,null,null,null,null,null,null,null,null,null,null,null,0]
["226 y 250",null,null,null,null,null,null,null,null,null,null,null,null,0]
["251 y 275",null,null,null,null,null,null,null,null,null,null,null,null,0]
["276 y 300",null,null,null,null,null,null,null,null,null,null,null,null,0]
["BTS2"]
["301 y 325",null,null,null,null,null,null,null,null,null,null,null,null,0]
["326 y 350",null,null,null,null,null,null,null,null,null,null,null,null,0]
["351 y 375",null,null,null,null,null,null,null,null,null,null,null,null,0]
["376 y 400",null,null,null,null,null,null,null,null,null,null,null,null,0]
["401 y 425",null,null,null,null,null,null,null,null,null,null,null,null,0]
["426 y 450",null,null,null,null,null,null,null,null,null,null,null,null,0]
["451 y 475",null,null,null,null,null,null,null,null,null,null,null,null,0]
["476 y 500",null,null,null,null,null,null,null,null,null,null,null,null,0]
["501 y 525",null,null,null,null,null,null,null,null,null,null,null,null,0]
["526 y 550",null,null,null,null,null,null,null,null,null,null,null,null,0]
["551 y 575",null,null,null,null,null,null,null,null,null,null,null,null,0]
["576 y 600",null,null,null,null,null,null,null,null,null,null,null,null,0]
["601 y 625",null,null,null,null,null,null,null,null,null,null,null,null,0]
["626 y 650",null,null,null,null,null,null,null,null,null,null,null,null,0]
["651 y 675",null,null,null,null,null,null,null,null,null,null,null,null,0]
["676 y 700",null,null,null,null,null,null,null,null,null,null,null,null,0]
["701 y 725",null,null,null,null,null,null,null,null,null,null,null,null,0]
["726 y 750",null,null,null,null,null,null,null,null,null,null,null,null,0]
["BTS3"]
["751 y 1000",null,null,null,null,null,null,null,null,null,null,null,null,0]
["1001 y 1500",null,null,null,null,null,null,null,null,null,null,null,null,0]
["1501 y 2000",null,null,null,null,null,null,null,null,null,null,null,null,0]
["2001 y 2500",null,null,null,null,null,null,null,null,null,null,null,null,0]
["2501 y 3000",null,null,null,null,null,null,null,null,null,null,null,null,0]
["Mayor a 3000",null,null,null,null,null,null,null,null,null,null,null,null,0]
["TOTAL BTS",{"$f":"+SUM(B67:B104)","v":0},0,0,0,0,0,0,0,0,0,0,0,{"$f":"+SUM(N67:N104)","v":0}]
["BTD"]
["1-100"]
["101-500"]
["501-1000"]
["1001-1500"]
["1501-2000"]
["2001-2500"]
["2501-3000"]
["3001-5000"]
["5001-10000"]
["10001-30000"]
["30001-50000"]
["50000 y más"]
["TOTAL BTD",{"$f":"SUM(B107:B118)","v":0},{"$f":"SUM(C107:C118)","v":0},0,0,0,0,0,0,0,0,0,0,0]
[]
["AGRO","enero","febrero","marzo","abril","mayo","junio","julio","agosto","sept","oct","nov","dic","TOTAL"]
["BTS1"]
["Menor o Igual                                      a 25",null,null,null,null,null,null,null,null,null,null,null,null,{"$f":"+SUM(B123:M123)","v":0}]
["26 y 50",null,null,null,null,null,null,null,null,null,null,null,null,{"$f":"+SUM(B124:M124)","v":0}]
["51 y 75",null,null,null,null,null,null,null,null,null,null,null,null,0]
["76 y 100",null,null,null,null,null,null,null,null,null,null,null,null,0]
["101 y 125",null,null,null,null,null,null,null,null,null,null,null,null,0]
["126 y 150",null,null,null,null,null,null,null,null,null,null,null,null,0]
["151 y 175",null,null,null,null,null,null,null,null,null,null,null,null,0]
["176 y 200",null,null,null,null,null,null,null,null,null,null,null,null,0]
["201 y 225",null,null,null,null,null,null,null,null,null,null,null,null,0]
["226 y 250",null,null,null,null,null,null,null,null,null,null,null,null,0]
["251 y 275",null,null,null,null,null,null,null,null,null,null,null,null,0]
["276 y 300",null,null,null,null,null,null,null,null,null,null,null,null,0]
["BTS2"]
["301 y 325",null,null,null,null,null,null,null,null,null,null,null,null,0]
["326 y 350",null,null,null,null,null,null,null,null,null,null,null,null,0]
["351 y 375",null,null,null,null,null,null,null,null,null,null,null,null,0]
["376 y 400",null,null,null,null,null,null,null,null,null,null,null,null,0]
["401 y 425",null,null,null,null,null,null,null,null,null,null,null,null,0]
["426 y 450",null,null,null,null,null,null,null,null,null,null,null,null,0]
["451 y 475",null,null,null,null,null,null,null,null,null,null,null,null,0]
["476 y 500",null,null,null,null,null,null,null,null,null,null,null,null,0]
["501 y 525",null,null,null,null,null,null,null,null,null,null,null,null,0]
["526 y 550",null,null,null,null,null,null,null,null,null,null,null,null,0]
["551 y 575",null,null,null,null,null,null,null,null,null,null,null,null,0]
["576 y 600",null,null,null,null,null,null,null,null,null,null,null,null,0]
["601 y 625",null,null,null,null,null,null,null,null,null,null,null,null,0]
["626 y 650",null,null,null,null,null,null,null,null,null,null,null,null,0]
["651 y 675",null,null,null,null,null,null,null,null,null,null,null,null,0]
["676 y 700",null,null,null,null,null,null,null,null,null,null,null,null,0]
["701 y 725",null,null,null,null,null,null,null,null,null,null,null,null,0]
["726 y 750",null,null,null,null,null,null,null,null,null,null,null,null,0]
["BTS3"]
["751 y 1000",null,null,null,null,null,null,null,null,null,null,null,null,0]
["1001 y 1500",null,null,null,null,null,null,null,null,null,null,null,null,0]
["1501 y 2000",null,null,null,null,null,null,null,null,null,null,null,null,0]
["2001 y 2500",null,null,null,null,null,null,null,null,null,null,null,null,0]
["2501 y 3000",null,null,null,null,null,null,null,null,null,null,null,null,0]
["Mayor a 3000",null,null,null,null,null,null,null,null,null,null,null,null,0]
["TOTAL BTS",{"$f":"+SUM(B123:B160)","v":0},0,0,0,0,0,0,0,0,0,0,0,{"$f":"+SUM(N123:N160)","v":0}]
["BTD"]
["1-100"]
["101-500"]
["501-1000"]
["1001-1500"]
["1501-2000"]
["2001-2500"]
["2501-3000"]
["3001-5000"]
["5001-10000"]
["10001-30000"]
["30001-50000"]
["50000 y más"]
["TOTAL BTD",{"$f":"SUM(B163:B174)","v":0},{"$f":"SUM(C163:C174)","v":0},0,0,0,0,0,0,0,0,0,0,0]
[]
["JUBILADOS","enero","febrero","marzo","abril","mayo","junio","julio","agosto","sept","oct","nov","dic","TOTAL"]
["BTS1"]
["Menor o Igual                                a 25",null,null,null,null,null,null,null,null,null,null,null,null,{"$f":"+SUM(B179:M179)","v":0}]
["26 y 50",null,null,null,null,null,null,null,null,null,null,null,null,{"$f":"+SUM(B180:M180)","v":0}]
["51 y 75",null,null,null,null,null,null,null,null,null,null,null,null,0]
["76 y 100",null,null,null,null,null,null,null,null,null,null,null,null,0]
["101 y 125",null,null,null,null,null,null,null,null,null,null,null,null,0]
["126 y 150",null,null,null,null,null,null,null,null,null,null,null,null,0]
["151 y 175",null,null,null,null,null,null,null,null,null,null,null,null,0]
["176 y 200",null,null,null,null,null,null,null,null,null,null,null,null,0]
["201 y 225",null,null,null,null,null,null,null,null,null,null,null,null,0]
["226 y 250",null,null,null,null,null,null,null,null,null,null,null,null,0]
["251 y 275",null,null,null,null,null,null,null,null,null,null,null,null,0]
["276 y 300",null,null,null,null,null,null,null,null,null,null,null,null,0]
["BTS2"]
["301 y 325",null,null,null,null,null,null,null,null,null,null,null,null,0]
["326 y 350",null,null,null,null,null,null,null,null,null,null,null,null,0]
["351 y 375",null,null,null,null,null,null,null,null,null,null,null,null,0]
["376 y 400",null,null,null,null,null,null,null,null,null,null,null,null,0]
["401 y 425",null,null,null,null,null,null,null,null,null,null,null,null,0]
["426 y 450",null,null,null,null,null,null,null,null,null,null,null,null,0]
["451 y 475",null,null,null,null,null,null,null,null,null,null,null,null,0]
["476 y 500",null,null,null,null,null,null,null,null,null,null,null,null,0]
["501 y 525",null,null,null,null,null,null,null,null,null,null,null,null,0]
["526 y 550",null,null,null,null,null,null,null,null,null,null,null,null,0]
["551 y 575",null,null,null,null,null,null,null,null,null,null,null,null,0]
["576 y 600",null,null,null,null,null,null,null,null,null,null,null,null,0]
["601 y 625",null,null,null,null,null,null,null,null,null,null,null,null,0]
["626 y 650",null,null,null,null,null,null,null,null,null,null,null,null,0]
["651 y 675",null,null,null,null,null,null,null,null,null,null,null,null,0]
["676 y 700",null,null,null,null,null,null,null,null,null,null,null,null,0]
["701 y 725",null,null,null,null,null,null,null,null,null,null,null,null,0]
["726 y 750",null,null,null,null,null,null,null,null,null,null,null,null,0]
["BTS3"]
["751 y 1000",null,null,null,null,null,null,null,null,null,null,null,null,0]
["1001 y 1500",null,null,null,null,null,null,null,null,null,null,null,null,0]
["1501 y 2000",null,null,null,null,null,null,null,null,null,null,null,null,0]
["2001 y 2500",null,null,null,null,null,null,null,null,null,null,null,null,0]
["2501 y 3000",null,null,null,null,null,null,null,null,null,null,null,null,0]
["Mayor a 3000",null,null,null,null,null,null,null,null,null,null,null,null,0]
["TOTAL BTS",{"$f":"+SUM(B179:B216)","v":0},0,0,0,0,0,0,0,0,0,0,0,{"$f":"+SUM(N179:N216)","v":0}]
["BTD"]
["1-100"]
["101-500"]
["501-1000"]
["1001-1500"]
["1501-2000"]
["2001-2500"]
["2501-3000"]
["3001-5000"]
["5001-10000"]
["10001-30000"]
["30001-50000"]
["50000 y más"]
["TOTAL BTD",{"$f":"SUM(B219:B230)","v":0},{"$f":"SUM(C219:C230)","v":0},0,0,0,0,0,0,0,0,0,0,0]
[]
["P. POLÍTICOS","enero","febrero","marzo","abril","mayo","junio","julio","agosto","sept","oct","nov","dic","TOTAL"]
["BTS1"]
["Menor o Igual                                         a 25",null,null,null,null,null,null,null,null,null,null,null,null,{"$f":"+SUM(B235:M235)","v":0}]
["26 y 50",null,null,null,null,null,null,null,null,null,null,null,null,{"$f":"+SUM(B236:M236)","v":0}]
["51 y 75",null,null,null,null,null,null,null,null,null,null,null,null,0]
["76 y 100",null,null,null,null,null,null,null,null,null,null,null,null,0]
["101 y 125",null,null,null,null,null,null,null,null,null,null,null,null,0]
["126 y 150",null,null,null,null,null,null,null,null,null,null,null,null,0]
["151 y 175",null,null,null,null,null,null,null,null,null,null,null,null,0]
["176 y 200",null,null,null,null,null,null,null,null,null,null,null,null,0]
["201 y 225",null,null,null,null,null,null,null,null,null,null,null,null,0]
["226 y 250",null,null,null,null,null,null,null,null,null,null,null,null,0]
["251 y 275",null,null,null,null,null,null,null,null,null,null,null,null,0]
["276 y 300",null,null,null,null,null,null,null,null,null,null,null,null,0]
["BTS2"]
["301 y 325",null,null,null,null,null,null,null,null,null,null,null,null,0]
["326 y 350",null,null,null,null,null,null,null,null,null,null,null,null,0]
["351 y 375",null,null,null,null,null,null,null,null,null,null,null,null,0]
["376 y 400",null,null,null,null,null,null,null,null,null,null,null,null,0]
["401 y 425",null,null,null,null,null,null,null,null,null,null,null,null,0]
["426 y 450",null,null,null,null,null,null,null,null,null,null,null,null,0]
["451 y 475",null,null,null,null,null,null,null,null,null,null,null,null,0]
["476 y 500",null,null,null,null,null,null,null,null,null,null,null,null,0]
["501 y 525",null,null,null,null,null,null,null,null,null,null,null,null,0]
["526 y 550",null,null,null,null,null,null,null,null,null,null,null,null,0]
["551 y 575",null,null,null,null,null,null,null,null,null,null,null,null,0]
["576 y 600",null,null,null,null,null,null,null,null,null,null,null,null,0]
["601 y 625",null,null,null,null,null,null,null,null,null,null,null,null,0]
["626 y 650",null,null,null,null,null,null,null,null,null,null,null,null,0]
["651 y 675",null,null,null,null,null,null,null,null,null,null,null,null,0]
["676 y 700",null,null,null,null,null,null,null,null,null,null,null,null,0]
["701 y 725",null,null,null,null,null,null,null,null,null,null,null,null,0]
["726 y 750",null,null,null,null,null,null,null,null,null,null,null,null,0]
["BTS3"]
["751 y 1000",null,null,null,null,null,null,null,null,null,null,null,null,0]
["1001 y 1500",null,null,null,null,null,null,null,null,null,null,null,null,0]
["1501 y 2000",null,null,null,null,null,null,null,null,null,null,null,null,0]
["2001 y 2500",null,null,null,null,null,null,null,null,null,null,null,null,0]
["2501 y 3000",null,null,null,null,null,null,null,null,null,null,null,null,0]
["Mayor a 3000",null,null,null,null,null,null,null,null,null,null,null,null,0]
["TOTAL BTS",{"$f":"+SUM(B235:B272)","v":0},0,0,0,0,0,0,0,0,0,0,0,{"$f":"+SUM(N235:N272)","v":0}]
["BTD"]
["1-100"]
["101-500"]
["501-1000"]
["1001-1500"]
["1501-2000"]
["2001-2500"]
["2501-3000"]
["3001-5000"]
["5001-10000"]
["10001-30000"]
["30001-50000"]
["50000 y más"]
["TOTAL BTD",{"$f":"SUM(B275:B286)","v":0},{"$f":"SUM(C275:C286)","v":0},0,0,0,0,0,0,0,0,0,0,0]

{"sheet":"11 H3 de 34","index":24,"n_rows":287,"n_cols":14,"rows_kept":287,"cut":false,"hidden":false,"merged":[[6,13,6,14],[6,15,6,17],[7,0,7,10],[1,0,1,13],[2,0,2,13],[3,0,3,13],[4,0,4,13],[5,2,5,4]]}
[]
["Formulario E-120-D"]
["(11 H3 de 34)"]
["INGRESOS FACTURADOS POR TARIFA\n(En Balboas)"]
["MONTO ASUMIDO POR EL ESTADO (FET   Extraordinario)"]
[null,null,"NOMBRE DE LA EMPRESA:"]
[null,null,null,null,"AÑO:",null,null,"SEMESTRE:"]
[]
[null,"Ene","Feb","Mar","Abr","May","Jun","Jul","Ago","Sep","Oct","Nov","Dic","TOTAL"]
["BTS1"]
["Menor o Igual                             a 25",null,null,null,null,null,null,null,null,null,null,null,null,0]
["26 y 50",null,null,null,null,null,null,null,null,null,null,null,null,0]
["51 y 75",null,null,null,null,null,null,null,null,null,null,null,null,0]
["76 y 100",null,null,null,null,null,null,null,null,null,null,null,null,0]
["101 y 125",null,null,null,null,null,null,null,null,null,null,null,null,0]
["126 y 150",null,null,null,null,null,null,null,null,null,null,null,null,0]
["151 y 175",null,null,null,null,null,null,null,null,null,null,null,null,0]
["176 y 200",null,null,null,null,null,null,null,null,null,null,null,null,0]
["201 y 225",null,null,null,null,null,null,null,null,null,null,null,null,0]
["226 y 250",null,null,null,null,null,null,null,null,null,null,null,null,0]
["251 y 275",null,null,null,null,null,null,null,null,null,null,null,null,0]
["276 y 300",null,null,null,null,null,null,null,null,null,null,null,null,0]
["BTS2"]
["301 y 325",null,null,null,null,null,null,null,null,null,null,null,null,0]
["326 y 350",null,null,null,null,null,null,null,null,null,null,null,null,0]
["351 y 375",null,null,null,null,null,null,null,null,null,null,null,null,0]
["376 y 400",null,null,null,null,null,null,null,null,null,null,null,null,0]
["401 y 425",null,null,null,null,null,null,null,null,null,null,null,null,0]
["426 y 450",null,null,null,null,null,null,null,null,null,null,null,null,0]
["451 y 475",null,null,null,null,null,null,null,null,null,null,null,null,0]
["476 y 500",null,null,null,null,null,null,null,null,null,null,null,null,0]
["501 y 525",null,null,null,null,null,null,null,null,null,null,null,null,0]
["526 y 550",null,null,null,null,null,null,null,null,null,null,null,null,0]
["551 y 575",null,null,null,null,null,null,null,null,null,null,null,null,0]
["576 y 600",null,null,null,null,null,null,null,null,null,null,null,null,0]
["601 y 625",null,null,null,null,null,null,null,null,null,null,null,null,0]
["626 y 650",null,null,null,null,null,null,null,null,null,null,null,null,0]
["651 y 675",null,null,null,null,null,null,null,null,null,null,null,null,0]
["676 y 700",null,null,null,null,null,null,null,null,null,null,null,null,0]
["701 y 725",null,null,null,null,null,null,null,null,null,null,null,null,0]
["726 y 750",null,null,null,null,null,null,null,null,null,null,null,null,0]
["BTS3"]
["751 y 1000",null,null,null,null,null,null,null,null,null,null,null,null,0]
["1001 y 1500",null,null,null,null,null,null,null,null,null,null,null,null,0]
["1501 y 2000",null,null,null,null,null,null,null,null,null,null,null,null,0]
["2001 y 2500",null,null,null,null,null,null,null,null,null,null,null,null,0]
["2501 y 3000",null,null,null,null,null,null,null,null,null,null,null,null,0]
["Mayor a 3000 ",null,null,null,null,null,null,null,null,null,null,null,null,0]
["TOTAL BTS",0,0,0,0,0,0,0,0,0,0,0,0,0]
["BTD"]
["1-100"]
["101-500"]
["501-1000"]
["1001-1500"]
["1501-2000"]
["2001-2500"]
["2501-3000"]
["3001-5000"]
["5001-10000"]
["10001-30000"]
["30001-50000"]
["50000 y más"]
["TOTAL BTD",0,0,0,0,0,0,0,0,0,0,0,0,0]
[]
["REGULARES","enero","febrero","marzo","abril","mayo","junio","julio","agosto","sept","oct","nov","dic","TOTAL"]
["BTS1"]
["Menor o Igual                          a 25",null,null,null,null,null,null,null,null,null,null,null,null,{"$f":"+SUM(B67:M67)","v":0}]
["26 y 50",null,null,null,null,null,null,null,null,null,null,null,null,{"$f":"+SUM(B68:M68)","v":0}]
["51 y 75",null,null,null,null,null,null,null,null,null,null,null,null,0]
["76 y 100",null,null,null,null,null,null,null,null,null,null,null,null,0]
["101 y 125",null,null,null,null,null,null,null,null,null,null,null,null,0]
["126 y 150",null,null,null,null,null,null,null,null,null,null,null,null,0]
["151 y 175",null,null,null,null,null,null,null,null,null,null,null,null,0]
["176 y 200",null,null,null,null,null,null,null,null,null,null,null,null,0]
["201 y 225",null,null,null,null,null,null,null,null,null,null,null,null,0]
["226 y 250",null,null,null,null,null,null,null,null,null,null,null,null,0]
["251 y 275",null,null,null,null,null,null,null,null,null,null,null,null,0]
["276 y 300",null,null,null,null,null,null,null,null,null,null,null,null,0]
["BTS2"]
["301 y 325",null,null,null,null,null,null,null,null,null,null,null,null,0]
["326 y 350",null,null,null,null,null,null,null,null,null,null,null,null,0]
["351 y 375",null,null,null,null,null,null,null,null,null,null,null,null,0]
["376 y 400",null,null,null,null,null,null,null,null,null,null,null,null,0]
["401 y 425",null,null,null,null,null,null,null,null,null,null,null,null,0]
["426 y 450",null,null,null,null,null,null,null,null,null,null,null,null,0]
["451 y 475",null,null,null,null,null,null,null,null,null,null,null,null,0]
["476 y 500",null,null,null,null,null,null,null,null,null,null,null,null,0]
["501 y 525",null,null,null,null,null,null,null,null,null,null,null,null,0]
["526 y 550",null,null,null,null,null,null,null,null,null,null,null,null,0]
["551 y 575",null,null,null,null,null,null,null,null,null,null,null,null,0]
["576 y 600",null,null,null,null,null,null,null,null,null,null,null,null,0]
["601 y 625",null,null,null,null,null,null,null,null,null,null,null,null,0]
["626 y 650",null,null,null,null,null,null,null,null,null,null,null,null,0]
["651 y 675",null,null,null,null,null,null,null,null,null,null,null,null,0]
["676 y 700",null,null,null,null,null,null,null,null,null,null,null,null,0]
["701 y 725",null,null,null,null,null,null,null,null,null,null,null,null,0]
["726 y 750",null,null,null,null,null,null,null,null,null,null,null,null,0]
["BTS3"]
["751 y 1000",null,null,null,null,null,null,null,null,null,null,null,null,0]
["1001 y 1500",null,null,null,null,null,null,null,null,null,null,null,null,0]
["1501 y 2000",null,null,null,null,null,null,null,null,null,null,null,null,0]
["2001 y 2500",null,null,null,null,null,null,null,null,null,null,null,null,0]
["2501 y 3000",null,null,null,null,null,null,null,null,null,null,null,null,0]
["Mayor a 3000",null,null,null,null,null,null,null,null,null,null,null,null,0]
["TOTAL BTS",{"$f":"+SUM(B67:B104)","v":0},0,0,0,0,0,0,0,0,0,0,0,{"$f":"+SUM(N67:N104)","v":0}]
["BTD"]
["1-100"]
["101-500"]
["501-1000"]
["1001-1500"]
["1501-2000"]
["2001-2500"]
["2501-3000"]
["3001-5000"]
["5001-10000"]
["10001-30000"]
["30001-50000"]
["50000 y más"]
["TOTAL BTD",{"$f":"SUM(B107:B118)","v":0},{"$f":"SUM(C107:C118)","v":0},0,0,0,0,0,0,0,0,0,0,0]
[]
["AGRO","enero","febrero","marzo","abril","mayo","junio","julio","agosto","sept","ocy","nov","dic","TOTAL"]
["BTS1"]
["Menor o Igual                             a 25",null,null,null,null,null,null,null,null,null,null,null,null,{"$f":"+SUM(B123:M123)","v":0}]
["26 y 50",null,null,null,null,null,null,null,null,null,null,null,null,{"$f":"+SUM(B124:M124)","v":0}]
["51 y 75",null,null,null,null,null,null,null,null,null,null,null,null,0]
["76 y 100",null,null,null,null,null,null,null,null,null,null,null,null,0]
["101 y 125",null,null,null,null,null,null,null,null,null,null,null,null,0]
["126 y 150",null,null,null,null,null,null,null,null,null,null,null,null,0]
["151 y 175",null,null,null,null,null,null,null,null,null,null,null,null,0]
["176 y 200",null,null,null,null,null,null,null,null,null,null,null,null,0]
["201 y 225",null,null,null,null,null,null,null,null,null,null,null,null,0]
["226 y 250",null,null,null,null,null,null,null,null,null,null,null,null,0]
["251 y 275",null,null,null,null,null,null,null,null,null,null,null,null,0]
["276 y 300",null,null,null,null,null,null,null,null,null,null,null,null,0]
["BTS2"]
["301 y 325",null,null,null,null,null,null,null,null,null,null,null,null,0]
["326 y 350",null,null,null,null,null,null,null,null,null,null,null,null,0]
["351 y 375",null,null,null,null,null,null,null,null,null,null,null,null,0]
["376 y 400",null,null,null,null,null,null,null,null,null,null,null,null,0]
["401 y 425",null,null,null,null,null,null,null,null,null,null,null,null,0]
["426 y 450",null,null,null,null,null,null,null,null,null,null,null,null,0]
["451 y 475",null,null,null,null,null,null,null,null,null,null,null,null,0]
["476 y 500",null,null,null,null,null,null,null,null,null,null,null,null,0]
["501 y 525",null,null,null,null,null,null,null,null,null,null,null,null,0]
["526 y 550",null,null,null,null,null,null,null,null,null,null,null,null,0]
["551 y 575",null,null,null,null,null,null,null,null,null,null,null,null,0]
["576 y 600",null,null,null,null,null,null,null,null,null,null,null,null,0]
["601 y 625",null,null,null,null,null,null,null,null,null,null,null,null,0]
["626 y 650",null,null,null,null,null,null,null,null,null,null,null,null,0]
["651 y 675",null,null,null,null,null,null,null,null,null,null,null,null,0]
["676 y 700",null,null,null,null,null,null,null,null,null,null,null,null,0]
["701 y 725",null,null,null,null,null,null,null,null,null,null,null,null,0]
["726 y 750",null,null,null,null,null,null,null,null,null,null,null,null,0]
["BTS3"]
["751 y 1000",null,null,null,null,null,null,null,null,null,null,null,null,0]
["1001 y 1500",null,null,null,null,null,null,null,null,null,null,null,null,0]
["1501 y 2000",null,null,null,null,null,null,null,null,null,null,null,null,0]
["2001 y 2500",null,null,null,null,null,null,null,null,null,null,null,null,0]
["2501 y 3000",null,null,null,null,null,null,null,null,null,null,null,null,0]
["Mayor a 3000",null,null,null,null,null,null,null,null,null,null,null,null,0]
["TOTAL BTS",{"$f":"+SUM(B123:B160)","v":0},0,0,0,0,0,0,0,0,0,0,0,{"$f":"+SUM(N123:N160)","v":0}]
["BTD"]
["1-100"]
["101-500"]
["501-1000"]
["1001-1500"]
["1501-2000"]
["2001-2500"]
["2501-3000"]
["3001-5000"]
["5001-10000"]
["10001-30000"]
["30001-50000"]
["50000 y más"]
["TOTAL BTD",{"$f":"SUM(B163:B174)","v":0},{"$f":"SUM(C163:C174)","v":0},0,0,0,0,0,0,0,0,0,0,0]
[]
["JUBILADOS","enero","febrero","marzo","abril","mayo","junio","julio","agosto","sept","ocy","nov","dic","TOTAL"]
["BTS1"]
["Menor o Igual                                a 25",null,null,null,null,null,null,null,null,null,null,null,null,{"$f":"+SUM(B179:M179)","v":0}]
["26 y 50",null,null,null,null,null,null,null,null,null,null,null,null,{"$f":"+SUM(B180:M180)","v":0}]
["51 y 75",null,null,null,null,null,null,null,null,null,null,null,null,0]
["76 y 100",null,null,null,null,null,null,null,null,null,null,null,null,0]
["101 y 125",null,null,null,null,null,null,null,null,null,null,null,null,0]
["126 y 150",null,null,null,null,null,null,null,null,null,null,null,null,0]
["151 y 175",null,null,null,null,null,null,null,null,null,null,null,null,0]
["176 y 200",null,null,null,null,null,null,null,null,null,null,null,null,0]
["201 y 225",null,null,null,null,null,null,null,null,null,null,null,null,0]
["226 y 250",null,null,null,null,null,null,null,null,null,null,null,null,0]
["251 y 275",null,null,null,null,null,null,null,null,null,null,null,null,0]
["276 y 300",null,null,null,null,null,null,null,null,null,null,null,null,0]
["BTS2"]
["301 y 325",null,null,null,null,null,null,null,null,null,null,null,null,0]
["326 y 350",null,null,null,null,null,null,null,null,null,null,null,null,0]
["351 y 375",null,null,null,null,null,null,null,null,null,null,null,null,0]
["376 y 400",null,null,null,null,null,null,null,null,null,null,null,null,0]
["401 y 425",null,null,null,null,null,null,null,null,null,null,null,null,0]
["426 y 450",null,null,null,null,null,null,null,null,null,null,null,null,0]
["451 y 475",null,null,null,null,null,null,null,null,null,null,null,null,0]
["476 y 500",null,null,null,null,null,null,null,null,null,null,null,null,0]
["501 y 525",null,null,null,null,null,null,null,null,null,null,null,null,0]
["526 y 550",null,null,null,null,null,null,null,null,null,null,null,null,0]
["551 y 575",null,null,null,null,null,null,null,null,null,null,null,null,0]
["576 y 600",null,null,null,null,null,null,null,null,null,null,null,null,0]
["601 y 625",null,null,null,null,null,null,null,null,null,null,null,null,0]
["626 y 650",null,null,null,null,null,null,null,null,null,null,null,null,0]
["651 y 675",null,null,null,null,null,null,null,null,null,null,null,null,0]
["676 y 700",null,null,null,null,null,null,null,null,null,null,null,null,0]
["701 y 725",null,null,null,null,null,null,null,null,null,null,null,null,0]
["726 y 750",null,null,null,null,null,null,null,null,null,null,null,null,0]
["BTS3"]
["751 y 1000",null,null,null,null,null,null,null,null,null,null,null,null,0]
["1001 y 1500",null,null,null,null,null,null,null,null,null,null,null,null,0]
["1501 y 2000",null,null,null,null,null,null,null,null,null,null,null,null,0]
["2001 y 2500",null,null,null,null,null,null,null,null,null,null,null,null,0]
["2501 y 3000",null,null,null,null,null,null,null,null,null,null,null,null,0]
["Mayor a 3000",null,null,null,null,null,null,null,null,null,null,null,null,0]
["TOTAL BTS",{"$f":"+SUM(B179:B216)","v":0},0,0,0,0,0,0,0,0,0,0,0,{"$f":"+SUM(N179:N216)","v":0}]
["BTD"]
["1-100"]
["101-500"]
["501-1000"]
["1001-1500"]
["1501-2000"]
["2001-2500"]
["2501-3000"]
["3001-5000"]
["5001-10000"]
["10001-30000"]
["30001-50000"]
["50000 y más"]
["TOTAL BTD",{"$f":"SUM(B219:B230)","v":0},{"$f":"SUM(C219:C230)","v":0},0,0,0,0,0,0,0,0,0,0,0]
[]
["P. POLÍTICOS","enero","febrero","marzo","abril","mayo","junio","julio","agosto","sept","ocy","nov","dic","TOTAL"]
["BTS1"]
["Menor o Igual                                         a 25",null,null,null,null,null,null,null,null,null,null,null,null,{"$f":"+SUM(B235:M235)","v":0}]
["26 y 50",null,null,null,null,null,null,null,null,null,null,null,null,{"$f":"+SUM(B236:M236)","v":0}]
["51 y 75",null,null,null,null,null,null,null,null,null,null,null,null,0]
["76 y 100",null,null,null,null,null,null,null,null,null,null,null,null,0]
["101 y 125",null,null,null,null,null,null,null,null,null,null,null,null,0]
["126 y 150",null,null,null,null,null,null,null,null,null,null,null,null,0]
["151 y 175",null,null,null,null,null,null,null,null,null,null,null,null,0]
["176 y 200",null,null,null,null,null,null,null,null,null,null,null,null,0]
["201 y 225",null,null,null,null,null,null,null,null,null,null,null,null,0]
["226 y 250",null,null,null,null,null,null,null,null,null,null,null,null,0]
["251 y 275",null,null,null,null,null,null,null,null,null,null,null,null,0]
["276 y 300",null,null,null,null,null,null,null,null,null,null,null,null,0]
["BTS2"]
["301 y 325",null,null,null,null,null,null,null,null,null,null,null,null,0]
["326 y 350",null,null,null,null,null,null,null,null,null,null,null,null,0]
["351 y 375",null,null,null,null,null,null,null,null,null,null,null,null,0]
["376 y 400",null,null,null,null,null,null,null,null,null,null,null,null,0]
["401 y 425",null,null,null,null,null,null,null,null,null,null,null,null,0]
["426 y 450",null,null,null,null,null,null,null,null,null,null,null,null,0]
["451 y 475",null,null,null,null,null,null,null,null,null,null,null,null,0]
["476 y 500",null,null,null,null,null,null,null,null,null,null,null,null,0]
["501 y 525",null,null,null,null,null,null,null,null,null,null,null,null,0]
["526 y 550",null,null,null,null,null,null,null,null,null,null,null,null,0]
["551 y 575",null,null,null,null,null,null,null,null,null,null,null,null,0]
["576 y 600",null,null,null,null,null,null,null,null,null,null,null,null,0]
["601 y 625",null,null,null,null,null,null,null,null,null,null,null,null,0]
["626 y 650",null,null,null,null,null,null,null,null,null,null,null,null,0]
["651 y 675",null,null,null,null,null,null,null,null,null,null,null,null,0]
["676 y 700",null,null,null,null,null,null,null,null,null,null,null,null,0]
["701 y 725",null,null,null,null,null,null,null,null,null,null,null,null,0]
["726 y 750",null,null,null,null,null,null,null,null,null,null,null,null,0]
["BTS3"]
["751 y 1000",null,null,null,null,null,null,null,null,null,null,null,null,0]
["1001 y 1500",null,null,null,null,null,null,null,null,null,null,null,null,0]
["1501 y 2000",null,null,null,null,null,null,null,null,null,null,null,null,0]
["2001 y 2500",null,null,null,null,null,null,null,null,null,null,null,null,0]
["2501 y 3000",null,null,null,null,null,null,null,null,null,null,null,null,0]
["Mayor a 3000",null,null,null,null,null,null,null,null,null,null,null,null,0]
["TOTAL BTS",{"$f":"+SUM(B235:B272)","v":0},0,0,0,0,0,0,0,0,0,0,0,{"$f":"+SUM(N235:N272)","v":0}]
["BTD"]
["1-100"]
["101-500"]
["501-1000"]
["1001-1500"]
["1501-2000"]
["2001-2500"]
["2501-3000"]
["3001-5000"]
["5001-10000"]
["10001-30000"]
["30001-50000"]
["50000 y más"]
["TOTAL BTD",{"$f":"SUM(B275:B286)","v":0},{"$f":"SUM(C275:C286)","v":0},0,0,0,0,0,0,0,0,0,0,0]

{"sheet":"11 H4 de 34 ","index":25,"n_rows":288,"n_cols":14,"rows_kept":288,"cut":false,"hidden":false,"merged":[[7,13,7,14],[7,15,7,17],[8,0,8,10],[1,0,1,13],[2,0,2,13],[5,0,5,13],[3,0,3,13],[4,0,4,13],[6,2,6,4]]}
[]
["Formulario E-120-D"]
["(11  H4  de  34)"]
["INGRESOS FACTURADOS POR TARIFA"]
["(En Balboas)"]
["MONTO ASUMIDO POR EL ESTADO (FTO)"]
[null,null,"NOMBRE DE LA EMPRESA:"]
[null,null,null,null,"AÑO:",null,null,"SEMESTRE:"]
[]
[null,"Ene","Feb","Mar","Abr","May","Jun","Jul","Ago","Sep","Oct","Nov","Dic","TOTAL"]
["BTS1"]
["Menor o Igual                                        a 25",null,null,null,null,null,null,null,null,null,null,null,null,0]
["26 y 50",null,null,null,null,null,null,null,null,null,null,null,null,0]
["51 y 75",null,null,null,null,null,null,null,null,null,null,null,null,0]
["76 y 100",null,null,null,null,null,null,null,null,null,null,null,null,0]
["101 y 125",null,null,null,null,null,null,null,null,null,null,null,null,0]
["126 y 150",null,null,null,null,null,null,null,null,null,null,null,null,0]
["151 y 175",null,null,null,null,null,null,null,null,null,null,null,null,0]
["176 y 200",null,null,null,null,null,null,null,null,null,null,null,null,0]
["201 y 225",null,null,null,null,null,null,null,null,null,null,null,null,0]
["226 y 250",null,null,null,null,null,null,null,null,null,null,null,null,0]
["251 y 275",null,null,null,null,null,null,null,null,null,null,null,null,0]
["276 y 300",null,null,null,null,null,null,null,null,null,null,null,null,0]
["BTS2"]
["301 y 325",null,null,null,null,null,null,null,null,null,null,null,null,0]
["326 y 350",null,null,null,null,null,null,null,null,null,null,null,null,0]
["351 y 375",null,null,null,null,null,null,null,null,null,null,null,null,0]
["376 y 400",null,null,null,null,null,null,null,null,null,null,null,null,0]
["401 y 425",null,null,null,null,null,null,null,null,null,null,null,null,0]
["426 y 450",null,null,null,null,null,null,null,null,null,null,null,null,0]
["451 y 475",null,null,null,null,null,null,null,null,null,null,null,null,0]
["476 y 500",null,null,null,null,null,null,null,null,null,null,null,null,0]
["501 y 525",null,null,null,null,null,null,null,null,null,null,null,null,0]
["526 y 550",null,null,null,null,null,null,null,null,null,null,null,null,0]
["551 y 575",null,null,null,null,null,null,null,null,null,null,null,null,0]
["576 y 600",null,null,null,null,null,null,null,null,null,null,null,null,0]
["601 y 625",null,null,null,null,null,null,null,null,null,null,null,null,0]
["626 y 650",null,null,null,null,null,null,null,null,null,null,null,null,0]
["651 y 675",null,null,null,null,null,null,null,null,null,null,null,null,0]
["676 y 700",null,null,null,null,null,null,null,null,null,null,null,null,0]
["701 y 725",null,null,null,null,null,null,null,null,null,null,null,null,0]
["726 y 750",null,null,null,null,null,null,null,null,null,null,null,null,0]
["BTS3"]
["751 y 1000",null,null,null,null,null,null,null,null,null,null,null,null,0]
["1001 y 1500",null,null,null,null,null,null,null,null,null,null,null,null,0]
["1501 y 2000",null,null,null,null,null,null,null,null,null,null,null,null,0]
["2001 y 2500",null,null,null,null,null,null,null,null,null,null,null,null,0]
["2501 y 3000",null,null,null,null,null,null,null,null,null,null,null,null,0]
["Mayor a 3000 ",null,null,null,null,null,null,null,null,null,null,null,null,0]
["TOTAL BTS",0,0,0,0,0,0,0,0,0,0,0,0,0]
["BTD"]
["1-100"]
["101-500"]
["501-1000"]
["1001-1500"]
["1501-2000"]
["2001-2500"]
["2501-3000"]
["3001-5000"]
["5001-10000"]
["10001-30000"]
["30001-50000"]
["50000 y más"]
["TOTAL BTD",0,0,0,0,0,0,0,0,0,0,0,0,0]
[]
["REGULARES","enero","febrero","marzo","abril","mayo","junio","julio","agosto","sept","oct","nov","dic","TOTAL"]
["BTS1"]
["Menor o Igual                                                  a 25",null,null,null,null,null,null,null,null,null,null,null,null,{"$f":"+SUM(B68:M68)","v":0}]
["26 y 50",null,null,null,null,null,null,null,null,null,null,null,null,{"$f":"+SUM(B69:M69)","v":0}]
["51 y 75",null,null,null,null,null,null,null,null,null,null,null,null,0]
["76 y 100",null,null,null,null,null,null,null,null,null,null,null,null,0]
["101 y 125",null,null,null,null,null,null,null,null,null,null,null,null,0]
["126 y 150",null,null,null,null,null,null,null,null,null,null,null,null,0]
["151 y 175",null,null,null,null,null,null,null,null,null,null,null,null,0]
["176 y 200",null,null,null,null,null,null,null,null,null,null,null,null,0]
["201 y 225",null,null,null,null,null,null,null,null,null,null,null,null,0]
["226 y 250",null,null,null,null,null,null,null,null,null,null,null,null,0]
["251 y 275",null,null,null,null,null,null,null,null,null,null,null,null,0]
["276 y 300",null,null,null,null,null,null,null,null,null,null,null,null,0]
["BTS2"]
["301 y 325",null,null,null,null,null,null,null,null,null,null,null,null,0]
["326 y 350",null,null,null,null,null,null,null,null,null,null,null,null,0]
["351 y 375",null,null,null,null,null,null,null,null,null,null,null,null,0]
["376 y 400",null,null,null,null,null,null,null,null,null,null,null,null,0]
["401 y 425",null,null,null,null,null,null,null,null,null,null,null,null,0]
["426 y 450",null,null,null,null,null,null,null,null,null,null,null,null,0]
["451 y 475",null,null,null,null,null,null,null,null,null,null,null,null,0]
["476 y 500",null,null,null,null,null,null,null,null,null,null,null,null,0]
["501 y 525",null,null,null,null,null,null,null,null,null,null,null,null,0]
["526 y 550",null,null,null,null,null,null,null,null,null,null,null,null,0]
["551 y 575",null,null,null,null,null,null,null,null,null,null,null,null,0]
["576 y 600",null,null,null,null,null,null,null,null,null,null,null,null,0]
["601 y 625",null,null,null,null,null,null,null,null,null,null,null,null,0]
["626 y 650",null,null,null,null,null,null,null,null,null,null,null,null,0]
["651 y 675",null,null,null,null,null,null,null,null,null,null,null,null,0]
["676 y 700",null,null,null,null,null,null,null,null,null,null,null,null,0]
["701 y 725",null,null,null,null,null,null,null,null,null,null,null,null,0]
["726 y 750",null,null,null,null,null,null,null,null,null,null,null,null,0]
["BTS3"]
["751 y 1000",null,null,null,null,null,null,null,null,null,null,null,null,0]
["1001 y 1500",null,null,null,null,null,null,null,null,null,null,null,null,0]
["1501 y 2000",null,null,null,null,null,null,null,null,null,null,null,null,0]
["2001 y 2500",null,null,null,null,null,null,null,null,null,null,null,null,0]
["2501 y 3000",null,null,null,null,null,null,null,null,null,null,null,null,0]
["Mayor a 3000",null,null,null,null,null,null,null,null,null,null,null,null,0]
["TOTAL BTS",{"$f":"+SUM(B68:B105)","v":0},0,0,0,0,0,0,0,0,0,0,0,{"$f":"+SUM(N68:N105)","v":0}]
["BTD"]
["1-100"]
["101-500"]
["501-1000"]
["1001-1500"]
["1501-2000"]
["2001-2500"]
["2501-3000"]
["3001-5000"]
["5001-10000"]
["10001-30000"]
["30001-50000"]
["50000 y más"]
["TOTAL BTD",{"$f":"SUM(B108:B119)","v":0},{"$f":"SUM(C108:C119)","v":0},0,0,0,0,0,0,0,0,0,0,0]
[]
["AGRO","enero","febrero","marzo","abril","mayo","junio","julio","agosto","sept","oct","nov","dic","TOTAL"]
["BTS1"]
["Menor o Igual                                                   a 25",null,null,null,null,null,null,null,null,null,null,null,null,{"$f":"+SUM(B124:M124)","v":0}]
["26 y 50",null,null,null,null,null,null,null,null,null,null,null,null,{"$f":"+SUM(B125:M125)","v":0}]
["51 y 75",null,null,null,null,null,null,null,null,null,null,null,null,0]
["76 y 100",null,null,null,null,null,null,null,null,null,null,null,null,0]
["101 y 125",null,null,null,null,null,null,null,null,null,null,null,null,0]
["126 y 150",null,null,null,null,null,null,null,null,null,null,null,null,0]
["151 y 175",null,null,null,null,null,null,null,null,null,null,null,null,0]
["176 y 200",null,null,null,null,null,null,null,null,null,null,null,null,0]
["201 y 225",null,null,null,null,null,null,null,null,null,null,null,null,0]
["226 y 250",null,null,null,null,null,null,null,null,null,null,null,null,0]
["251 y 275",null,null,null,null,null,null,null,null,null,null,null,null,0]
["276 y 300",null,null,null,null,null,null,null,null,null,null,null,null,0]
["BTS2"]
["301 y 325",null,null,null,null,null,null,null,null,null,null,null,null,0]
["326 y 350",null,null,null,null,null,null,null,null,null,null,null,null,0]
["351 y 375",null,null,null,null,null,null,null,null,null,null,null,null,0]
["376 y 400",null,null,null,null,null,null,null,null,null,null,null,null,0]
["401 y 425",null,null,null,null,null,null,null,null,null,null,null,null,0]
["426 y 450",null,null,null,null,null,null,null,null,null,null,null,null,0]
["451 y 475",null,null,null,null,null,null,null,null,null,null,null,null,0]
["476 y 500",null,null,null,null,null,null,null,null,null,null,null,null,0]
["501 y 525",null,null,null,null,null,null,null,null,null,null,null,null,0]
["526 y 550",null,null,null,null,null,null,null,null,null,null,null,null,0]
["551 y 575",null,null,null,null,null,null,null,null,null,null,null,null,0]
["576 y 600",null,null,null,null,null,null,null,null,null,null,null,null,0]
["601 y 625",null,null,null,null,null,null,null,null,null,null,null,null,0]
["626 y 650",null,null,null,null,null,null,null,null,null,null,null,null,0]
["651 y 675",null,null,null,null,null,null,null,null,null,null,null,null,0]
["676 y 700",null,null,null,null,null,null,null,null,null,null,null,null,0]
["701 y 725",null,null,null,null,null,null,null,null,null,null,null,null,0]
["726 y 750",null,null,null,null,null,null,null,null,null,null,null,null,0]
["BTS3"]
["751 y 1000",null,null,null,null,null,null,null,null,null,null,null,null,0]
["1001 y 1500",null,null,null,null,null,null,null,null,null,null,null,null,0]
["1501 y 2000",null,null,null,null,null,null,null,null,null,null,null,null,0]
["2001 y 2500",null,null,null,null,null,null,null,null,null,null,null,null,0]
["2501 y 3000",null,null,null,null,null,null,null,null,null,null,null,null,0]
["Mayor a 3000",null,null,null,null,null,null,null,null,null,null,null,null,0]
["TOTAL BTS",{"$f":"+SUM(B124:B161)","v":0},0,0,0,0,0,0,0,0,0,0,0,{"$f":"+SUM(N124:N161)","v":0}]
["BTD"]
["1-100"]
["101-500"]
["501-1000"]
["1001-1500"]
["1501-2000"]
["2001-2500"]
["2501-3000"]
["3001-5000"]
["5001-10000"]
["10001-30000"]
["30001-50000"]
["50000 y más"]
["TOTAL BTD",{"$f":"SUM(B164:B175)","v":0},{"$f":"SUM(C164:C175)","v":0},0,0,0,0,0,0,0,0,0,0,0]
[]
["JUBILADOS","enero","febrero","marzo","abril","mayo","junio","julio","agosto","sept","oct","nov","dic","TOTAL"]
["BTS1"]
["Menor o Igual                                                     a 25",null,null,null,null,null,null,null,null,null,null,null,null,{"$f":"+SUM(B180:M180)","v":0}]
["26 y 50",null,null,null,null,null,null,null,null,null,null,null,null,{"$f":"+SUM(B181:M181)","v":0}]
["51 y 75",null,null,null,null,null,null,null,null,null,null,null,null,0]
["76 y 100",null,null,null,null,null,null,null,null,null,null,null,null,0]
["101 y 125",null,null,null,null,null,null,null,null,null,null,null,null,0]
["126 y 150",null,null,null,null,null,null,null,null,null,null,null,null,0]
["151 y 175",null,null,null,null,null,null,null,null,null,null,null,null,0]
["176 y 200",null,null,null,null,null,null,null,null,null,null,null,null,0]
["201 y 225",null,null,null,null,null,null,null,null,null,null,null,null,0]
["226 y 250",null,null,null,null,null,null,null,null,null,null,null,null,0]
["251 y 275",null,null,null,null,null,null,null,null,null,null,null,null,0]
["276 y 300",null,null,null,null,null,null,null,null,null,null,null,null,0]
["BTS2"]
["301 y 325",null,null,null,null,null,null,null,null,null,null,null,null,0]
["326 y 350",null,null,null,null,null,null,null,null,null,null,null,null,0]
["351 y 375",null,null,null,null,null,null,null,null,null,null,null,null,0]
["376 y 400",null,null,null,null,null,null,null,null,null,null,null,null,0]
["401 y 425",null,null,null,null,null,null,null,null,null,null,null,null,0]
["426 y 450",null,null,null,null,null,null,null,null,null,null,null,null,0]
["451 y 475",null,null,null,null,null,null,null,null,null,null,null,null,0]
["476 y 500",null,null,null,null,null,null,null,null,null,null,null,null,0]
["501 y 525",null,null,null,null,null,null,null,null,null,null,null,null,0]
["526 y 550",null,null,null,null,null,null,null,null,null,null,null,null,0]
["551 y 575",null,null,null,null,null,null,null,null,null,null,null,null,0]
["576 y 600",null,null,null,null,null,null,null,null,null,null,null,null,0]
["601 y 625",null,null,null,null,null,null,null,null,null,null,null,null,0]
["626 y 650",null,null,null,null,null,null,null,null,null,null,null,null,0]
["651 y 675",null,null,null,null,null,null,null,null,null,null,null,null,0]
["676 y 700",null,null,null,null,null,null,null,null,null,null,null,null,0]
["701 y 725",null,null,null,null,null,null,null,null,null,null,null,null,0]
["726 y 750",null,null,null,null,null,null,null,null,null,null,null,null,0]
["BTS3"]
["751 y 1000",null,null,null,null,null,null,null,null,null,null,null,null,0]
["1001 y 1500",null,null,null,null,null,null,null,null,null,null,null,null,0]
["1501 y 2000",null,null,null,null,null,null,null,null,null,null,null,null,0]
["2001 y 2500",null,null,null,null,null,null,null,null,null,null,null,null,0]
["2501 y 3000",null,null,null,null,null,null,null,null,null,null,null,null,0]
["Mayor a 3000",null,null,null,null,null,null,null,null,null,null,null,null,0]
["TOTAL BTS",{"$f":"+SUM(B180:B217)","v":0},0,0,0,0,0,0,0,0,0,0,0,{"$f":"+SUM(N180:N217)","v":0}]
["BTD"]
["1-100"]
["101-500"]
["501-1000"]
["1001-1500"]
["1501-2000"]
["2001-2500"]
["2501-3000"]
["3001-5000"]
["5001-10000"]
["10001-30000"]
["30001-50000"]
["50000 y más"]
["TOTAL BTD",{"$f":"SUM(B220:B231)","v":0},{"$f":"SUM(C220:C231)","v":0},0,0,0,0,0,0,0,0,0,0,0]
[]
["P. POLÍTICOS","enero","febrero","marzo","abril","mayo","junio","julio","agosto","sept","oct","nov","dic","TOTAL"]
["BTS1"]
["Menor o Igual                                           a 25",null,null,null,null,null,null,null,null,null,null,null,null,{"$f":"+SUM(B236:M236)","v":0}]
["26 y 50",null,null,null,null,null,null,null,null,null,null,null,null,{"$f":"+SUM(B237:M237)","v":0}]
["51 y 75",null,null,null,null,null,null,null,null,null,null,null,null,0]
["76 y 100",null,null,null,null,null,null,null,null,null,null,null,null,0]
["101 y 125",null,null,null,null,null,null,null,null,null,null,null,null,0]
["126 y 150",null,null,null,null,null,null,null,null,null,null,null,null,0]
["151 y 175",null,null,null,null,null,null,null,null,null,null,null,null,0]
["176 y 200",null,null,null,null,null,null,null,null,null,null,null,null,0]
["201 y 225",null,null,null,null,null,null,null,null,null,null,null,null,0]
["226 y 250",null,null,null,null,null,null,null,null,null,null,null,null,0]
["251 y 275",null,null,null,null,null,null,null,null,null,null,null,null,0]
["276 y 300",null,null,null,null,null,null,null,null,null,null,null,null,0]
["BTS2"]
["301 y 325",null,null,null,null,null,null,null,null,null,null,null,null,0]
["326 y 350",null,null,null,null,null,null,null,null,null,null,null,null,0]
["351 y 375",null,null,null,null,null,null,null,null,null,null,null,null,0]
["376 y 400",null,null,null,null,null,null,null,null,null,null,null,null,0]
["401 y 425",null,null,null,null,null,null,null,null,null,null,null,null,0]
["426 y 450",null,null,null,null,null,null,null,null,null,null,null,null,0]
["451 y 475",null,null,null,null,null,null,null,null,null,null,null,null,0]
["476 y 500",null,null,null,null,null,null,null,null,null,null,null,null,0]
["501 y 525",null,null,null,null,null,null,null,null,null,null,null,null,0]
["526 y 550",null,null,null,null,null,null,null,null,null,null,null,null,0]
["551 y 575",null,null,null,null,null,null,null,null,null,null,null,null,0]
["576 y 600",null,null,null,null,null,null,null,null,null,null,null,null,0]
["601 y 625",null,null,null,null,null,null,null,null,null,null,null,null,0]
["626 y 650",null,null,null,null,null,null,null,null,null,null,null,null,0]
["651 y 675",null,null,null,null,null,null,null,null,null,null,null,null,0]
["676 y 700",null,null,null,null,null,null,null,null,null,null,null,null,0]
["701 y 725",null,null,null,null,null,null,null,null,null,null,null,null,0]
["726 y 750",null,null,null,null,null,null,null,null,null,null,null,null,0]
["BTS3"]
["751 y 1000",null,null,null,null,null,null,null,null,null,null,null,null,0]
["1001 y 1500",null,null,null,null,null,null,null,null,null,null,null,null,0]
["1501 y 2000",null,null,null,null,null,null,null,null,null,null,null,null,0]
["2001 y 2500",null,null,null,null,null,null,null,null,null,null,null,null,0]
["2501 y 3000",null,null,null,null,null,null,null,null,null,null,null,null,0]
["Mayor a 3000",null,null,null,null,null,null,null,null,null,null,null,null,0]
["TOTAL BTS",{"$f":"+SUM(B236:B273)","v":0},0,0,0,0,0,0,0,0,0,0,0,{"$f":"+SUM(N236:N273)","v":0}]
["BTD"]
["1-100"]
["101-500"]
["501-1000"]
["1001-1500"]
["1501-2000"]
["2001-2500"]
["2501-3000"]
["3001-5000"]
["5001-10000"]
["10001-30000"]
["30001-50000"]
["50000 y más"]
["TOTAL BTD",{"$f":"SUM(B276:B287)","v":0},{"$f":"SUM(C276:C287)","v":0},0,0,0,0,0,0,0,0,0,0,0]

{"sheet":"12 de 34","index":26,"n_rows":21,"n_cols":9,"rows_kept":21,"cut":false,"hidden":false,"merged":[[3,0,3,8],[4,1,4,2],[1,0,1,8],[2,0,2,8]]}
[]
["Formulario E-120-D "]
[" (12 de 34)"]
["PRECIO PROMEDIO CORRIENTE POR CLASE DE SERVICIO\n(Centésimos de Balboa por  kWh) "]
[null,"              \nNOMBRE DE LA EMPRESA:"]
[null,null,"AÑO:",null,"SEMESTRE:"]
[]
["MES","RESIDENCIAL","COMERCIAL","INDUSTRIAL","GOBIERNO","CONSUMO EMPRESA","A/P","OTROS","TOTAL"]
["ENERO"]
["FEBRERO"]
["MARZO"]
["ABRIL"]
["MAYO"]
["JUNIO"]
["JULIO"]
["AGOSTO"]
["SEPTIEMBRE"]
["OCTUBRE"]
["NOVIEMBRE"]
["DICIEMBRE"]
["TOTAL"]

{"sheet":"13 de 34","index":27,"n_rows":22,"n_cols":19,"rows_kept":22,"cut":false,"hidden":false,"merged":[[7,12,7,18],[7,1,7,11],[7,0,8,0],[1,0,1,18],[2,0,2,18],[3,0,3,18],[4,4,4,6]]}
[]
["Formulario E-120-D"]
["(13 de 34)"]
["PRECIO PROMEDIO CORRIENTE POR TARIFA\n(Centésimos de Balboa por  kWh)"]
[null,null,null,null,"                \nNOMBRE DE LA EMPRESA:"]
[null,null,null,null,null,null,"AÑO:",null,null,"SEMESTRE:"]
[]
["MES","CLIENTES REGULADOS",null,null,null,null,null,null,null,null,null,null,"CLIENTES NO REGULADOS"]
[null,"BTS1","BTS2","BTS3","Prepago","BTD","BTH","MTD","MTH","ATD","ATH","TOTAL","BTD","BTH","MTD","MTH","ATD","ATH","TOTAL"]
["ENERO"]
["FEBRERO"]
["MARZO"]
["ABRIL"]
["MAYO"]
["JUNIO"]
["JULIO"]
["AGOSTO"]
["SEPTIEMBRE"]
["OCTUBRE"]
["NOVIEMBRE"]
["DICIEMBRE"]
["PROMEDIO"]

{"sheet":"14 de 34","index":28,"n_rows":35,"n_cols":3,"rows_kept":35,"cut":false,"hidden":false,"merged":[[29,0,29,3],[28,0,28,3],[15,0,15,3],[16,0,16,3],[17,0,17,3],[19,0,19,4],[21,0,21,2],[18,0,18,3],[20,0,20,3],[22,0,22,3],[25,0,25,4],[23,0,23,3],[24,0,24,3],[26,0,26,3],[27,0,27,3],[31,0,31,3],[33,0,33,3],[1,0,1,4],[2,0,2,4],[5,0,5,1],[8,0,8,3],[9,0,9,3],[4,0,4,4],[3,0,3,4],[7,0,7,4],[10,0,10,3],[11,0,11,3],[12,0,12,3],[14,0,14,4],[13,0,13,3],[30,0,30,4]]}
[]
["Formulario E-120-D"]
["(14 de 34)"]
["DETALLE PARA DETERMINAR EL INGRESO NETO SUJETO A TASA DE REGULACIÓN "]
["(En Balboas)"]
["                 \nNOMBRE DE LA EMPRESA:"]
["AÑO:",null,"SEMESTRE: "]
["INGRESO POR VENTA DE ENERGIA Y PEAJE:"]
["CLIENTES SUJETOS A TARIFAS REGULADAS"]
["VENTAS EN EL MERCADO DE OCASIÓN"]
["VENTAS DE EXPORTACION"]
["USO, CONEXIÓN Y OPERACIÓN INTEGRADA DE TRANSMISIÓN (ETESA)"]
["INGRESO POR PEAJE (distribuidoras, generadoras o autogeneradoras)"]
["SUB TOTAL INGRESO DE VENTAS, PEAJE Y CRÉDITOS"]
["OTROS INGRESOS:"]
["SERVICIOS AUXILIARES Y OTRAS TRANSACCIONES"]
["AJUSTE POR DEMANDA MAXIMA ANUAL NO COINCIDENTE ETESA SEGUNDO PERIODO TARIFARIO"]
["OTROS"]
["SUB TOTAL OTROS INGRESOS"]
[]
["TOTAL INGRESO BRUTO"]
["EGRESOS COMPRA DE ENERGIA Y PEAJE:"]
["COSTOS POR COMPRAS DE POTENCIA Y ENERGÍA LOCAL"]
["COSTOS POR COMPRAS DE POTENCIA Y ENERGÍA POR IMPORTACIÓN"]
["SUBTOTAL COSTOS POR COMPRAS"]
["OTROS EGRESOS:"]
["COSTOS POR PEAJE DE DISTRIBUCIÓN"]
["COSTOS DE TRANSMISIÓN ETESA ( Incluye Resolución JD-5484 del ERSP)"]
["CREDITO ADICIONAL OTORGADO"]
["SUBTOTAL COSTOS DE TRANSMISIÓN"]
[]
["TOTAL EGRESO BRUTO"]
[]
["INGRESO NETO SUJETO AL PAGO DE LA TASA DE REGULACION "]
["Nota: Considere los renglones pertinentes a su actividad"]

{"sheet":"15 de 34","index":29,"n_rows":25,"n_cols":8,"rows_kept":25,"cut":false,"hidden":false,"merged":[[4,0,4,7],[3,0,3,7],[1,0,1,7],[2,0,2,7],[5,1,5,2],[5,3,5,5]]}
[]
["Formulario E-120-D"]
["(15 de 34)"]
["DETALLE DE INGRESOS PARA EL CÁLCULO DE LA TASA DE REGULACIÓN "]
["(En Balboas)"]
[null,"NOMBRE DE LA EMPRESA:"]
[null,null,"AÑO:",null,"SEMESTRE:"]
[]
["EMPRESA","VENTAS  A CLIENTES SUJETOS A TARIFAS REGULADAS","VENTAS A GRANDES CLIENTES","VENTAS DE EXPORTACIÓN","VENTAS EN EL MERCADO OCASIONAL","OTROS INGRESOS\nSERVICIOS AUXILIARES              Y AJUSTES","INGRESOS POR PEAJE","TOTAL"]
[]
[]
[]
[]
[]
[]
[]
[]
[]
[]
[]
[]
[]
[]
[]
["TOTAL"]

{"sheet":"16 de 34","index":30,"n_rows":24,"n_cols":7,"rows_kept":24,"cut":false,"hidden":false,"merged":[[23,1,23,2],[19,1,19,2],[20,1,20,2],[21,1,21,2],[22,1,22,2],[14,1,14,2],[15,1,15,2],[16,1,16,2],[17,1,17,2],[18,1,18,2],[9,1,9,2],[10,1,10,2],[11,1,11,2],[12,1,12,2],[13,1,13,2],[4,0,4,6],[3,0,3,6],[1,0,1,6],[2,0,2,6],[8,1,8,2],[5,0,5,1]]}
[]
["Formulario E-120-D "]
["(16 de 34)"]
["DETALLE DE COSTOS PARA EL CÁLCULO DE LA TASA DE REGULACIÓN "]
["(En Balboas)"]
["NOMBRE DE LA EMPRESA:"]
[null,"AÑO:",null,"SEMESTRE:"]
[]
["EMPRESA","COMPRA DE POTENCIA, ENERGÍA Y OTROS COSTOS ASOCIADOS AL MERCADO MAYORISTA (LOCALES)",null,"COMPRA DE POTENCIA Y ENERGÍA (IMPORTACIÓN)","COSTO POR PEAJE DE\nDISTRIBUCIÓN","COSTO DE TRANSMISIÓN","TOTAL"]
[]
[]
[]
[]
[]
[]
[]
[]
[]
[]
[]
[]
[]
[]
["TOTAL"]

{"sheet":"16A de 34","index":31,"n_rows":34,"n_cols":14,"rows_kept":34,"cut":false,"hidden":false,"merged":[[0,0,0,13],[6,0,6,13],[1,0,1,13],[2,0,2,13],[3,0,3,13],[4,2,4,4]]}
[]
["Formulario E-120-D"]
["(16 A de 34) "]
["ENERGÍA COMPRADA EN CONTRATOS (EN GWH)"]
[null,null,"NOMBRE DE LA EMPRESA:"]
[null,null,null,null,"AÑO:",null,null,"SEMESTRE:"]
["DETALLE DE CADA UNA DE LAS EMPRESAS CON LAS QUE SE MANTIENEN CONTRATOS"]
["EMPRESA","Ene","Feb","Mar","Abr","May","Jun","Jul","Ago","Sep","Oct","Nov","Dic","TOTAL"]
[]
[]
[]
[]
[]
[]
[]
[]
[]
[]
[]
[]
[]
[]
[]
[]
[]
[]
[]
[]
[]
[]
[]
[]
[]
["TOTAL"]

{"sheet":"16B de 34","index":32,"n_rows":32,"n_cols":14,"rows_kept":32,"cut":false,"hidden":false,"merged":[[4,0,4,13],[3,0,3,13],[1,0,1,13],[2,0,2,13]]}
[]
["Formulario E-120-D"]
["(16 B de 34) "]
["ENERGÍA NETA (COMPRADA-VENDIDA) EN EL MERCADO OCASIONAL (EN GWh)"]
["DETALLE DE CADA UNA DE LAS EMPRESAS CON LAS QUE SE LLEVARON TRANSACCIONES EN EL MERCADO OCASIONAL"]
["EMPRESA","Ene","Feb","Mar","Abr","May","Jun","Jul","Ago","Sep","Oct","Nov","Dic","TOTAL"]
[]
[]
[]
[]
[]
[]
[]
[]
[]
[]
[]
[]
[]
[]
[]
[]
[]
[]
[]
[]
[]
[]
[]
[]
[]
["TOTAL"]

{"sheet":"16C de 34","index":33,"n_rows":34,"n_cols":14,"rows_kept":34,"cut":false,"hidden":false,"merged":[[6,0,6,13],[0,0,0,13],[1,0,1,13],[2,0,2,13],[3,0,3,13],[4,2,4,4]]}
[]
["Formulario E-120-D"]
["(16 C de 33) "]
["MONTO DE LAS COMPRAS DE ENERGÍA EN CONTRATOS (En Balboas)"]
[null,null,"NOMBRE DE LA EMPRESA:"]
[null,null,null,null,"AÑO:",null,null,"SEMESTRE:"]
["DETALLE DE CADA UNA DE LAS EMPRESAS CON LAS QUE SE MANTIENEN CONTRATOS"]
["EMPRESA","Ene","Feb","Mar","Abr","May","Jun","Jul","Ago","Sep","Oct","Nov","Dic","TOTAL"]
[]
[]
[]
[]
[]
[]
[]
[]
[]
[]
[]
[]
[]
[]
[]
[]
[]
[]
[]
[]
[]
[]
[]
[]
[]
["TOTAL"]

{"sheet":"16D de 34","index":34,"n_rows":32,"n_cols":14,"rows_kept":32,"cut":false,"hidden":false,"merged":[[3,0,3,13],[4,0,4,13],[1,0,1,13],[2,0,2,13]]}
[]
["Formulario E-120-D"]
["(16 D de 33) "]
["MONTO DE LAS COMPRAS Y VENTAS DE ENERGÍA EN MERCADO OCASIONAL (En Balboas)"]
["DETALLE DE CADA UNA DE LAS EMPRESAS CON LAS QUE SE LLEVARON TRANSACCIONES EN EL MERCADO OCASIONAL"]
["EMPRESA","Ene","Feb","Mar","Abr","May","Jun","Jul","Ago","Sep","Oct","Nov","Dic","TOTAL"]
[]
[]
[]
[]
[]
[]
[]
[]
[]
[]
[]
[]
[]
[]
[]
[]
[]
[]
[]
[]
[]
[]
[]
[]
[]
["TOTAL"]

{"sheet":"17A de 34","index":35,"n_rows":72,"n_cols":10,"rows_kept":72,"cut":false,"hidden":false,"merged":[[1,0,1,9],[3,0,3,9],[7,1,7,3],[7,4,7,6],[7,7,7,9],[2,0,2,9],[4,1,4,3],[4,4,4,7],[7,0,8,0],[10,0,10,9],[24,0,24,9],[36,0,36,9],[46,0,46,9],[58,0,58,9]]}
[]
["Formulario  E-120-D"]
["(17 A de 34)"]
["CONSUMO DE  ENERGÍA  ELÉCTRICA SEGÚN  RANGO  DE CONSUMO  POR CLASE DE SERVICIO"]
[null,"NOMBRE DE LA EMPRESA:"]
[null,null,null,"AÑO:",null,null,"SEMESTRE:"]
[]
["RANGO DE CONSUMO MENSUAL  (kWh)","CLIENTES  TOTAL ANUAL",null,null,"VENTAS ANUALES (MWh)",null,null,"INGRESOS ANUALES (En Balboas)"]
[null,"Cantidad","Porcentaje\n(%)","Porecentaje Acumulado (%)","Cantidad","Porcentaje\n(%)","Porcentaje Acumulado (%)","Cantidad","Porcentaje\n(%)","Porcentaje Acumulado (%)"]
[]
["RESIDENCIAL"]
["0-10"]
["11-50"]
["51-100"]
["101-150"]
["151-200"]
["201-220"]
["221-300"]
["301-500"]
["501-700"]
["701-900"]
["901-1000"]
["1001-más"]
["TOTAL"]
["COMERCIAL"]
["0-100"]
["101-500"]
["501-1000"]
["1001-1500"]
["1501-2000"]
["2001-2500"]
["2501-3000"]
["3001-5000"]
["5001-10000"]
["10001-más"]
["TOTAL"]
["INDUSTRIAL"]
["0-1000"]
["1001-5000"]
["5001-10000"]
["10001-20000"]
["20001-50000"]
["50001-100000"]
["100001-200000"]
["200001-más"]
["TOTAL"]
["GOBIERNO"]
["0-100"]
["101-500"]
["501-1000"]
["1001-1500"]
["1501-2000"]
["2001-2500"]
["2501-3000"]
["3001-5000"]
["5001-10000"]
["10001-más"]
["TOTAL"]
["CONSUMO DE EMPRESA"]
["0-100"]
["101-500"]
["501-1000"]
["1001-1500"]
["1501-2000"]
["2001-2500"]
["2501-3000"]
["3001-5000"]
["5001-10000"]
["10001-más"]
["TOTAL"]
[]
["TOTAL"]

{"sheet":"17B de 34","index":36,"n_rows":72,"n_cols":10,"rows_kept":72,"cut":false,"hidden":false,"merged":[[10,0,10,9],[24,0,24,9],[36,0,36,9],[46,0,46,9],[58,0,58,9],[7,1,7,3],[7,4,7,6],[7,7,7,9],[1,0,1,9],[2,0,2,9],[3,0,3,9],[4,1,4,3],[4,4,4,7],[7,0,8,0]]}
[]
["Formulario  E-120-D"]
["(17 B de 34)"]
["CONSUMO DE ENERGÍA  ELÉCTRICA SEGÚN  RANGO  DE CONSUMO  POR CLASE DE SERVICIO"]
[null,"NOMBRE DE LA EMPRESA:"]
[null,null,"AÑO:",null,"SEMESTRE:"]
[]
["RANGO  DE CONSUMO MENSUAL  (kWh)","CLIENTES  TOTAL ANUAL",null,null,"VENTAS ANUALES (MWh)",null,null,"INGRESOS ANUALES, MONTO ASUMIDO POR EL CLIENTE FINAL (EN BALBOAS)"]
[null,"Cantidad","Porcentaje\n(%)","Porecentaje Acumulado (%)","Cantidad","Porcentaje\n(%)","Porcentaje Acumulado (%)","Cantidad","Porcentaje\n(%)","Porcentaje Acumulado (%)"]
[]
["RESIDENCIAL"]
["0-10"]
["11-50"]
["51-100"]
["101-150"]
["151-200"]
["201-220"]
["221-300"]
["301-500"]
["501-700"]
["701-900"]
["901-1000"]
["1001-más"]
["TOTAL"]
["COMERCIAL"]
["0-100"]
["101-500"]
["501-1000"]
["1001-1500"]
["1501-2000"]
["2001-2500"]
["2501-3000"]
["3001-5000"]
["5001-10000"]
["10001-más"]
["TOTAL"]
["INDUSTRIAL"]
["0-1000"]
["1001-5000"]
["5001-10000"]
["10001-20000"]
["20001-50000"]
["50001-100000"]
["100001-200000"]
["200001-más"]
["TOTAL"]
["GOBIERNO"]
["0-100"]
["101-500"]
["501-1000"]
["1001-1500"]
["1501-2000"]
["2001-2500"]
["2501-3000"]
["3001-5000"]
["5001-10000"]
["10001-más"]
["TOTAL"]
["CONSUMO DE EMPRESA"]
["0-100"]
["101-500"]
["501-1000"]
["1001-1500"]
["1501-2000"]
["2001-2500"]
["2501-3000"]
["3001-5000"]
["5001-10000"]
["10001-más"]
["TOTAL"]
[]
["TOTAL"]

{"sheet":"17C de 34","index":37,"n_rows":72,"n_cols":10,"rows_kept":72,"cut":false,"hidden":false,"merged":[[10,0,10,9],[24,0,24,9],[36,0,36,9],[46,0,46,9],[58,0,58,9],[7,1,7,3],[7,4,7,6],[7,7,7,9],[1,0,1,9],[2,0,2,9],[3,0,3,9],[4,1,4,3],[4,4,4,7],[7,0,8,0]]}
[]
["Formulario  E-120-D"]
["(17 C de 34)"]
["CONSUMO DE  ENERGÍA  ELÉCTRICA SEGÚN  RANGO  DE CONSUMO  POR CLASE DE SERVICIO"]
[null,"NOMBRE DE LA EMPRESA:"]
[null,null,null,"AÑO:",null,"SEMESTRE:"]
[]
["RANGO  DE CONSUMO MENSUAL  (kWh)","CLIENTES  TOTAL ANUAL",null,null,"VENTAS ANUALES (MWh)",null,null,"INGRESOS ANUALES, MONTO ASUMIDO POR EL ESTADO (EN BALBOAS)"]
[null,"Cantidad","Porcentaje\n(%)","Porecentaje Acumulado (%)","Cantidad","Porcentaje\n(%)","Porcentaje Acumulado (%)","Cantidad","Porcentaje\n(%)","Porcentaje Acumulado (%)"]
[]
["RESIDENCIAL"]
["0-10"]
["11-50"]
["51-100"]
["101-150"]
["151-200"]
["201-220"]
["221-300"]
["301-500"]
["501-700"]
["701-900"]
["901-1000"]
["1001-más"]
["TOTAL"]
["COMERCIAL"]
["0-100"]
["101-500"]
["501-1000"]
["1001-1500"]
["1501-2000"]
["2001-2500"]
["2501-3000"]
["3001-5000"]
["5001-10000"]
["10001-más"]
["TOTAL"]
["INDUSTRIAL"]
["0-1000"]
["1001-5000"]
["5001-10000"]
["10001-20000"]
["20001-50000"]
["50001-100000"]
["100001-200000"]
["200001-más"]
["TOTAL"]
["GOBIERNO"]
["0-100"]
["101-500"]
["501-1000"]
["1001-1500"]
["1501-2000"]
["2001-2500"]
["2501-3000"]
["3001-5000"]
["5001-10000"]
["10001-más"]
["TOTAL"]
["CONSUMO DE EMPRESA"]
["0-100"]
["101-500"]
["501-1000"]
["1001-1500"]
["1501-2000"]
["2001-2500"]
["2501-3000"]
["3001-5000"]
["5001-10000"]
["10001-más"]
["TOTAL"]
[]
["TOTAL"]

{"sheet":"18A de 34","index":38,"n_rows":222,"n_cols":10,"rows_kept":222,"cut":false,"hidden":false,"merged":[[151,0,151,1],[153,0,153,4],[218,0,218,2],[208,0,208,9],[154,0,154,9],[166,0,166,9],[178,0,178,9],[188,0,188,9],[198,0,198,9],[8,15,8,16],[121,0,121,9],[1,0,1,9],[2,0,2,9],[7,0,8,0],[7,1,7,3],[7,4,7,6],[7,7,7,9],[3,0,3,9],[24,0,24,9],[43,0,43,9],[50,0,50,9],[4,1,4,3],[5,4,5,5],[131,0,131,9],[141,0,141,9],[6,22,6,26],[7,17,7,21],[7,22,7,26],[8,20,8,21],[8,23,8,24],[8,25,8,26],[8,18,8,19],[111,0,111,9],[99,0,99,9],[10,0,10,9],[87,0,87,9],[6,12,7,16],[6,17,6,21],[8,13,8,14]]}
[]
["Formulario E-120-D"]
["(18 A de 34)"]
["CONSUMO DE ENERGÍA ELÉCTRICA  SEGÚN  RANGO  DE CONSUMO POR TARIFA"]
[null,"                 \nNOMBRE DE LA EMPRESA:"]
[null,null,"AÑO:",null,"SEMESTRE:"]
[]
["RANGO DE CONSUMO MENSUAL                                      (kWh)","CLIENTES TOTAL ANUAL",null,null,"VENTAS ANUALES (MWh)",null,null,"INGRESOS ANUALES (EN BALBOAS)"]
[null,"Cantidad","Porcentaje %","Porcentaje Acumulado %","Cantidad","Porcentaje %","Porcentaje Acumulado %","Cantidad","Porcentaje %","Porcentaje Acumulado %"]
[]
["BAJA TENSIÓN SIMPLE (BTS1)"]
["1-25"]
["26-50"]
["51-75"]
["76-100"]
["101-125"]
["126-150"]
["151-175"]
["176-200"]
["201-225"]
["226-250"]
["251-275"]
["276-300"]
["TOTAL"]
["BAJA TENSIÓN SIMPLE (BTS2)"]
["301-325"]
["326-350"]
["351-375"]
["376-400"]
["401-425"]
["426-450"]
["451-475"]
["476-500"]
["501-525"]
["526-550"]
["551-575"]
["576-600"]
["601-625"]
["626-650"]
["651-675"]
["676-700"]
["701-725"]
["726-750"]
["BAJA TENSIÓN SIMPLE (BTS3)"]
["751-1000"]
["1001-1500"]
["1501-2000"]
["2001-2500"]
["2501-3000"]
["3001 y más"]
["PREPAGO"]
["1-25"]
["26-50"]
["51-75"]
["76-100"]
["101-125"]
["126-150"]
["151-175"]
["176-200"]
["201-225"]
["226-250"]
["251-275"]
["276-300"]
["301-325"]
["326-350"]
["351-375"]
["376-400"]
["401-425"]
["426-450"]
["451-475"]
["476-500"]
["501-525"]
["526-550"]
["551-575"]
["576-600"]
["601-625"]
["626-650"]
["651-675"]
["676-700"]
["701-725"]
["726-750"]
["751-1000"]
["1001-1500"]
["1501-2000"]
["2001-2500"]
["2501-3000"]
["3001 y más"]
["BAJA TENSIÓN CON DEMANDA (BTD)"]
["0-100"]
["101-500"]
["501-1000"]
["1001-1500"]
["1501-2000"]
["2001-2500"]
["2501-3000"]
["3001-5000"]
["5001-10000"]
["10001-más"]
["TOTAL"]
["BAJA TENSIÓN CON DISC. HORARIO (BTH)"]
["0-100"]
["101-500"]
["501-1000"]
["1001-1500"]
["1501-2000"]
["2001-2500"]
["2501-3000"]
["3001-5000"]
["5001-10000"]
["10001-más"]
["TOTAL"]
["MEDIA TENSIÓN CON DEMANDA (MTD)"]
["0-1000"]
["1001-5000"]
["5001-10000"]
["10001-20000"]
["20001-50000"]
["50001-100000"]
["100001-200000"]
["200001-más"]
["TOTAL"]
["MEDIA TENSIÓN DISC. HORARIA (MTH)"]
["0-1000"]
["1001-5000"]
["5001-10000"]
["10001-20000"]
["20001-50000"]
["50001-100000"]
["100001-200000"]
["200001-más"]
["TOTAL"]
["ALTA TENSIÓN CON DEMANDA (ATD)"]
["0-1000"]
["1001-5000"]
["5001-10000"]
["10001-20000"]
["20001-50000"]
["50001-100000"]
["100001-200000"]
["200001-más"]
["TOTAL"]
["ALTA TENSIÓN DISC. HORARIA (ATH)"]
["0-1000"]
["1001-5000"]
["5001-10000"]
["10001-20000"]
["20001-50000"]
["50001-100000"]
["100001-200000"]
["200001-más"]
["TOTAL"]
["Tarifas para clientes regulados"]
["TOTAL"]
["Tarifas para clientes no regulados (Cargos por uso de red)"]
["BAJA TENSIÓN CON DEMANDA (BTDred)"]
["0-100"]
["101-500"]
["501-1000"]
["1001-1500"]
["1501-2000"]
["2001-2500"]
["2501-3000"]
["3001-5000"]
["5001-10000"]
["10001-más"]
["TOTAL"]
["BAJA TENSIÓN CON DISC. HORARIO (BTHred)"]
["0-100"]
["101-500"]
["501-1000"]
["1001-1500"]
["1501-2000"]
["2001-2500"]
["2501-3000"]
["3001-5000"]
["5001-10000"]
["10001-más"]
["TOTAL"]
["MEDIA TENSIÓN CON DEMANDA (MTDred)"]
["0-1000"]
["1001-5000"]
["5001-10000"]
["10001-20000"]
["20001-50000"]
["50001-100000"]
["100001-200000"]
["200001-más"]
["TOTAL"]
["MEDIA TENSIÓN DISC. HORARIA (MTHred)"]
["0-1000"]
["1001-5000"]
["5001-10000"]
["10001-20000"]
["20001-50000"]
["50001-100000"]
["100001-200000"]
["200001-más"]
["TOTAL"]
["ALTA TENSIÓN CON DEMANDA (ATDred)"]
["0-1000"]
["1001-5000"]
["5001-10000"]
["10001-20000"]
["20001-50000"]
["50001-100000"]
["100001-200000"]
["200001-más"]
["TOTAL"]
["ALTA TENSIÓN DISC. HORARIA (ATHred)"]
["0-1000"]
["1001-5000"]
["5001-10000"]
["10001-20000"]
["20001-50000"]
["50001-100000"]
["100001-200000"]
["200001-más"]
["TOTAL"]
["Tarifas para clientes no regulados"]
["TOTAL"]
[]
["GRAN TOTAL"]

{"sheet":"18B de 34","index":39,"n_rows":222,"n_cols":10,"rows_kept":222,"cut":false,"hidden":false,"merged":[[218,0,218,3],[208,0,208,9],[141,0,141,9],[154,0,154,9],[166,0,166,9],[178,0,178,9],[188,0,188,9],[198,0,198,9],[151,0,151,2],[153,0,153,3],[131,0,131,9],[8,20,8,21],[8,23,8,24],[8,25,8,26],[10,0,10,9],[24,0,24,9],[43,0,43,9],[50,0,50,9],[87,0,87,9],[99,0,99,9],[111,0,111,9],[121,0,121,9],[6,22,6,26],[7,0,8,0],[7,1,7,3],[7,4,7,6],[7,7,7,9],[7,17,7,21],[7,22,7,26],[8,13,8,14],[8,15,8,16],[8,18,8,19],[6,17,6,21],[1,0,1,9],[2,0,2,9],[3,0,3,9],[4,2,4,3],[6,12,7,16]]}
[]
["Formulario E-120-D"]
["(18 B de 34)"]
["CONSUMO DE ENERGÍA ELÉCTRICA SEGÚN  RANGO  DE CONSUMO POR TARIFA"]
[null,null,"                 \nNOMBRE DE LA EMPRESA:"]
[null,null,"AÑO:",null,"SEMESTRE:"]
[]
["RANGO DE CONSUMO MENSUAL                                      (kWh)","CLIENTES TOTAL ANUAL",null,null,"VENTAS ANUALES (MWh)",null,null,"INGRESOS ANUALES, MONTO ASUMIDO POR EL USUARIO FINAL (EN BALBOAS)"]
[null,"Cantidad","Porcentaje %","Porcentaje Acumulado %","Cantidad","Porcentaje %","Porcentaje Acumulado %","Cantidad","Porcentaje %","Porcentaje Acumulado %"]
[]
["BAJA TENSIÓN SIMPLE (BTS1)"]
["1-25"]
["26-50"]
["51-75"]
["76-100"]
["101-125"]
["126-150"]
["151-175"]
["176-200"]
["201-225"]
["226-250"]
["251-275"]
["276-300"]
["TOTAL"]
["BAJA TENSIÓN SIMPLE (BTS2)"]
["301-325"]
["326-350"]
["351-375"]
["376-400"]
["401-425"]
["426-450"]
["451-475"]
["476-500"]
["501-525"]
["526-550"]
["551-575"]
["576-600"]
["601-625"]
["626-650"]
["651-675"]
["676-700"]
["701-725"]
["726-750"]
["BAJA TENSIÓN SIMPLE (BTS3)"]
["751-1000"]
["1001-1500"]
["1501-2000"]
["2001-2500"]
["2501-3000"]
["3001 y más"]
["PREPAGO"]
["1-25"]
["26-50"]
["51-75"]
["76-100"]
["101-125"]
["126-150"]
["151-175"]
["176-200"]
["201-225"]
["226-250"]
["251-275"]
["276-300"]
["301-325"]
["326-350"]
["351-375"]
["376-400"]
["401-425"]
["426-450"]
["451-475"]
["476-500"]
["501-525"]
["526-550"]
["551-575"]
["576-600"]
["601-625"]
["626-650"]
["651-675"]
["676-700"]
["701-725"]
["726-750"]
["751-1000"]
["1001-1500"]
["1501-2000"]
["2001-2500"]
["2501-3000"]
["3001 y más"]
["BAJA TENSIÓN CON DEMANDA (BTD)"]
["0-100"]
["101-500"]
["501-1000"]
["1001-1500"]
["1501-2000"]
["2001-2500"]
["2501-3000"]
["3001-5000"]
["5001-10000"]
["10001-más"]
["TOTAL"]
["BAJA TENSIÓN CON DISC. HORARIO (BTH)"]
["0-100"]
["101-500"]
["501-1000"]
["1001-1500"]
["1501-2000"]
["2001-2500"]
["2501-3000"]
["3001-5000"]
["5001-10000"]
["10001-más"]
["TOTAL"]
["MEDIA TENSIÓN CON DEMANDA (MTD)"]
["0-1000"]
["1001-5000"]
["5001-10000"]
["10001-20000"]
["20001-50000"]
["50001-100000"]
["100001-200000"]
["200001-más"]
["TOTAL"]
["MEDIA TENSIÓN DISC. HORARIA (MTH)"]
["0-1000"]
["1001-5000"]
["5001-10000"]
["10001-20000"]
["20001-50000"]
["50001-100000"]
["100001-200000"]
["200001-más"]
["TOTAL"]
["ALTA TENSIÓN CON DEMANDA (ATD)"]
["0-1000"]
["1001-5000"]
["5001-10000"]
["10001-20000"]
["20001-50000"]
["50001-100000"]
["100001-200000"]
["200001-más"]
["TOTAL"]
["ALTA TENSIÓN DISC. HORARIA (ATH)"]
["0-1000"]
["1001-5000"]
["5001-10000"]
["10001-20000"]
["20001-50000"]
["50001-100000"]
["100001-200000"]
["200001-más"]
["TOTAL"]
["Tarifas para clientes regulados"]
["Total"]
["Tarifas para clientes no regulados (Cargos por uso de red)"]
["BAJA TENSIÓN CON DEMANDA (BTDred)"]
["0-100"]
["101-500"]
["501-1000"]
["1001-1500"]
["1501-2000"]
["2001-2500"]
["2501-3000"]
["3001-5000"]
["5001-10000"]
["10001-más"]
["TOTAL"]
["BAJA TENSIÓN CON DISC. HORARIO (BTHred)"]
["0-100"]
["101-500"]
["501-1000"]
["1001-1500"]
["1501-2000"]
["2001-2500"]
["2501-3000"]
["3001-5000"]
["5001-10000"]
["10001-más"]
["TOTAL"]
["MEDIA TENSIÓN CON DEMANDA (MTDred)"]
["0-1000"]
["1001-5000"]
["5001-10000"]
["10001-20000"]
["20001-50000"]
["50001-100000"]
["100001-200000"]
["200001-más"]
["TOTAL"]
["MEDIA TENSIÓN DISC. HORARIA (MTHred)"]
["0-1000"]
["1001-5000"]
["5001-10000"]
["10001-20000"]
["20001-50000"]
["50001-100000"]
["100001-200000"]
["200001-más"]
["TOTAL"]
["ALTA TENSIÓN CON DEMANDA (ATDred)"]
["0-1000"]
["1001-5000"]
["5001-10000"]
["10001-20000"]
["20001-50000"]
["50001-100000"]
["100001-200000"]
["200001-más"]
["TOTAL"]
["ALTA TENSIÓN DISC. HORARIA (ATHred)"]
["0-1000"]
["1001-5000"]
["5001-10000"]
["10001-20000"]
["20001-50000"]
["50001-100000"]
["100001-200000"]
["200001-más"]
["TOTAL"]
["Tarifas para clientes no regulados"]
["TOTAL"]
[]
["GRAN TOTAL"]

{"sheet":"18C de 34","index":40,"n_rows":222,"n_cols":10,"rows_kept":222,"cut":false,"hidden":false,"merged":[[218,0,218,2],[153,0,153,3],[151,0,151,1],[178,0,178,9],[188,0,188,9],[198,0,198,9],[208,0,208,9],[166,0,166,9],[111,0,111,9],[121,0,121,9],[131,0,131,9],[141,0,141,9],[154,0,154,9],[99,0,99,9],[1,0,1,9],[2,0,2,9],[3,0,3,9],[7,0,8,0],[7,1,7,3],[7,4,7,6],[7,7,7,9],[10,0,10,9],[24,0,24,9],[43,0,43,9],[50,0,50,9],[87,0,87,9],[4,2,4,4],[5,4,5,5]]}
[]
["Formulario E-120-D"]
["(18 C de 34)"]
["CONSUMO DE ENERGÍA ELÉCTRICA SEGÚN  RANGO  DE CONSUMO POR TARIFA"]
[null,null,"NOMBRE DE LA EMPRESA:"]
[null,null,"AÑO:",null,"SEMESTRE:"]
[]
["RANGO DE CONSUMO MENSUAL                                      (kWh)","CLIENTES TOTAL ANUAL",null,null,"VENTAS ANUALES (MWh)",null,null,"INGRESOS ANUALES, MONTO ASUMIDO POR ESTADO (EN BALBOAS)"]
[null,"Cantidad","Porcentaje %","Porcentaje Acumulado %","Cantidad","Porcentaje %","Porcentaje Acumulado %","Cantidad","Porcentaje %","Porcentaje Acumulado %"]
[]
["BAJA TENSIÓN SIMPLE (BTS1)"]
["1-25"]
["26-50"]
["51-75"]
["76-100"]
["101-125"]
["126-150"]
["151-175"]
["176-200"]
["201-225"]
["226-250"]
["251-275"]
["276-300"]
["TOTAL"]
["BAJA TENSIÓN SIMPLE (BTS2)"]
["301-325"]
["326-350"]
["351-375"]
["376-400"]
["401-425"]
["426-450"]
["451-475"]
["476-500"]
["501-525"]
["526-550"]
["551-575"]
["576-600"]
["601-625"]
["626-650"]
["651-675"]
["676-700"]
["701-725"]
["726-750"]
["BAJA TENSIÓN SIMPLE (BTS3)"]
["751-1000"]
["1001-1500"]
["1501-2000"]
["2001-2500"]
["2501-3000"]
["3001 y más"]
["PREPAGO"]
["1-25"]
["26-50"]
["51-75"]
["76-100"]
["101-125"]
["126-150"]
["151-175"]
["176-200"]
["201-225"]
["226-250"]
["251-275"]
["276-300"]
["301-325"]
["326-350"]
["351-375"]
["376-400"]
["401-425"]
["426-450"]
["451-475"]
["476-500"]
["501-525"]
["526-550"]
["551-575"]
["576-600"]
["601-625"]
["626-650"]
["651-675"]
["676-700"]
["701-725"]
["726-750"]
["751-1000"]
["1001-1500"]
["1501-2000"]
["2001-2500"]
["2501-3000"]
["3001 y más"]
["BAJA TENSIÓN CON DEMANDA (BTD)"]
["0-100"]
["101-500"]
["501-1000"]
["1001-1500"]
["1501-2000"]
["2001-2500"]
["2501-3000"]
["3001-5000"]
["5001-10000"]
["10001-más"]
["TOTAL"]
["BAJA TENSIÓN CON DISC. HORARIO (BTH)"]
["0-100"]
["101-500"]
["501-1000"]
["1001-1500"]
["1501-2000"]
["2001-2500"]
["2501-3000"]
["3001-5000"]
["5001-10000"]
["10001-más"]
["TOTAL"]
["MEDIA TENSIÓN CON DEMANDA (MTD)"]
["0-1000"]
["1001-5000"]
["5001-10000"]
["10001-20000"]
["20001-50000"]
["50001-100000"]
["100001-200000"]
["200001-más"]
["TOTAL"]
["MEDIA TENSIÓN DISC. HORARIA (MTH)"]
["0-1000"]
["1001-5000"]
["5001-10000"]
["10001-20000"]
["20001-50000"]
["50001-100000"]
["100001-200000"]
["200001-más"]
["TOTAL"]
["ALTA TENSIÓN CON DEMANDA (ATD)"]
["0-1000"]
["1001-5000"]
["5001-10000"]
["10001-20000"]
["20001-50000"]
["50001-100000"]
["100001-200000"]
["200001-más"]
["TOTAL"]
["ALTA TENSIÓN DISC. HORARIA (ATH)"]
["0-1000"]
["1001-5000"]
["5001-10000"]
["10001-20000"]
["20001-50000"]
["50001-100000"]
["100001-200000"]
["200001-más"]
["TOTAL"]
["Tarifas para clientes regulados"]
["TOTAL"]
["Tarifas para clientes no regulados (Cargos por uso de red)"]
["BAJA TENSIÓN CON DEMANDA (BTDred)"]
["0-100"]
["101-500"]
["501-1000"]
["1001-1500"]
["1501-2000"]
["2001-2500"]
["2501-3000"]
["3001-5000"]
["5001-10000"]
["10001-más"]
["TOTAL"]
["BAJA TENSIÓN CON DISC. HORARIO (BTHred)"]
["0-100"]
["101-500"]
["501-1000"]
["1001-1500"]
["1501-2000"]
["2001-2500"]
["2501-3000"]
["3001-5000"]
["5001-10000"]
["10001-más"]
["TOTAL"]
["MEDIA TENSIÓN CON DEMANDA (MTDred)"]
["0-1000"]
["1001-5000"]
["5001-10000"]
["10001-20000"]
["20001-50000"]
["50001-100000"]
["100001-200000"]
["200001-más"]
["TOTAL"]
["MEDIA TENSIÓN DISC. HORARIA (MTHred)"]
["0-1000"]
["1001-5000"]
["5001-10000"]
["10001-20000"]
["20001-50000"]
["50001-100000"]
["100001-200000"]
["200001-más"]
["TOTAL"]
["ALTA TENSIÓN CON DEMANDA (ATDred)"]
["0-1000"]
["1001-5000"]
["5001-10000"]
["10001-20000"]
["20001-50000"]
["50001-100000"]
["100001-200000"]
["200001-más"]
["TOTAL"]
["ALTA TENSIÓN DISC. HORARIA (ATHred)"]
["0-1000"]
["1001-5000"]
["5001-10000"]
["10001-20000"]
["20001-50000"]
["50001-100000"]
["100001-200000"]
["200001-más"]
["TOTAL"]
["Tarifas para clientes no regulados"]
["TOTAL"]
[]
["GRAN TOTAL"]

{"sheet":"19 de 34","index":41,"n_rows":23,"n_cols":10,"rows_kept":23,"cut":false,"hidden":false,"merged":[[1,0,1,9],[2,0,2,9],[4,2,4,3],[22,0,22,9],[8,11,8,12],[3,0,3,9],[7,0,8,0],[7,1,7,3],[7,4,7,6],[7,7,7,9]]}
[]
["Formulario E-120-D"]
[" (19 de 34)"]
["TOTAL DE INTERRUPCIONES DEL SERVICIO ELÉCTRICO EN LA ZONA DE CONCESIÓN"]
[null,null,"NOMBRE DE LA EMPRESA:"]
[null,null,null,"AÑO:",null,"SEMESTRE"]
[]
["MES","PROGRAMADAS 1/",null,null,"OBLIGADAS  2/",null,null,"IMPREVISTAS 3/"]
[null,"NÚMERO DE INTERRUPCIONES","CANTIDAD DE CLIENTES AFECTADOS","DURACIÓN TOTAL EN HORAS","NÚMERO DE INTERRUPCIONES","CANTIDAD DE CLIENTES AFECTADOS","DURACIÓN TOTAL EN HORAS","NÚMERO DE INTERRUPCIONES","CANTIDAD DE CLIENTES AFECTADOS","DURACIÓN TOTAL EN HORAS"]
["ENERO"]
["FEBRERO"]
["MARZO"]
["ABRIL"]
["MAYO"]
["JUNIO"]
["JULIO"]
["AGOSTO"]
["SEPTIEMBRE"]
["OCTUBRE"]
["NOVIEMBRE"]
["DICIEMBRE"]
["TOTAL"]
["De acuerdo  con  lo establecido en la Resolución JD-01650 de 27 de octubre de 1999, se definen:\n1/ Interrupción  programada: Aquella que es planeada con la mayor anticipación posible por el agente del mercado para realizar mantenimientos preventivos.\n2/ Interrupción obligada:   Aquella que se da con menor anticipación que la interrupción  programada para realizar manteniminetos correctivos.\n3/ Interrupción imprevista:  Aquella que no es producto de una interrupción ni programada ni obligada."]

{"sheet":"20 de 34","index":42,"n_rows":24,"n_cols":10,"rows_kept":24,"cut":false,"hidden":false,"merged":[[22,0,22,9],[23,0,23,9],[3,0,3,9],[7,12,8,12],[7,19,7,21],[7,0,8,0],[7,1,7,3],[7,4,7,6],[7,7,7,9],[1,0,1,9],[2,0,2,9],[4,2,4,3],[7,13,7,15],[7,16,7,18]]}
[]
["Formulario E-120-D"]
["(20 de 34)"]
["TOTAL DE INTERRUPCIONES DEL SERVICIO ELÉCTRICO EN LAS ÁREAS URBANAS"]
[null,null," NOMBRE DE LA EMPRESA:"]
[null,null,null,"AÑO:",null,"SEMESTRE:"]
[]
["MES","PROGRAMADAS  1/",null,null,"OBLIGADAS  2/",null,null,"IMPREVISTAS 3/"]
[null,"NÚMERO DE INTERRUPCIONES","CANTIDAD DE CLIENTES AFECTADOS","DURACIÓN TOTAL EN HORAS","NÚMERO DE INTERRUPCIONES","CANTIDAD DE CLIENTES AFECTADOS","DURACIÓN TOTAL EN HORAS","NÚMERO DE INTERRUPCIONES","CANTIDAD DE CLIENTES AFECTADOS","DURACIÓN TOTAL EN HORAS"]
["ENERO"]
["FEBRERO"]
["MARZO"]
["ABRIL"]
["MAYO"]
["JUNIO"]
["JULIO"]
["AGOSTO"]
["SEPTIEMBRE"]
["OCTUBRE"]
["NOVIEMBRE"]
["DICIEMBRE"]
["TOTAL"]
[]
["De acuerdo  con  lo establecido en la Resolución JD-01650 de 27 de octubre de 1999, se definen:\n1/ Interrupción  programada:  Aquella que es planeada con anticipación por el agente del mercado para realizar mantenimientos preventivos.\n2/ Interrupción obligada:   Aquella que se da con menor anticipación que la interrupción  programada para realizar manteniminetos correctivos.\n3/ Interrupción imprevista:  Aquella que no es producto de una interrupción ni programada ni obligada."]

{"sheet":"20A de 34 ","index":43,"n_rows":24,"n_cols":10,"rows_kept":24,"cut":false,"hidden":false,"merged":[[23,0,23,9],[1,0,1,9],[2,0,2,9],[3,0,3,9],[4,2,4,3],[7,0,8,0],[7,1,7,3],[7,4,7,6],[7,7,7,9],[7,12,8,12],[7,13,7,15],[7,16,7,18],[7,19,7,21],[22,0,22,9]]}
[]
["Formulario E-120-D"]
["(20 A de 34)"]
["TOTAL DE INTERRUPCIONES DEL SERVICIO ELÉCTRICO EN LAS ÁREAS SUB URBANAS"]
[null,null," NOMBRE DE LA EMPRESA:"]
[null,null,null,"AÑO:",null,"SEMESTRE:"]
[]
["MES","PROGRAMADAS  1/",null,null,"OBLIGADAS  2/",null,null,"IMPREVISTAS 3/"]
[null,"NÚMERO DE INTERRUPCIONES","CANTIDAD DE CLIENTES AFECTADOS","DURACIÓN TOTAL EN HORAS","NÚMERO DE INTERRUPCIONES","CANTIDAD DE CLIENTES AFECTADOS","DURACIÓN TOTAL EN HORAS","NÚMERO DE INTERRUPCIONES","CANTIDAD DE CLIENTES AFECTADOS","DURACIÓN TOTAL EN HORAS"]
["ENERO"]
["FEBRERO"]
["MARZO"]
["ABRIL"]
["MAYO"]
["JUNIO"]
["JULIO"]
["AGOSTO"]
["SEPTIEMBRE"]
["OCTUBRE"]
["NOVIEMBRE"]
["DICIEMBRE"]
["TOTAL"]
[]
["De acuerdo  con  lo establecido en la Resolución JD-01650 de 27 de octubre de 1999, se definen:\n1/ Interrupción  programada:  Aquella que es planeada con anticipación por el agente del mercado para realizar mantenimientos preventivos.\n2/ Interrupción obligada:   Aquella que se da con menor anticipación que la interrupción  programada para realizar manteniminetos correctivos.\n3/ Interrupción imprevista:  Aquella que no es producto de una interrupción ni programada ni obligada."]

{"sheet":"21 de 34","index":44,"n_rows":23,"n_cols":10,"rows_kept":23,"cut":false,"hidden":false,"merged":[[1,0,1,9],[2,0,2,9],[22,0,22,9],[3,0,3,9],[6,0,6,9],[7,0,8,0],[7,1,7,3],[7,4,7,6],[7,7,7,9],[4,2,4,3]]}
[]
["Formulario E-120-D "]
["(21 de 34)"]
["TOTAL DE INTERRUPCIONES DEL SERVICIO ELÉCTRICO EN LAS ÁREAS RURALES"]
[null,null,"                     \nNOMBRE DE LA EMPRESA:"]
[null,null,null,"AÑO:",null,"SEMESTRE:"]
[]
["MES","PROGRAMADAS 1/",null,null,"OBLIGADAS  2/",null,null,"IMPREVISTAS 3/"]
[null,"NÚMERO  DE INTERRUPCIONES","CANTIDAD DE CLIENTES AFECTADOS","DURACIÓN TOTAL EN\nHORAS","NÚMERO  DE INTERRUPCIONES","CANTIDAD DE CLIENTES AFECTADOS","DURACIÓN TOTAL EN\nHORAS","NÚMERO  DE INTERRUPCIONES","CANTIDAD DE CLIENTES AFECTADOS","DURACIÓN TOTAL EN\nHORAS"]
["ENERO"]
["FEBRERO"]
["MARZO"]
["ABRIL"]
["MAYO"]
["JUNIO"]
["JULIO"]
["AGOSTO"]
["SEPTIEMBRE"]
["OCTUBRE"]
["NOVIEMBRE"]
["DICIEMBRE"]
["TOTAL"]
["De acuerdo  con  lo establecido en la Resolución JD-01650 de 27 de octubre de 1999, se definen:\n1/ Interrupción  programada:  Aquella que es planeada con anticipación por el agente del mercado para realizar mantenimientos preventivos.\n2/ Interrupción obligada:   Aquella que se da con menor anticipación que la interrupción  programada para realizar manteniminetos correctivos.\n3/ Interrupción imprevista:  Aquella que no es producto de una interrupción ni programada ni obligada."]

{"sheet":"21A de 34","index":45,"n_rows":23,"n_cols":10,"rows_kept":23,"cut":false,"hidden":false,"merged":[[22,0,22,9],[1,0,1,9],[2,0,2,9],[3,0,3,9],[4,2,4,3],[6,0,6,9],[7,0,8,0],[7,1,7,3],[7,4,7,6],[7,7,7,9]]}
[]
["Formulario E-120-D "]
["(21 A de 34)"]
["TOTAL DE INTERRUPCIONES DEL SERVICIO ELÉCTRICO EN LAS ÁREAS RURALES DISPERSAS"]
[null,null,"                     \nNOMBRE DE LA EMPRESA:"]
[null,null,null,"AÑO:",null,"SEMESTRE:"]
[]
["MES","PROGRAMADAS 1/",null,null,"OBLIGADAS  2/",null,null,"IMPREVISTAS 3/"]
[null,"NÚMERO  DE INTERRUPCIONES","CANTIDAD DE CLIENTES AFECTADOS","DURACIÓN TOTAL EN\nHORAS","NÚMERO  DE INTERRUPCIONES","CANTIDAD DE CLIENTES AFECTADOS","DURACIÓN TOTAL EN\nHORAS","NÚMERO  DE INTERRUPCIONES","CANTIDAD DE CLIENTES AFECTADOS","DURACIÓN TOTAL EN\nHORAS"]
["ENERO"]
["FEBRERO"]
["MARZO"]
["ABRIL"]
["MAYO"]
["JUNIO"]
["JULIO"]
["AGOSTO"]
["SEPTIEMBRE"]
["OCTUBRE"]
["NOVIEMBRE"]
["DICIEMBRE"]
["TOTAL"]
["De acuerdo  con  lo establecido en la Resolución JD-01650 de 27 de octubre de 1999, se definen:\n1/ Interrupción  programada:  Aquella que es planeada con anticipación por el agente del mercado para realizar mantenimientos preventivos.\n2/ Interrupción obligada:   Aquella que se da con menor anticipación que la interrupción  programada para realizar manteniminetos correctivos.\n3/ Interrupción imprevista:  Aquella que no es producto de una interrupción ni programada ni obligada."]

{"sheet":"21B de 34","index":46,"n_rows":23,"n_cols":10,"rows_kept":23,"cut":false,"hidden":false,"merged":[[22,0,22,9],[1,0,1,9],[2,0,2,9],[3,0,3,9],[4,2,4,3],[6,0,6,9],[7,0,8,0],[7,1,7,3],[7,4,7,6],[7,7,7,9]]}
[]
["Formulario E-120-D "]
["(21 B de 34)"]
["TOTAL DE INTERRUPCIONES DEL SERVICIO ELÉCTRICO EN LAS ÁREAS RURALES MUY DISPERSAS"]
[null,null,"                     \nNOMBRE DE LA EMPRESA:"]
[null,null,"AÑO:",null,"SEMESTRE:"]
[]
["MES","PROGRAMADAS 1/",null,null,"OBLIGADAS  2/",null,null,"IMPREVISTAS 3/"]
[null,"NÚMERO  DE INTERRUPCIONES","CANTIDAD DE CLIENTES AFECTADOS","DURACIÓN TOTAL EN\nHORAS","NÚMERO  DE INTERRUPCIONES","CANTIDAD DE CLIENTES AFECTADOS","DURACIÓN TOTAL EN\nHORAS","NÚMERO  DE INTERRUPCIONES","CANTIDAD DE CLIENTES AFECTADOS","DURACIÓN TOTAL EN\nHORAS"]
["ENERO"]
["FEBRERO"]
["MARZO"]
["ABRIL"]
["MAYO"]
["JUNIO"]
["JULIO"]
["AGOSTO"]
["SEPTIEMBRE"]
["OCTUBRE"]
["NOVIEMBRE"]
["DICIEMBRE"]
["TOTAL"]
["De acuerdo  con  lo establecido en la Resolución JD-01650 de 27 de octubre de 1999, se definen:\n1/ Interrupción  programada:  Aquella que es planeada con anticipación por el agente del mercado para realizar mantenimientos preventivos.\n2/ Interrupción obligada:   Aquella que se da con menor anticipación que la interrupción  programada para realizar manteniminetos correctivos.\n3/ Interrupción imprevista:  Aquella que no es producto de una interrupción ni programada ni obligada."]

{"sheet":"22 de 34","index":47,"n_rows":8,"n_cols":5,"rows_kept":8,"cut":false,"hidden":false,"merged":[[22,1,22,2],[1,0,1,4],[2,0,2,4],[7,1,7,2],[8,1,8,2],[14,1,14,2],[15,1,15,2],[16,1,16,2],[17,1,17,2],[18,1,18,2],[19,1,19,2],[20,1,20,2],[21,1,21,2],[10,1,10,2],[11,1,11,2],[12,1,12,2],[4,0,4,2],[13,1,13,2],[3,0,3,4],[9,1,9,2]]}
[]
["Formulario E-120-D"]
["(22 de 34)"]
["DEMANDA MÁXIMA ANUAL Y HORAS DE SERVICIO DIARIO DE LOS SISTEMAS AISLADOS"]
["NOMBRE DE LA EMPRESA:"]
[null,"AÑO:",null,"SEMESTRE"]
[]
["PLANTA","DEMANDA MÁXIMA EN kW",null,"HORAS DE SERVICIO\nDIARIO","OBSERVACIONES"]

{"sheet":"23 de 34","index":48,"n_rows":19,"n_cols":13,"rows_kept":19,"cut":false,"hidden":false,"merged":[[1,0,1,12],[2,0,2,12],[18,0,18,12],[17,0,17,1],[6,0,6,2],[7,0,8,0],[7,1,8,1],[7,2,7,8],[7,9,8,9],[7,10,7,12],[3,0,3,12],[4,2,4,4]]}
[]
["Formulario E-120-D "]
["(23 de 34)"]
["CAPACIDAD DE TRANSFORMACIÓN DE LAS SUBESTACIONES DE LA EMPRESA QUE FORMAN PARTE DEL SISTEMA INTERCONECTADO NACIONAL"]
[null,null,"           \nNOMBRE DE LA EMPRESA:"]
[null,null,null,"AÑO:",null,null,"SEMESTRE:"]
[]
["SUBESTACIÓN","TRANSFORMADOR    No.","CAPACIDAD",null,null,null,null,null,null,"TIPO","VOLTAJES (KV)"]
[null,null,"OA","FA I","FA II","FOA","ONAN","ODAN","ONAF",null,"ALTA","BAJA","TERCIARIO"]
[]
[]
[]
[]
[]
[]
[]
[]
["TOTAL  "]
["OA:  enfriamiento por aceite y aire\nFA:   enfriamiento por aire forzado\nFOA:  enfriamiento por aceite y aire forzado\nONAN: aire natural/aceite natural ODAN: aceite circulado por motobomba ONAF: aire forzado por abanico                                                                                                                                                                                                                                                               ODAN: aceite circulado por motobomba                                                                                                                                                                                                                                                                                                                                                                                                               ONAF: aire forzado por abanico"]

{"sheet":"24 de 34","index":49,"n_rows":32,"n_cols":13,"rows_kept":32,"cut":false,"hidden":false,"merged":[[1,0,1,12],[2,0,2,12],[3,0,3,12],[4,0,4,12],[5,4,5,5],[28,0,28,12],[29,0,29,12],[30,0,30,12],[31,0,31,12],[7,1,7,12],[8,0,9,0],[8,1,8,11],[8,12,9,12]]}
[]
["Formulario E-120-D "]
["(24 de 34)"]
["CANTIDAD DE CLIENTES PROMEDIO POR PROVINCIA"]
["(Clientes activos al final de cada mes)"]
["             \n",null,null,null,"NOMBRE DE LA EMPRESA:"]
["\n",null,null,null,"AÑO:",null,"SEMESTRE:"]
[]
["MES","PROVINCIAS",null,null,null,null,null,null,null,null,null,null,"TOTAL"]
[null,"BOCAS  DEL TORO","COCLÉ","COLÓN","CHIRIQUÍ","DARIÉN","HERRERA","LOS SANTOS","PANAMÁ","PANAMÁ OESTE","VERGAUAS","COMARCAS INDÍGENAS"]
["ENERO"]
["FEBRERO"]
["MARZO"]
["ABRIL"]
["MAYO"]
["JUNIO"]
["JULIO"]
["AGOSTO"]
["SEPTIEMBRE"]
["OCTUBRE"]
["NOVIEMBRE"]
["DICIEMBRE"]
["PROMEDIO"]
[]
[]
[]
[]
[]
["Formulario E-120-D"]
["(25 de 34)"]
["ENERGÍA VENDIDA POR PROVINCIA (en GWh)"]
["Incluyendo Alumbrado Público)"]

{"sheet":"25 de 34","index":50,"n_rows":23,"n_cols":13,"rows_kept":23,"cut":false,"hidden":false,"merged":[[7,1,7,12],[8,0,9,0],[8,1,8,11],[8,12,9,12],[1,0,1,12],[2,0,2,12],[3,0,3,12],[4,0,4,12],[5,4,5,5]]}
[]
["Formulario E-120-D"]
["(25 de 34)"]
["ENERGÍA VENDIDA POR PROVINCIA (en GWh)"]
["Incluyendo Alumbrado Público)"]
["             \n",null,null,null,"NOMBRE DE LA EMPRESA:"]
["\n",null,null,null,"AÑO:",null,"SEMESTRE:"]
[]
["MES","PROVINCIAS",null,null,null,null,null,null,null,null,null,null,"TOTAL"]
[null,"BOCAS  DEL TORO","COCLÉ","COLÓN","CHIRIQUÍ","DARIÉN","HERRERA","LOS SANTOS","PANAMÁ","PANAMÁ OESTE","VERGAUAS","COMARCAS INDÍGENAS"]
["ENERO"]
["FEBRERO"]
["MARZO"]
["ABRIL"]
["MAYO"]
["JUNIO"]
["JULIO"]
["AGOSTO"]
["SEPTIEMBRE"]
["OCTUBRE"]
["NOVIEMBRE"]
["DICIEMBRE"]
["PROMEDIO"]

{"sheet":"26 de 34","index":51,"n_rows":20,"n_cols":3,"rows_kept":20,"cut":false,"hidden":false,"merged":[[6,3,6,4],[3,0,3,3],[7,0,7,1],[8,0,8,1],[9,0,9,1],[10,0,10,1],[11,0,11,1],[12,0,12,1],[17,2,17,3],[18,2,18,3],[13,0,13,1],[14,0,14,1],[15,0,15,1],[16,0,16,1],[17,0,17,1],[19,2,19,3],[1,0,1,3],[2,0,2,3],[18,0,18,1],[19,0,19,1],[4,0,4,1],[7,2,7,3],[8,2,8,3],[9,2,9,3],[10,2,10,3],[11,2,11,3],[12,2,12,3],[13,2,13,3],[14,2,14,3],[15,2,15,3],[16,2,16,3]]}
[]
["Formulario E-120-D"]
["(26 de 34)"]
["CANTIDAD DE EMPLEADOS DE LA EMPRESA"]
["NOMBRE DE LA EMPRESA:"]
["AÑO:",null,"SEMESTRE:"]
[]
["AL 31 DE ENERO"]
["AL 28 DE FEBRERO"]
["AL 31 DE MARZO"]
["AL 30 DE ABRIL"]
["AL 31 DE MAYO"]
["AL 30 DE JUNIO"]
["AL 31 DE JULIO"]
["AL 31 DE AGOSTO"]
["AL 30 DE SEPTIEMBRE"]
["AL 31 DE OCTUBRE"]
["AL 30 DE NOVIEMBRE"]
["AL 31 DE DICIEMBRE"]
["PROMEDIO ANUAL"]

{"sheet":"27 de 34","index":52,"n_rows":29,"n_cols":7,"rows_kept":29,"cut":false,"hidden":false,"merged":[[1,0,1,6],[2,0,2,6],[3,0,3,6],[4,0,4,2],[7,1,7,2],[8,1,8,2],[9,1,9,2],[10,1,10,2],[11,1,11,2],[12,1,12,2],[13,1,13,2],[14,1,14,2],[15,1,15,2],[16,1,16,2],[17,1,17,2],[18,1,18,2],[19,1,19,2],[20,1,20,2],[26,1,26,2],[27,1,27,2],[28,1,28,2],[21,1,21,2],[22,1,22,2],[23,1,23,2],[24,1,24,2],[25,1,25,2]]}
[]
["Formulario E-120-D "]
["(27 de 34)"]
["COMPRA Y VENTA DE ENERGÍA ENTRE EMPRESAS Y PEAJE DE TRANSMISIÓN (En Balboas)"]
["NOMBRE DE LA EMPRESA:"]
["AÑO:",null,null,"SEMESTRE:"]
[]
["EMPRESA  DE GENERACIÓN","COMPRAS",null,"VENTAS","PEAJE  PAGADO A ETESA","PEAJE  COBRADO A ETESA","AJUSTES PRESENTADOS"]
[]
[]
[]
[]
[]
[]
[]
[]
[]
[]
[]
[]
[]
[]
[]
[]
[]
[]
[]
[]
["TOTAL"]

{"sheet":"28 de 34","index":53,"n_rows":28,"n_cols":7,"rows_kept":28,"cut":false,"hidden":false,"merged":[[1,0,1,6],[2,0,2,6],[4,1,4,2],[27,0,27,6],[7,0,7,6],[3,0,3,6],[18,0,18,4]]}
[]
["Formulario E-120-D"]
["(28 de 34)"]
["CAPACIDAD Y GENERACIÓN PROPIA DE LAS EMPRESAS DISTRIBUIDORAS"]
[null,"NOMBRE DE LA EMPRESA:"]
[null,"AÑO:",null,"SEMESTRE:"]
[]
["CAPACIDAD"]
["PLANTA","TIPO *","COMBUSTIBLE\nUTILIZADO","CAPACIDAD\nINSTALADA (MW)","CAPACIDAD\nFIRME (MW)","EFICIENCIA PROMEDIO (%)","AÑO DE\nINSTALACIÓN"]
[]
[]
[]
[]
[]
[]
[]
["TOTAL"]
[]
["GENERACIÓN"]
["PLANTA","TIPO *","GENERACIÓN\nBRUTA (GWh)","SERVICIOS\nAUXILIARES","GENERACIÓN\nNETA (GWh)"]
[]
[]
[]
[]
[]
[]
["TOTAL"]
["* H - hidroeléctrica\n   T - térmica"]

{"sheet":"29 de 34","index":54,"n_rows":7,"n_cols":3,"rows_kept":7,"cut":false,"hidden":false,"merged":[[1,0,1,2],[2,0,2,2],[3,0,3,2]]}
[]
["Formulario E-120-D"]
["(29 de 34)"]
["CENTROS DE ATENCIÓN AL CLIENTE"]
["NOMBRE DE LA EMPRESA:"]
[]
["OFICINA COMERCIAL","UBICACIÓN","CANTIDAD DE CLIENTES\nATENDIDOS"]

{"sheet":"30 de 34","index":55,"n_rows":9,"n_cols":7,"rows_kept":9,"cut":false,"hidden":false,"merged":[[1,0,1,7],[2,0,2,7],[32,6,32,7],[33,6,33,7],[21,6,21,7],[22,6,22,7],[27,6,27,7],[30,6,30,7],[31,6,31,7],[16,6,16,7],[17,6,17,7],[18,6,18,7],[19,6,19,7],[20,6,20,7],[13,6,13,7],[14,6,14,7],[15,6,15,7],[10,6,10,7],[11,6,11,7],[30,2,30,3],[31,2,31,3],[13,2,13,3],[14,2,14,3],[15,2,15,3],[16,2,16,3],[17,2,17,3],[11,4,11,5],[30,0,30,1],[31,0,31,1],[30,4,30,5],[31,4,31,5],[14,4,14,5],[15,4,15,5],[16,4,16,5],[11,2,11,3],[12,2,12,3],[21,2,21,3],[22,2,22,3],[12,6,12,7],[3,0,3,7],[8,6,8,7],[9,6,9,7],[7,0,7,3],[11,0,11,1],[12,0,12,1],[7,4,7,7],[8,4,8,5],[8,2,8,3],[9,2,9,3],[10,2,10,3],[32,0,32,1],[33,0,33,1],[4,1,4,2],[23,0,23,1],[24,0,24,1],[25,0,25,1],[26,0,26,1],[27,0,27,1],[18,0,18,1],[19,0,19,1],[20,0,20,1],[21,0,21,1],[22,0,22,1],[13,0,13,1],[14,0,14,1],[15,0,15,1],[16,0,16,1],[17,0,17,1],[8,0,8,1],[9,0,9,1],[10,0,10,1],[32,2,32,3],[33,2,33,3],[23,2,23,3],[5,5,5,6],[28,0,28,1],[29,0,29,1],[28,2,28,3],[29,2,29,3],[28,4,28,5],[29,4,29,5],[28,6,28,7],[29,6,29,7],[27,4,27,5],[17,4,17,5],[18,4,18,5],[19,4,19,5],[20,4,20,5],[21,4,21,5],[12,4,12,5],[13,4,13,5],[24,2,24,3],[25,2,25,3],[26,2,26,3],[27,2,27,3],[18,2,18,3],[19,2,19,3],[20,2,20,3],[9,4,9,5],[10,4,10,5],[32,4,32,5],[33,4,33,5],[22,4,22,5],[23,4,23,5],[24,4,24,5],[25,4,25,5],[26,4,26,5]]}
[]
["Formulario E-120-D"]
["(30 de 34)"]
["SERVICIO DE ELECTRICIDAD EN LAS LOCALIDADES (*)"]
[null,"               \nNOMBRE DE LA EMPRESA:"]
[null,"AÑO:",null,null,"SEMESTRE:"]
[]
["LOCALIDADES URBANAS",null,null,null,"LOCALIDADES RURALES"]
["CON  ELECTRICIDAD",null,"SIN  ELECTRICIDAD",null,"CON  ELECTRICIDAD",null,"SIN  ELECTRICIDAD"]

{"sheet":"31 de 34","index":56,"n_rows":21,"n_cols":5,"rows_kept":21,"cut":false,"hidden":false,"merged":[[3,0,3,4],[1,0,1,4],[2,0,2,4],[4,0,4,1]]}
[]
["Formulario E-120-D"]
["(31 de 34)"]
["CANTIDAD DE CLIENTES POR REGIÓN"]
["NOMBRE DE LA EMPRESA:"]
["AÑO:",null,"SEMESTRE:"]
[]
["FECHA","URBANO","RURAL","OER","TOTAL"]
["ENERO"]
["FEBRERO"]
["MARZO"]
["ABRIL"]
["MAYO"]
["JUNIO"]
["JULIO"]
["AGOSTO"]
["SEPTIEMBRE"]
["OCTUBRE"]
["NOVIEMBRE"]
["DICIEMBRE"]
["PROMEDIO"]

{"sheet":"32 de 34","index":57,"n_rows":21,"n_cols":5,"rows_kept":21,"cut":false,"hidden":false,"merged":[[3,0,3,4],[1,0,1,4],[2,0,2,4]]}
[]
["Formulario E-120-D"]
["(32 de 34)"]
["VENTA DE ENERGÍA POR REGIÓN"]
[null,"NOMBRE DE LA EMPRESA:"]
["AÑO:",null,"SEMESTRE:"]
[]
["FECHA","URBANO","RURAL","OER","TOTAL"]
["ENERO"]
["FEBRERO"]
["MARZO"]
["ABRIL"]
["MAYO"]
["JUNIO"]
["JULIO"]
["AGOSTO"]
["SEPTIEMBRE"]
["OCTUBRE"]
["NOVIEMBRE"]
["DICIEMBRE"]
["TOTAL"]

{"sheet":"33 de 34","index":58,"n_rows":26,"n_cols":3,"rows_kept":26,"cut":false,"hidden":false,"merged":[[25,0,25,1],[3,0,3,2],[1,0,1,2],[2,0,2,2],[6,0,6,1]]}
[]
["Formulario E-120-D"]
["(33  de 34)"]
["DETALLE DE INVERSIONES REALIZADAS EN EL AÑO\n(En Balboas)"]
["NOMBRE DE LA EMPRESA:"]
[]
["DETALLE",null,"IMPORTE"]
[]
[]
[]
[]
[]
[]
[]
[]
[]
[]
[]
[]
[]
[]
[]
[]
[]
[]
["TOTAL"]

{"sheet":"34 de 34","index":59,"n_rows":73,"n_cols":18,"rows_kept":73,"cut":false,"hidden":false,"merged":[[1,0,1,17],[2,0,2,17],[3,0,3,17],[4,0,4,17],[8,0,9,0],[8,1,8,10],[8,11,8,17],[5,2,5,3]]}
[]
["Formulario E-120-D"]
["(34  de 34)"]
["VENTAS DE ENERGÍA ELÉCTRICA POR ACTIVIDAD ECONÓMICA DEL CLIENTE POR TARIFA"]
["(En MWh)"]
[null,"Semestre:"]
[null,"Año:"]
[]
["ACTIVIDAD ECONOMICA","CLIENTES REGIULADOS",null,null,null,null,null,null,null,null,null,"CLIENTES NO REGULADOS"]
[null,"BTS1","BTS2","BTS3","BTD","BTH","MTD","MTH","ATD","ATH","TOTAL GENERAL","BTDred","BTHred","MTDred","MTHred","ATDred","ATHred","TOTAL GENERAL"]
["Abarrotería / Kiosco",null,null,null,null,null,null,null,null,null,{"$f":"SUM(B11:J11)","v":0},null,null,null,null,null,null,{"$f":"SUM(I11:Q11)","v":0}]
["Aeropuerto",null,null,null,null,null,null,null,null,null,{"$f":"SUM(B12:J12)","v":0},null,null,null,null,null,null,{"$f":"SUM(I12:Q12)","v":0}]
["Agencia de Seguridad",null,null,null,null,null,null,null,null,null,0,null,null,null,null,null,null,0]
["Agrícola",null,null,null,null,null,null,null,null,null,0,null,null,null,null,null,null,0]
["Almacén",null,null,null,null,null,null,null,null,null,0,null,null,null,null,null,null,0]
["Áreas comunes / Asociación de Propietarios",null,null,null,null,null,null,null,null,null,{"$f":"SUM(B16:J16)","v":0},null,null,null,null,null,null,0]
["Banco / Financiera / Cooperativa",null,null,null,null,null,null,null,null,null,0,null,null,null,null,null,null,0]
["Bar / Discoteca / Cantina",null,null,null,null,null,null,null,null,null,0,null,null,null,null,null,null,0]
["Boutique",null,null,null,null,null,null,null,null,null,0,null,null,null,null,null,null,0]
["Caja de Seguro Social",null,null,null,null,null,null,null,null,null,0,null,null,null,null,null,null,0]
["Cementera",null,null,null,null,null,null,null,null,null,0,null,null,null,null,null,null,0]
["Cine / Centro de Entretenimiento",null,null,null,null,null,null,null,null,null,0,null,null,null,null,null,null,0]
["Clínica / Centro de Salud",null,null,null,null,null,null,null,null,null,0,null,null,null,null,null,null,0]
["Construcción",null,null,null,null,null,null,null,null,null,0,null,null,null,null,null,null,0]
["Consultoría",null,null,null,null,null,null,null,null,null,0,null,null,null,null,null,null,0]
["Copias / video Juegos / Internet",null,null,null,null,null,null,null,null,null,0,null,null,null,null,null,null,0]
["Depósito / Galera",null,null,null,null,null,null,null,null,null,0,null,null,null,null,null,null,0]
["Distribución de Combustible",null,null,null,null,null,null,null,null,null,0,null,null,null,null,null,null,0]
["Distribución de Energía",null,null,null,null,null,null,null,null,null,0,null,null,null,null,null,null,0]
["Empresa de Servicios de Alquiler / Venta",null,null,null,null,null,null,null,null,null,0,null,null,null,null,null,null,0]
["Escuela / Colegio / Universidad",null,null,null,null,null,null,null,null,null,0,null,null,null,null,null,null,0]
["Estación de Bombeo / Planta de Tratamiento",null,null,null,null,null,null,null,null,null,0,null,null,null,null,null,null,0]
["Farmacia",null,null,null,null,null,null,null,null,null,0,null,null,null,null,null,null,0]
["Feria",null,null,null,null,null,null,null,null,null,0,null,null,null,null,null,null,0]
["Finca Avícola",null,null,null,null,null,null,null,null,null,0,null,null,null,null,null,null,0]
["Generación de Energía",null,null,null,null,null,null,null,null,null,0,null,null,null,null,null,null,0]
["Gimnasio / Parque / Cancha de Deportes",null,null,null,null,null,null,null,null,null,0,null,null,null,null,null,null,0]
["Guardería",null,null,null,null,null,null,null,null,null,0,null,null,null,null,null,null,0]
["Hospital / Clínica / Laboratorio          ",null,null,null,null,null,null,null,null,null,0,null,null,null,null,null,null,0]
["Hotel / Casa de Huéspedes",null,null,null,null,null,null,null,null,null,0,null,null,null,null,null,null,0]
["Industria",null,null,null,null,null,null,null,null,null,0,null,null,null,null,null,null,0]
["Producción de Derivados del Tomate",null,null,null,null,null,null,null,null,null,0,null,null,null,null,null,null,0]
["Producción de Sal",null,null,null,null,null,null,null,null,null,0,null,null,null,null,null,null,0]
["Producción de Azúcar y Melaza",null,null,null,null,null,null,null,null,null,0,null,null,null,null,null,null,0]
["Producción de Harina y Aceite de Pescado",null,null,null,null,null,null,null,null,null,0,null,null,null,null,null,null,0]
["Producción de Alcohol",null,null,null,null,null,null,null,null,null,0,null,null,null,null,null,null,0]
["Producción de Bebidas Alcohólicas",null,null,null,null,null,null,null,null,null,0,null,null,null,null,null,null,0]
["Inmobiliaria / Bienes Raíces",null,null,null,null,null,null,null,null,null,0,null,null,null,null,null,null,0]
["Lava Auto",null,null,null,null,null,null,null,null,null,0,null,null,null,null,null,null,0]
["Lavandería",null,null,null,null,null,null,null,null,null,0,null,null,null,null,null,null,0]
["Medios de Comunicación",null,null,null,null,null,null,null,null,null,{"$f":"SUM(B51:J51)","v":0},null,null,null,null,null,null,0]
["Minera",null,null,null,null,null,null,null,null,null,0,null,null,null,null,null,null,0]
["Mueblería",null,null,null,null,null,null,null,null,null,0,null,null,null,null,null,null,0]
["Oficina de Gobierno",null,null,null,null,null,null,null,null,null,0,null,null,null,null,null,null,0]
["Organización Religiosa",null,null,null,null,null,null,null,null,null,0,null,null,null,null,null,null,0]
["Organización sin Fines de Lucro",null,null,null,null,null,null,null,null,null,0,null,null,null,null,null,null,0]
["Otros",null,null,null,null,null,null,null,null,null,0,null,null,null,null,null,null,0]
["Panadería",null,null,null,null,null,null,null,null,null,0,null,null,null,null,null,null,0]
["Publicidad",null,null,null,null,null,null,null,null,null,0,null,null,null,null,null,null,0]
["Puerto",null,null,null,null,null,null,null,null,null,0,null,null,null,null,null,null,0]
["Residencial",null,null,null,null,null,null,null,null,null,0,null,null,null,null,null,null,0]
["Restaurante / Fonda",null,null,null,null,null,null,null,null,null,0,null,null,null,null,null,null,0]
["Salón de Belleza",null,null,null,null,null,null,null,null,null,0,null,null,null,null,null,null,0]
["Señales de Tránsito",null,null,null,null,null,null,null,null,null,0,null,null,null,null,null,null,0]
["Supermercado / Mini Súper",null,null,null,null,null,null,null,null,null,0,null,null,null,null,null,null,0]
["Taller",null,null,null,null,null,null,null,null,null,0,null,null,null,null,null,null,0]
["Telecomunicaciones",null,null,null,null,null,null,null,null,null,0,null,null,null,null,null,null,0]
["Transmisión de Energía",null,null,null,null,null,null,null,null,null,0,null,null,null,null,null,null,0]
["Transporte",null,null,null,null,null,null,null,null,null,0,null,null,null,null,null,null,0]
["Venta de Materiales / Ferretería",null,null,null,null,null,null,null,null,null,0,null,null,null,null,null,null,0]
["Venta de Servicios Genrales",null,null,null,null,null,null,null,null,null,0,null,null,null,null,null,null,0]
["Zapatería",null,null,null,null,null,null,null,null,null,0,null,null,null,null,null,null,0]
["TOTAL",null,null,null,null,null,null,null,null,null,0,null,null,null,null,null,null,0]